Workbook

Sheet Site Data
A1: West Virginia MS4 Stormwater Compliance Spreadsheet v2.0; April 2013
B3: data input cells
B4: calculation cells
B5: constant values
A7: Site Data
A9: Site Name:
A12: Site Information
A14: Post-Development Land Cover
A15: Drainage Area A
A16: Land Cover Type | B16: HSG A Soils | C16: HSG B Soils | D16: HSG C Soils | E16: HSG D Soils | F16: Totals
A17: Forest/Preserved Open Space (acres) | B17: 0 | C17: 0 | D17: 0 | E17: 0 | F17: =SUM(B17:E17) -> 0
A18: Managed Turf (acres) | B18: 0 | C18: 0 | D18: 0 | E18: 0 | F18: =SUM(B18:E18) -> 0
A19: Impervious Cover (acres) | B19: 0 | C19: 0 | D19: 0 | E19: 0 | F19: =SUM(B19:E19) -> 0
E20: Total | F20: =SUM(F17:F19) -> 0
A22: Drainage Area B
A23: Land Cover Type | B23: HSG A Soils | C23: HSG B Soils | D23: HSG C Soils | E23: HSG D Soils | F23: Totals
A24: Forest/Preserved Open Space (acres) | B24: 0 | C24: 0 | D24: 0 | E24: 0 | F24: =SUM(B24:E24) -> 0
A25: Managed Turf (acres) | B25: 0 | C25: 0 | D25: 0 | E25: 0 | F25: =SUM(B25:E25) -> 0
A26: Impervious Cover (acres) | B26: 0 | C26: 0 | D26: 0 | E26: 0 | F26: =SUM(B26:E26) -> 0
E27: Total | F27: =SUM(F24:F26) -> 0
A29: Drainage Area C
A30: Land Cover Type | B30: HSG A Soils | C30: HSG B Soils | D30: HSG C Soils | E30: HSG D Soils | F30: Totals
A31: Forest/Preserved Open Space (acres) | B31: 0 | C31: 0 | D31: 0 | E31: 0 | F31: =SUM(B31:E31) -> 0
A32: Managed Turf (acres) | B32: 0 | C32: 0 | D32: 0 | E32: 0 | F32: =SUM(B32:E32) -> 0
A33: Impervious Cover (acres) | B33: 0 | C33: 0 | D33: 0 | E33: 0 | F33: =SUM(B33:E33) -> 0
E34: Total | F34: =SUM(F31:F33) -> 0
A36: Drainage Area D
A37: Land Cover Type | B37: HSG A Soils | C37: HSG B Soils | D37: HSG C Soils | E37: HSG D Soils | F37: Totals
A38: Forest/Preserved Open Space (acres) | B38: 0 | C38: 0 | D38: 0 | E38: 0 | F38: =SUM(B38:E38) -> 0
A39: Managed Turf (acres) | B39: 0 | C39: 0 | D39: 0 | E39: 0 | F39: =SUM(B39:E39) -> 0
A40: Impervious Cover (acres) | B40: 0 | C40: 0 | D40: 0 | E40: 0 | F40: =SUM(B40:E40) -> 0
E41: Total | F41: =SUM(F38:F40) -> 0
A43: Drainage Area E
A44: Land Cover Type | B44: HSG A Soils | C44: HSG B Soils | D44: HSG C Soils | E44: HSG D Soils | F44: Totals
A45: Forest/Preserved Open Space (acres) | B45: 0 | C45: 0 | D45: 0 | E45: 0 | F45: =SUM(B45:E45) -> 0
A46: Managed Turf (acres) | B46: 0 | C46: 0 | D46: 0 | E46: 0 | F46: =SUM(B46:E46) -> 0
A47: Impervious Cover (acres) | B47: 0 | C47: 0 | D47: 0 | E47: 0 | F47: =SUM(B47:E47) -> 0
E48: Total | F48: =SUM(F45:F47) -> 0
A50: Total Site Area
A51: Land Cover Type | B51: HSG A Soils | C51: HSG B Soils | D51: HSG C Soils | E51: HSG D Soils | F51: Totals
A52: Forest/Preserved Open Space (acres) | B52: =SUMIFS(B$17:B$47,$A$17:$A$47,$A52) -> 0 | C52: =SUMIFS(C$17:C$47,$A$17:$A$47,$A52) -> 0 | D52: 0 | E52: 0 | F52: =SUM(B52:E52) -> 0
A53: Managed Turf (acres) | B53: =SUMIFS(B$17:B$47,$A$17:$A$47,$A53) -> 0 | C53: 0 | D53: 0 | E53: 0 | F53: =SUM(B53:E53) -> 0
A54: Impervious Cover (acres) | B54: 0 | C54: 0 | D54: 0 | E54: 0 | F54: =SUM(B54:E54) -> 0
A55: Total: | B55: =SUM(B52:B54) -> 0 | C55: =SUM(C52:C54) -> 0 | D55: 0 | E55: 0 | F55: 0
A58: Rv Coefficients
A59: Land Cover Type | B59: HSG A Soils | C59: HSG B Soils | D59: HSG C Soils | E59: HSG D Soils
A60: Forest/Preserved Open Space | B60: 0 | C60: 0 | D60: 0 | E60: 0
A61: Managed Turf | B61: 0.15 | C61: 0.2 | D61: 0.22 | E61: 0.25
A62: Impervious Cover | B62: 0.95 | C62: 0.95 | D62: 0.95 | E62: 0.95
A64: Land Cover Summary
A65: Forest/Preserved Open Space (acres) | B65: =F17+F24+F31+F38+F45 -> 0
A66: Weighted Rv(forest) | B66: =B60 -> 0
A67: % Forest | B67: =IFERROR(B65/B74,0) -> 0
A68: Managed Turf (acres) | B68: =F18+F25+F32+F39+F46 -> 0
A69: Weighted Rv(turf) | B69: =IF(B68>0,(SUMPRODUCT(B18:E18+B25:E25+B32:E32+B39:E39+B46:E46,B61:E61))/B68,0) -> 0
A70: % Managed Turf | B70: =IFERROR(B68/B74,0) -> 0
A71: Impervious Cover (acres) | B71: =F19+F26+F33+F40+F47 -> 0
A72: Rv(impervious) | B72: =B62 -> 0.95
A73: % Impervious | B73: =IFERROR(B71/B74,0) -> 0
A74: Site Area (acres) | B74: =B65+B68+B71 -> 0
A75: Site Rv | B75: =B66*B67+B69*B70+B72*B73 -> 0
A77: Development Credits (Select all that apply)
A78: Is the proposed development:
A79: a) Redevelopment? | D79: No | I79: Yes
A80: b) Brownfield redevelopment? | D80: No | I80: No
A81: c) High density (>7 units per acre)? | D81: No
A82: d) Vertical Density, (Floor to Area Ratio (FAR) of 2 or >18 units per acre)? | D82: No
A83: e) Mixed use or Transit Oriented Development (within 1/2 mile of transit)? | D83: No
B84: Total Credits (inches) | D84: =IF(COUNTIF(D79:D83,I79)*0.2<0.75,COUNTIF(D79:D83,I79)*0.2,0.75) -> 0
A86: Runoff Reduction Rainfall Event (inches) | B86: =1-D84 -> 1
A87: Target Runoff Reduction Volume, RRv (acre-feet) | B87: =B86/12*B75*B74 -> 0
A88: Target Runoff Reduction Volume, RRv (cubic feet) | B88: =B87*43560 -> 0

Sheet D.A. A
A1: West Virginia MS4 Stormwater Compliance Spreadsheet v2.0; April 2013
A3: Drainage Area A
A6: Drainage Area A Post-Development Land Cover (acres)
A7: Land Cover Type | B7: HSG A soils | C7: HSG B Soils | D7: HSG C Soils | E7: HSG D Soils | F7: Totals
A8: Forest/Preserved Open Space | B8: ='Site Data'!B17 -> 0 | C8: ='Site Data'!C17 -> 0 | D8: ='Site Data'!D17 -> 0 | E8: ='Site Data'!E17 -> 0 | F8: =SUM(B8:E8) -> 0 | H8: ="RRv Achieved for Drainage Area "&RIGHT(A3,1)&" (cubic feet)" -> RRv Achieved for Drainage Area A (cubic feet) | K8: =K48 -> 0
A9: Managed Turf | B9: ='Site Data'!B18 -> 0 | C9: ='Site Data'!C18 -> 0 | D9: ='Site Data'!D18 -> 0 | E9: ='Site Data'!E18 -> 0 | F9: =SUM(B9:E9) -> 0 | H9: ="RRv Balance for Drainage Area "&RIGHT(A3,1)&" (cubic feet)" -> RRv Balance for Drainage Area A (cubic feet) | K9: ='Site Data'!B86/12*B12*F11*43560-K8 -> 0 | L9: =IFERROR(L49,"") -> 
A10: Impervious Cover | B10: ='Site Data'!B19 -> 0 | C10: ='Site Data'!C19 -> 0 | D10: ='Site Data'!D19 -> 0 | E10: ='Site Data'!E19 -> 0 | F10: =SUM(B10:E10) -> 0 | H10: RRv Balance for Total Site (cubic feet) | K10: =K49 -> 0
E11: Total | F11: =SUM(F8:F10) -> 0
A12: Rv(drainage area) | B12: =IFERROR(B13*F9/F11+B14*F10/F11,0) -> 0
A13: Rv(turf) | B13: =IF(F9>0,SUMPRODUCT(B9:E9,'Site Data'!B61:E61)/F9,0) -> 0
A14: Rv(impervious) | B14: 0.95
A16: Apply Runoff Reduction Practices
A17: Runoff Reduction Practice | B17: Impervious Cover in Contributing Drainage Area (acres) | C17: Managed Turf in Contributing Drainage Area (acres) | D17: Volume Received by Practice (cubic feet) | E17: Description of Credit | F17: % Credit | G17: Volume Received from Upstream Practices (cubic feet) | H17: Total Volume Received by Practice (cubic feet) | I17: Disconnection Area of Practice (square feet) | J17: Storage Volume Provided by Practice (cubic feet) | K17: Runoff Reduction (cubic feet) | L17: Remaining Volume (cubic feet) | M17: Downstream Practice | Q17: =A21 -> Simple Disconnection to A/B Soils or Soil-Amended Filter Path in C/D Soils (4.2.2, Appendix D) | R17: =A22 -> Simple Disconnection to C/D Soils (4.2.2) | S17: =A23 -> To Residential Rain Garden (4.2.3.C) | T17: =A24 -> To Rainwater Harvesting (4.2.8) | U17: =A30 -> Grass Swale A/B Soils | V17: =A31 -> Grass Swale C/D Soils | W17: =A32 -> Grass Swale in C/D Soil with Soil Amendments | X17: =A34 -> Water Quality Swale, Level 1 | Y17: =A35 -> Water Quality Swale, Level 2 | Z17: =A37 -> Bioretention, Level 1 or Urban Bioretention (4.2.3.B) | AA17: =A38 -> Bioretention, Level 2 | AB17: =A40 -> Infiltration | AC17: =A42 -> *Filtration Practice/Stormwater Wetland do NOT receive runoff reduction values, but do have associated pollutant removal values | AD17: =A44 -> Sheetflow to Conservation Area with A/B Soils | AE17: =A45 -> Sheetflow to Conservation Area with C/D Soils | AF17: =A46 -> Sheetflow to Vegetated Filter Strip in A/B Soils or Compost Amended C/D Soils | AG17: =A47 -> Sheet flow to Vegetated Filter Strip in C/D Soils | AI17: =A30 -> Grass Swale A/B Soils | AJ17: =A31 -> Grass Swale C/D Soils | AK17: =A32 -> Grass Swale in C/D Soil with Soil Amendments
A18: 1. Vegetated Roof (4.2.9)
A19: Vegetated Roof | C19: N/A | D19: =1/12*0.95*B19*43560 -> 0 | E19: Reduce volume conveyed through green roof by 100%. | F19: 1 | G19: N/A | H19: =D19 -> 0 | I19: N/A | K19: =IF(J19*F19<=H19,J19*F19,H19) -> 0 | L19: =H19-K19 -> 0 | Q19: =IF($M19=Q$17, $L19, 0) -> 0 | R19: =IF($M19=R$17, $L19, 0) -> 0 | S19: 0 | T19: 0 | U19: =IF($M19=U$17, $L19, 0) -> 0 | V19: =IF($M19=V$17, $L19, 0) -> 0 | W19: =IF($M19=W$17, $L19, 0) -> 0 | X19: 0 | Y19: 0 | Z19: 0 | AA19: 0 | AB19: 0 | AC19: 0 | AD19: 0 | AE19: 0 | AF19: =IF($M19=AF$17, $L19, 0) -> 0 | AG19: =IF($M19=AG$17, $L19, 0) -> 0 | AI19: =IF($M19=AI$17, $H19, 0) -> 0 | AJ19: =IF($M19=AJ$17, $H19, 0) -> 0 | AK19: =IF($M19=AK$17, $H19, 0) -> 0
A20: 2. Impervious Surface Disconnection/Rooftop Practices | AG20: =IF($M20=AG$17, $L20, 0) -> 0
A21: Simple Disconnection to A/B Soils or Soil-Amended Filter Path in C/D Soils (4.2.2, Appendix D) | C21: N/A | D21: =1/12*0.95*B21*43560 -> 0 | E21: Reduce volume conveyed to conservation area by 4 cu. ft per each 100 sq. ft. of pervious receiving area. | F21: N/A | G21: =Q49 -> 0 | H21: =D21+G21 -> 0 | J21: N/A | K21: =IF(I21*0.04<=H21,I21*0.04,H21) -> 0 | L21: 0 | Q21: =IF($M21=Q$17, $L21, 0) -> 0 | R21: 0 | S21: 0 | T21: 0 | U21: =IF($M21=U$17, $L21, 0) -> 0 | V21: 0 | W21: 0 | X21: 0 | Y21: 0 | Z21: 0 | AA21: 0 | AB21: 0 | AC21: 0 | AD21: 0 | AE21: 0 | AF21: =IF($M21=AF$17, $L21, 0) -> 0 | AG21: 0 | AI21: =IF($M21=AI$17, $H21, 0) -> 0 | AJ21: 0 | AK21: 0
A22: Simple Disconnection to C/D Soils (4.2.2) | C22: N/A | D22: =1/12*0.95*B22*43560 -> 0 | E22: Reduce volume conveyed to conservation area by 2 cu. ft per each 100 sq. ft. of pervious receiving area. | F22: N/A | G22: =R49 -> 0 | H22: =D22+G22 -> 0 | J22: N/A | K22: =IF(I22*0.02<=H22,I22*0.02,H22) -> 0 | L22: 0 | Q22: =IF($M22=Q$17, $L22, 0) -> 0 | R22: 0 | S22: 0 | T22: 0 | U22: 0 | V22: 0 | W22: 0 | X22: 0 | Y22: 0 | Z22: 0 | AA22: 0 | AB22: 0 | AC22: 0 | AD22: 0 | AE22: 0 | AF22: =IF($M22=AF$17, $L22, 0) -> 0 | AG22: 0 | AI22: 0 | AJ22: 0 | AK22: 0
A23: To Residential Rain Garden (4.2.3.C) | C23: N/A | D23: =1/12*0.95*B23*43560 -> 0 | E23: 60% volume reduction for the Design Volume of the practice | F23: 0.6 | G23: =S49 -> 0 | H23: =D23+G23 -> 0 | I23: N/A | K23: =IF(J23*F23<=H23,J23*F23,H23) -> 0 | L23: 0 | Q23: =IF($M23=Q$17, $L23, 0) -> 0 | R23: 0 | S23: 0 | T23: 0 | U23: 0 | V23: 0 | W23: 0 | X23: 0 | Y23: 0 | Z23: 0 | AA23: 0 | AB23: 0 | AC23: 0 | AD23: 0 | AE23: 0 | AF23: =IF($M23=AF$17, $L23, 0) -> 0 | AG23: 0 | AI23: 0 | AJ23: 0 | AK23: 0
A24: To Rainwater Harvesting (4.2.8) | C24: N/A | D24: =1/12*0.95*B24*43560 -> 0 | E24: Subtract a variable % of the provided Design Volume based on annual beneficial use (see Cistern Design Spreadsheet). | G24: =T49 -> 0 | H24: =D24+G24 -> 0 | I24: N/A | K24: =IF(J24*F24<=H24,J24*F24,H24) -> 0 | L24: 0 | Q24: =IF($M24=Q$17, $L24, 0) -> 0 | R24: 0 | S24: 0 | T24: 0 | U24: 0 | V24: 0 | W24: 0 | X24: 0 | Y24: 0 | Z24: 0 | AA24: 0 | AB24: 0 | AC24: 0 | AD24: 0 | AE24: 0 | AF24: =IF($M24=AF$17, $L24, 0) -> 0 | AG24: 0 | AI24: 0 | AJ24: 0 | AK24: 0
A25: 3. Permeable Pavement (4.2.4) | N25: Storage Volume Provided by Sump Below Underdrain (cubic feet) | O25: Storage Volume Provided by Reservoir Layer Above Underdrain (cubic feet)
A26: Permeable Pavement, Level 1 | C26: N/A | D26: =1/12*0.95*B26*43560 -> 0 | E26: Subtract 45% of the provided storage volume. | F26: 0.45 | G26: N/A | H26: =D26 -> 0 | I26: N/A | K26: =IF(J26*F26<=H26,J26*F26,H26) -> 0 | L26: 0 | Q26: =IF($M26=Q$17, $L26, 0) -> 0 | R26: 0 | S26: 0 | T26: 0 | U26: =IF($M26=U$17, $L26, 0) -> 0 | V26: 0 | W26: 0 | X26: 0 | Y26: 0 | Z26: 0 | AA26: 0 | AB26: 0 | AC26: 0 | AD26: 0 | AE26: 0 | AF26: =IF($M26=AF$17, $L26, 0) -> 0 | AG26: 0 | AI26: =IF($M26=AI$17, $H26, 0) -> 0 | AJ26: 0 | AK26: 0
A27: Permeable Pavement, Level 2 (infiltration) | C27: N/A | D27: =1/12*0.95*B27*43560 -> 0 | E27: Subtract 100% of the provided storage volume. | F27: 1 | G27: N/A | H27: =D27 -> 0 | I27: N/A | K27: =IF(J27*F27<=H27,J27*F27,H27) -> 0 | L27: =H27-K27 -> 0 | Q27: =IF($M27=Q$17, $L27, 0) -> 0 | R27: 0 | S27: 0 | T27: 0 | U27: 0 | V27: 0 | W27: 0 | X27: 0 | Y27: 0 | Z27: 0 | AA27: 0 | AB27: 0 | AC27: 0 | AD27: 0 | AE27: 0 | AF27: =IF($M27=AF$17, $L27, 0) -> 0 | AG27: 0 | AI27: 0 | AJ27: 0 | AK27: 0
A28: Permeable Pavement, Level 2 (infiltration & underdrain) | C28: N/A | D28: =1/12*0.95*B28*43560 -> 0 | E28: Subtract 100% of the provided storage volume of sump and 45% of the provided storage volume in reservoir layer. | G28: N/A | H28: =D28 -> 0 | I28: N/A | K28: =IF(N28*F27+O28*F26<=H28,N28*F27+O28*F26,H28) -> 0 | L28: 0 | Q28: =IF($M28=Q$17, $L28, 0) -> 0 | R28: 0 | S28: 0 | T28: 0 | U28: 0 | V28: 0 | W28: 0 | X28: 0 | Y28: 0 | Z28: 0 | AA28: 0 | AB28: 0 | AC28: 0 | AD28: 0 | AE28: 0 | AF28: =IF($M28=AF$17, $L28, 0) -> 0 | AG28: 0 | AI28: =IF($M28=AI$17, $H28, 0) -> 0 | AJ28: =IF($M28=AJ$17, $H28, 0) -> 0 | AK28: =IF($M28=AK$17, $H28, 0) -> 0
A29: 4. Grass Swale (4.2.5) | N29: Water volume associated with contributing area (cubic feet) | AG29: 0
A30: Grass Swale A/B Soils | D30: =1/12*(0.95*B30+$B$13*C30)*43560 -> 0 | E30: Reduce volume conveyed through grass swale by 0.2 inches. | F30: 0.2 | G30: =U49 -> 0 | H30: =D30+G30 -> 0 | I30: N/A | J30: N/A | K30: =IF((H30+(N30-G30))*F30>H30,H30,(H30+(N30-G30))*F30) -> 0 | L30: =(D30-D30*F30)+IF((G30-N30*F30)<0,0,(G30-N30*F30)) -> 0 | N30: =AI49 -> 0 | Q30: =IF($M30=Q$17, $L30, 0) -> 0 | R30: 0 | S30: 0 | T30: 0 | U30: =IF($M30=U$17, $L30, 0) -> 0 | V30: 0 | W30: 0 | X30: 0 | Y30: 0 | Z30: 0 | AA30: 0 | AB30: 0 | AC30: 0 | AD30: 0 | AE30: 0 | AF30: =IF($M30=AF$17, $L30, 0) -> 0 | AG30: 0 | AI30: =IF($M30=AI$17, $H30, 0) -> 0 | AJ30: 0 | AK30: 0
A31: Grass Swale C/D Soils | D31: =1/12*(0.95*B31+$B$13*C31)*43560 -> 0 | E31: Reduce volume conveyed through grass swale by 0.1 inches. | F31: 0.1 | G31: =V49 -> 0 | H31: =D31+G31 -> 0 | I31: N/A | J31: N/A | K31: =IF((H31+(N31-G31))*F31>H31,H31,(H31+(N31-G31))*F31) -> 0 | L31: =(D31-D31*F31)+IF((G31-N31*F31)<0,0,(G31-N31*F31)) -> 0 | N31: =AJ49 -> 0 | Q31: =IF($M31=Q$17, $L31, 0) -> 0 | R31: 0 | S31: 0 | T31: 0 | U31: 0 | V31: 0 | W31: 0 | X31: 0 | Y31: 0 | Z31: 0 | AA31: 0 | AB31: 0 | AC31: 0 | AD31: 0 | AE31: 0 | AF31: =IF($M31=AF$17, $L31, 0) -> 0 | AG31: 0 | AI31: 0 | AJ31: 0 | AK31: 0
A32: Grass Swale in C/D Soil with Soil Amendments | D32: =1/12*(0.95*B32+$B$13*C32)*43560 -> 0 | E32: Reduce volume conveyed through grass swale by 0.2 inches. | F32: 0.2 | G32: =W49 -> 0 | H32: =D32+G32 -> 0 | I32: N/A | J32: N/A | K32: 0 | L32: 0 | N32: =AK49 -> 0 | Q32: =IF($M32=Q$17, $L32, 0) -> 0 | R32: 0 | S32: 0 | T32: 0 | U32: 0 | V32: 0 | W32: 0 | X32: 0 | Y32: 0 | Z32: 0 | AA32: 0 | AB32: 0 | AC32: 0 | AD32: 0 | AE32: 0 | AF32: =IF($M32=AF$17, $L32, 0) -> 0 | AG32: 0 | AI32: 0 | AJ32: 0 | AK32: 0
A33: 5. Water Quality Swale (4.2.3.A) | AG33: 0
A34: Water Quality Swale, Level 1 | D34: =1/12*(0.95*B34+$B$13*C34)*43560 -> 0 | E34: Subtract 55% of the provided storage volume. | F34: 0.55 | G34: =X49 -> 0 | H34: =D34+G34 -> 0 | I34: N/A | K34: =IF(J34*F34<=H34,J34*F34,H34) -> 0 | L34: 0 | Q34: =IF($M34=Q$17, $L34, 0) -> 0 | R34: 0 | S34: 0 | T34: 0 | U34: =IF($M34=U$17, $L34, 0) -> 0 | V34: 0 | W34: 0 | X34: 0 | Y34: 0 | Z34: 0 | AA34: 0 | AB34: 0 | AC34: 0 | AD34: 0 | AE34: 0 | AF34: =IF($M34=AF$17, $L34, 0) -> 0 | AG34: 0 | AI34: =IF($M34=AI$17, $H34, 0) -> 0 | AJ34: 0 | AK34: 0
A35: Water Quality Swale, Level 2 | D35: =1/12*(0.95*B35+$B$13*C35)*43560 -> 0 | E35: Subtract 100% of the provided storage volume. | F35: 1 | G35: =Y49 -> 0 | H35: =D35+G35 -> 0 | I35: N/A | K35: =IF(J35*F35<=H35,J35*F35,H35) -> 0 | L35: 0 | Q35: =IF($M35=Q$17, $L35, 0) -> 0 | R35: 0 | S35: 0 | T35: 0 | U35: 0 | V35: 0 | W35: 0 | X35: 0 | Y35: 0 | Z35: 0 | AA35: 0 | AB35: 0 | AC35: 0 | AD35: 0 | AE35: 0 | AF35: =IF($M35=AF$17, $L35, 0) -> 0 | AG35: 0 | AI35: 0 | AJ35: 0 | AK35: 0
A36: 6. Bioretention (4.2.3) | AG36: 0
A37: Bioretention, Level 1 or Urban Bioretention (4.2.3.B) | D37: =1/12*(0.95*B37+$B$13*C37)*43560 -> 0 | E37: Subtract 60% of the provided storage volume. | F37: 0.6 | G37: =Z49 -> 0 | H37: =D37+G37 -> 0 | I37: N/A | K37: =IF(J37*F37<=H37,J37*F37,H37) -> 0 | L37: 0 | Q37: =IF($M37=Q$17, $L37, 0) -> 0 | R37: 0 | S37: 0 | T37: 0 | U37: =IF($M37=U$17, $L37, 0) -> 0 | V37: 0 | W37: 0 | X37: 0 | Y37: 0 | Z37: 0 | AA37: 0 | AB37: 0 | AC37: 0 | AD37: 0 | AE37: 0 | AF37: =IF($M37=AF$17, $L37, 0) -> 0 | AG37: 0 | AI37: =IF($M37=AI$17, $H37, 0) -> 0 | AJ37: 0 | AK37: 0
A38: Bioretention, Level 2 | D38: =1/12*(0.95*B38+$B$13*C38)*43560 -> 0 | E38: Subtract 100% of the provided storage volume. | F38: 1 | G38: =AA49 -> 0 | H38: =D38+G38 -> 0 | I38: N/A | K38: =IF(J38*F38<=H38,J38*F38,H38) -> 0 | L38: 0 | Q38: 0 | R38: 0 | S38: 0 | T38: 0 | U38: 0 | V38: 0 | W38: 0 | X38: 0 | Y38: 0 | Z38: 0 | AA38: 0 | AB38: 0 | AC38: 0 | AD38: 0 | AE38: =IF($M38=AE$17, $L38, 0) -> 0 | AF38: =IF($M38=AF$17, $L38, 0) -> 0 | AG38: 0 | AI38: 0 | AJ38: 0 | AK38: 0
A39: 7. Infiltration (4.2.6) or Regenerative Stormwater Conveyance (4.2.7) | AG39: 0
A40: Infiltration | D40: =1/12*(0.95*B40+$B$13*C40)*43560 -> 0 | E40: Subtract 100% of the provided storage volume. | F40: 1 | G40: =AB49 -> 0 | H40: =D40+G40 -> 0 | I40: N/A | K40: =IF(J40*F40<=H40,J40*F40,H40) -> 0 | L40: 0 | Q40: =IF($M40=Q$17, $L40, 0) -> 0 | R40: =IF($M40=R$17, $L40, 0) -> 0 | S40: 0 | T40: 0 | U40: =IF($M40=U$17, $L40, 0) -> 0 | V40: =IF($M40=V$17, $L40, 0) -> 0 | W40: =IF($M40=W$17, $L40, 0) -> 0 | X40: 0 | Y40: 0 | Z40: 0 | AA40: 0 | AB40: 0 | AC40: 0 | AD40: 0 | AE40: 0 | AF40: =IF($M40=AF$17, $L40, 0) -> 0 | AG40: 0 | AI40: =IF($M40=AI$17, $H40, 0) -> 0 | AJ40: =IF($M40=AJ$17, $H40, 0) -> 0 | AK40: =IF($M40=AK$17, $H40, 0) -> 0
A41: 8. Filtration Practice (4.2.10) or Stormwater Wetland (4.2.11)* | AG41: 0
A42: *Filtration Practice/Stormwater Wetland do NOT receive runoff reduction values, but do have associated pollutant removal values | D42: =1/12*(0.95*B42+$B$13*C42)*43560 -> 0 | E42: 0% runoff reduction | F42: 0 | G42: =AC49 -> 0 | H42: =D42+G42 -> 0 | I42: N/A | J42: =0.1*H42 -> 0 | K42: =IF(J42*F42<=H42,J42*F42,H42) -> 0 | L42: 0 | Q42: =IF($M42=Q$17, $L42, 0) -> 0 | R42: =IF($M42=R$17, $L42, 0) -> 0 | S42: 0 | T42: 0 | U42: =IF($M42=U$17, $L42, 0) -> 0 | V42: =IF($M42=V$17, $L42, 0) -> 0 | W42: =IF($M42=W$17, $L42, 0) -> 0 | X42: 0 | Y42: 0 | Z42: 0 | AA42: 0 | AB42: 0 | AC42: 0 | AD42: 0 | AE42: 0 | AF42: =IF($M42=AF$17, $L42, 0) -> 0 | AG42: 0 | AI42: =IF($M42=AI$17, $H42, 0) -> 0 | AJ42: 0 | AK42: 0
A43: 9. Sheetflow to Filter/Conservation Area (4.2.1)
A44: Sheetflow to Conservation Area with A/B Soils | D44: =1/12*(0.95*B44+$B$13*C44)*43560 -> 0 | E44: Reduce volume conveyed to conservation area by 9 cu. ft per each 100 sq. ft. of conservation area. | F44: N/A | G44: =AD49 -> 0 | H44: =D44+G44 -> 0 | J44: N/A | K44: =IF(I44*0.09<=H44,I44*0.09,H44) -> 0 | L44: 0 | Q44: =IF($M44=Q$17, $L44, 0) -> 0 | R44: 0 | S44: 0 | T44: 0 | U44: =IF($M44=U$17, $L44, 0) -> 0 | V44: 0 | W44: 0 | X44: 0 | Y44: 0 | Z44: 0 | AA44: 0 | AB44: 0 | AC44: 0 | AD44: 0 | AE44: 0 | AF44: 0 | AG44: 0 | AI44: 0 | AJ44: 0 | AK44: 0
A45: Sheetflow to Conservation Area with C/D Soils | D45: =1/12*(0.95*B45+$B$13*C45)*43560 -> 0 | E45: Reduce volume conveyed to conservation area by 4 cu. ft per each 100 sq. ft. of conservation area. | F45: N/A | G45: =AE49 -> 0 | H45: =D45+G45 -> 0 | J45: N/A | K45: =IF(I45*0.04<=H45,I45*0.04,H45) -> 0 | L45: 0 | Q45: 0 | R45: 0 | S45: 0 | T45: 0 | U45: 0 | V45: 0 | W45: 0 | X45: 0 | Y45: 0 | Z45: 0 | AA45: 0 | AB45: 0 | AC45: 0 | AD45: 0 | AE45: 0 | AF45: 0 | AG45: 0 | AI45: 0 | AJ45: 0 | AK45: 0
A46: Sheetflow to Vegetated Filter Strip in A/B Soils or Compost Amended C/D Soils | D46: =1/12*(0.95*B46+$B$13*C46)*43560 -> 0 | E46: Reduce volume conveyed to conservation area by 6 cu. ft per each 100 sq. ft. of filter strip. | F46: N/A | G46: =AF49 -> 0 | H46: =D46+G46 -> 0 | J46: N/A | K46: =IF(I46*0.06<=H46,I46*0.06,H46) -> 0 | L46: 0 | Q46: 0 | R46: 0 | S46: 0 | T46: 0 | U46: 0 | V46: 0 | W46: 0 | X46: 0 | Y46: 0 | Z46: 0 | AA46: 0 | AB46: 0 | AC46: 0 | AD46: 0 | AE46: 0 | AF46: 0 | AG46: 0 | AI46: 0 | AJ46: 0 | AK46: 0
A47: Sheet flow to Vegetated Filter Strip in C/D Soils | D47: =1/12*(0.95*B47+$B$13*C47)*43560 -> 0 | E47: Reduce volume conveyed to conservation area by 3 cu. ft per each 100 sq. ft. of filter strip. | F47: N/A | G47: =AG49 -> 0 | H47: =D47+G47 -> 0 | J47: N/A | K47: =IF(I47*0.03<=H47,I47*0.03,H47) -> 0 | L47: =H47-K47 -> 0 | Q47: 0 | R47: 0 | S47: 0 | T47: 0 | U47: 0 | V47: 0 | W47: 0 | X47: 0 | Y47: 0 | Z47: 0 | AA47: 0 | AB47: 0 | AC47: 0 | AD47: 0 | AE47: 0 | AF47: 0 | AG47: 0 | AI47: 0 | AJ47: 0 | AK47: 0
A48: Totals | B48: =IF(SUM(B17:B47)>F10,"Please Check the Contributing Areas: " &SUM(B17:B47)-F10&" acre Over",SUM(B17:B47)) -> 0 | C48: =IF(SUM(C17:C47)>F9,"Please Check the Contributing Areas: " &SUM(C17:C47)-F9&" acre Over",SUM(C17:C47)) -> 0 | J48: Runoff Reduction Volume Achieved for Drainage Area A: | K48: =SUM(K17:K47) -> 0 | L48: See Runoff Reduction Summary Tab for Detailed Results
J49: Runoff Reduction Volume Balance for Total Site | K49: =ROUND('Site Data'!B88-'D.A. A'!K48-'D.A. B'!K48-'D.A. C'!K48-'D.A. D'!K48-'D.A. E'!K48,0) -> 0 | L49: =IF(ROUND('Site Data'!B88-'D.A. A'!K48-'D.A. B'!K48-'D.A. C'!K48-'D.A. D'!K48-'D.A. E'!K48,0)<0,"More Credit than needed has been provided","") ->  | P49: Totals | Q49: =SUM(Q17:Q48) -> 0 | R49: 0 | S49: 0 | T49: 0 | U49: 0 | V49: 0 | W49: 0 | X49: 0 | Y49: 0 | Z49: 0 | AA49: 0 | AB49: 0 | AC49: 0 | AD49: 0 | AE49: 0 | AF49: 0 | AG49: 0 | AI49: =SUM(AI17:AI48) -> 0 | AJ49: 0 | AK49: 0
A54: Downstream Options
A55: =A21 -> Simple Disconnection to A/B Soils or Soil-Amended Filter Path in C/D Soils (4.2.2, Appendix D)
A56: =A22 -> Simple Disconnection to C/D Soils (4.2.2)
A57: To Residential Rain Garden (4.2.3.C)
A58: =A24 -> To Rainwater Harvesting (4.2.8)
A59: =A30 -> Grass Swale A/B Soils
A60: =A31 -> Grass Swale C/D Soils
A61: =A32 -> Grass Swale in C/D Soil with Soil Amendments
A62: =A34 -> Water Quality Swale, Level 1
A63: =A35 -> Water Quality Swale, Level 2
A64: =A37 -> Bioretention, Level 1 or Urban Bioretention (4.2.3.B)
A65: =A38 -> Bioretention, Level 2
A66: =A40 -> Infiltration
A67: =A42 -> *Filtration Practice/Stormwater Wetland do NOT receive runoff reduction values, but do have associated pollutant removal values
A68: =A44 -> Sheetflow to Conservation Area with A/B Soils
A69: =A45 -> Sheetflow to Conservation Area with C/D Soils
A70: =A46 -> Sheetflow to Vegetated Filter Strip in A/B Soils or Compost Amended C/D Soils
A71: =A47 -> Sheet flow to Vegetated Filter Strip in C/D Soils

Sheet D.A. B
A1: West Virginia MS4 Stormwater Compliance Spreadsheet v2.0; April 2013
A3: Drainage Area B
A6: Drainage Area B Post-Development Land Cover (acres)
A7: Land Cover Type | B7: HSG A soils | C7: HSG B Soils | D7: HSG C Soils | E7: HSG D Soils | F7: Totals
A8: Forest/Preserved Open Space | B8: ='Site Data'!B24 -> 0 | C8: ='Site Data'!C24 -> 0 | D8: ='Site Data'!D24 -> 0 | E8: ='Site Data'!E24 -> 0 | F8: =SUM(B8:E8) -> 0 | H8: ="RRv Achieved for Drainage Area "&RIGHT(A3,1)&" (cubic feet)" -> RRv Achieved for Drainage Area B (cubic feet) | K8: =K48 -> 0
A9: Managed Turf | B9: ='Site Data'!B25 -> 0 | C9: ='Site Data'!C25 -> 0 | D9: ='Site Data'!D25 -> 0 | E9: ='Site Data'!E25 -> 0 | F9: =SUM(B9:E9) -> 0 | H9: ="RRv Balance for Drainage Area "&RIGHT(A3,1)&" (cubic feet)" -> RRv Balance for Drainage Area B (cubic feet) | K9: ='Site Data'!B86/12*B12*F11*43560-K8 -> 0 | L9: =IFERROR(L49,"") -> 
A10: Impervious Cover | B10: ='Site Data'!B26 -> 0 | C10: ='Site Data'!C26 -> 0 | D10: ='Site Data'!D26 -> 0 | E10: ='Site Data'!E26 -> 0 | F10: =SUM(B10:E10) -> 0 | H10: RRv Balance for Total Site (cubic feet) | K10: =K49 -> 0
E11: Total | F11: =SUM(F8:F10) -> 0
A12: Rv(drainage area) | B12: =IFERROR(B13*F9/F11+B14*F10/F11,0) -> 0
A13: Rv(turf) | B13: =IF(F9>0,SUMPRODUCT(B9:E9,'Site Data'!B61:E61)/F9,0) -> 0
A14: Rv(impervious) | B14: 0.95
A16: Apply Runoff Reduction Practices
A17: Runoff Reduction Practice | B17: Impervious Cover in Contributing Drainage Area (acres) | C17: Managed Turf in Contributing Drainage Area (acres) | D17: Volume Received by Practice (cubic feet) | E17: Description of Credit | F17: % Credit | G17: Volume Received from Upstream Practices (cubic feet) | H17: Total Volume Received by Practice (cubic feet) | I17: Disconnection Area of Practice (square feet) | J17: Storage Volume Provided by Practice (cubic feet) | K17: Runoff Reduction (cubic feet) | L17: Remaining Volume (cubic feet) | M17: Downstream Practice | Q17: =A21 -> Simple Disconnection to A/B Soils or Soil-Amended Filter Path in C/D Soils (4.2.2, Appendix D) | R17: =A22 -> Simple Disconnection to C/D Soils (4.2.2) | S17: =A23 -> To Residential Rain Garden (4.2.3.C) | T17: =A24 -> To Rainwater Harvesting (4.2.8) | U17: =A30 -> Grass Swale A/B Soils | V17: =A31 -> Grass Swale C/D Soils | W17: =A32 -> Grass Swale in C/D Soil with Soil Amendments | X17: =A34 -> Water Quality Swale, Level 1 | Y17: =A35 -> Water Quality Swale, Level 2 | Z17: =A37 -> Bioretention, Level 1 or Urban Bioretention (4.2.3.B) | AA17: =A38 -> Bioretention, Level 2 | AB17: =A40 -> Infiltration | AC17: =A42 -> *Filtration Practice/Stormwater Wetland do NOT receive runoff reduction values, but do have associated pollutant removal values | AD17: =A44 -> Sheetflow to Conservation Area with A/B Soils | AE17: =A45 -> Sheetflow to Conservation Area with C/D Soils | AF17: =A46 -> Sheetflow to Vegetated Filter Strip in A/B Soils or Compost Amended C/D Soils | AG17: =A47 -> Sheet flow to Vegetated Filter Strip in C/D Soils | AI17: =A30 -> Grass Swale A/B Soils | AJ17: =A31 -> Grass Swale C/D Soils | AK17: =A32 -> Grass Swale in C/D Soil with Soil Amendments
A18: 1. Vegetated Roof (4.2.9)
A19: Vegetated Roof | C19: N/A | D19: =1/12*0.95*B19*43560 -> 0 | E19: Reduce volume conveyed through green roof by 100%. | F19: 1 | G19: N/A | H19: =D19 -> 0 | I19: N/A | K19: =IF(J19*F19<=H19,J19*F19,H19) -> 0 | L19: =H19-K19 -> 0 | Q19: =IF($M19=Q$17, $L19, 0) -> 0 | R19: =IF($M19=R$17, $L19, 0) -> 0 | S19: 0 | T19: 0 | U19: =IF($M19=U$17, $H19, 0) -> 0 | V19: =IF($M19=V$17, $H19, 0) -> 0 | W19: =IF($M19=W$17, $H19, 0) -> 0 | X19: 0 | Y19: 0 | Z19: 0 | AA19: 0 | AB19: 0 | AC19: 0 | AD19: 0 | AE19: 0 | AF19: =IF($M19=AF$17, $L19, 0) -> 0 | AG19: =IF($M19=AG$17, $L19, 0) -> 0 | AI19: =IF($M19=AI$17, $H19, 0) -> 0 | AJ19: =IF($M19=AJ$17, $H19, 0) -> 0 | AK19: =IF($M19=AK$17, $H19, 0) -> 0
A20: 2. Impervious Surface Disconnection/Rooftop Practices | AG20: =IF($M20=AG$17, $L20, 0) -> 0
A21: Simple Disconnection to A/B Soils or Soil-Amended Filter Path in C/D Soils (4.2.2, Appendix D) | C21: N/A | D21: =1/12*0.95*B21*43560 -> 0 | E21: Reduce volume conveyed to conservation area by 4 cu. ft per each 100 sq. ft. of pervious receiving area. | F21: N/A | G21: =Q49 -> 0 | H21: =D21+G21 -> 0 | J21: N/A | K21: =IF(I21*0.04<=H21,I21*0.04,H21) -> 0 | L21: 0 | Q21: =IF($M21=Q$17, $L21, 0) -> 0 | R21: 0 | S21: 0 | T21: 0 | U21: =IF($M21=U$17, $H21, 0) -> 0 | V21: 0 | W21: 0 | X21: 0 | Y21: 0 | Z21: 0 | AA21: 0 | AB21: 0 | AC21: 0 | AD21: 0 | AE21: 0 | AF21: =IF($M21=AF$17, $L21, 0) -> 0 | AG21: 0 | AI21: =IF($M21=AI$17, $H21, 0) -> 0 | AJ21: 0 | AK21: 0
A22: Simple Disconnection to C/D Soils (4.2.2) | C22: N/A | D22: =1/12*0.95*B22*43560 -> 0 | E22: Reduce volume conveyed to conservation area by 2 cu. ft per each 100 sq. ft. of pervious receiving area. | F22: N/A | G22: =R49 -> 0 | H22: =D22+G22 -> 0 | J22: N/A | K22: =IF(I22*0.02<=H22,I22*0.02,H22) -> 0 | L22: 0 | Q22: =IF($M22=Q$17, $L22, 0) -> 0 | R22: 0 | S22: 0 | T22: 0 | U22: 0 | V22: 0 | W22: 0 | X22: 0 | Y22: 0 | Z22: 0 | AA22: 0 | AB22: 0 | AC22: 0 | AD22: 0 | AE22: 0 | AF22: =IF($M22=AF$17, $L22, 0) -> 0 | AG22: 0 | AI22: 0 | AJ22: 0 | AK22: 0
A23: To Residential Rain Garden (4.2.3.C) | C23: N/A | D23: =1/12*0.95*B23*43560 -> 0 | E23: 60% volume reduction for the Design Volume of the practice | F23: 0.6 | G23: =S49 -> 0 | H23: =D23+G23 -> 0 | I23: N/A | K23: =IF(J23*F23<=H23,J23*F23,H23) -> 0 | L23: 0 | Q23: =IF($M23=Q$17, $L23, 0) -> 0 | R23: 0 | S23: 0 | T23: 0 | U23: 0 | V23: 0 | W23: 0 | X23: 0 | Y23: 0 | Z23: 0 | AA23: 0 | AB23: 0 | AC23: 0 | AD23: 0 | AE23: 0 | AF23: =IF($M23=AF$17, $L23, 0) -> 0 | AG23: 0 | AI23: 0 | AJ23: 0 | AK23: 0
A24: To Rainwater Harvesting (4.2.8) | C24: N/A | D24: =1/12*0.95*B24*43560 -> 0 | E24: Subtract a variable % of the provided Design Volume based on annual beneficial use (see Cistern Design Spreadsheet). | G24: =T49 -> 0 | H24: =D24+G24 -> 0 | I24: N/A | K24: =IF(J24*F24<=H24,J24*F24,H24) -> 0 | L24: 0 | Q24: =IF($M24=Q$17, $L24, 0) -> 0 | R24: 0 | S24: 0 | T24: 0 | U24: 0 | V24: 0 | W24: 0 | X24: 0 | Y24: 0 | Z24: 0 | AA24: 0 | AB24: 0 | AC24: 0 | AD24: 0 | AE24: 0 | AF24: =IF($M24=AF$17, $L24, 0) -> 0 | AG24: 0 | AI24: 0 | AJ24: 0 | AK24: 0
A25: 3. Permeable Pavement (4.2.4) | N25: Storage Volume Provided by Sump Below Underdrain (cubic feet) | O25: Storage Volume Provided by Reservoir Layer Above Underdrain (cubic feet)
A26: Permeable Pavement, Level 1 | C26: N/A | D26: =1/12*0.95*B26*43560 -> 0 | E26: Subtract 45% of the provided storage volume. | F26: 0.45 | G26: N/A | H26: =D26 -> 0 | I26: N/A | K26: =IF(J26*F26<=H26,J26*F26,H26) -> 0 | L26: 0 | Q26: =IF($M26=Q$17, $L26, 0) -> 0 | R26: 0 | S26: 0 | T26: 0 | U26: =IF($M26=U$17, $H26, 0) -> 0 | V26: 0 | W26: 0 | X26: 0 | Y26: 0 | Z26: 0 | AA26: 0 | AB26: 0 | AC26: 0 | AD26: 0 | AE26: 0 | AF26: =IF($M26=AF$17, $L26, 0) -> 0 | AG26: 0 | AI26: =IF($M26=AI$17, $H26, 0) -> 0 | AJ26: 0 | AK26: 0
A27: Permeable Pavement, Level 2 (infiltration) | C27: N/A | D27: =1/12*0.95*B27*43560 -> 0 | E27: Subtract 100% of the provided storage volume. | F27: 1 | G27: N/A | H27: =D27 -> 0 | I27: N/A | K27: =IF(J27*F27<=H27,J27*F27,H27) -> 0 | L27: 0 | Q27: =IF($M27=Q$17, $L27, 0) -> 0 | R27: 0 | S27: 0 | T27: 0 | U27: 0 | V27: 0 | W27: 0 | X27: 0 | Y27: 0 | Z27: 0 | AA27: 0 | AB27: 0 | AC27: 0 | AD27: 0 | AE27: 0 | AF27: =IF($M27=AF$17, $L27, 0) -> 0 | AG27: 0 | AI27: 0 | AJ27: 0 | AK27: 0
A28: Permeable Pavement, Level 2 (infiltration & underdrain) | C28: N/A | D28: =1/12*0.95*B28*43560 -> 0 | E28: Subtract 100% of the provided storage volume of sump and 45% of the provided storage volume in reservoir layer. | G28: N/A | H28: =D28 -> 0 | I28: N/A | K28: =IF(N28*F27+O28*F26<=H28,N28*F27+O28*F26,H28) -> 0 | L28: 0 | Q28: =IF($M28=Q$17, $L28, 0) -> 0 | R28: 0 | S28: 0 | T28: 0 | U28: =IF($M28=U$17, $H28, 0) -> 0 | V28: =IF($M28=V$17, $H28, 0) -> 0 | W28: =IF($M28=W$17, $H28, 0) -> 0 | X28: 0 | Y28: 0 | Z28: 0 | AA28: 0 | AB28: 0 | AC28: 0 | AD28: 0 | AE28: 0 | AF28: =IF($M28=AF$17, $L28, 0) -> 0 | AG28: 0 | AI28: =IF($M28=AI$17, $H28, 0) -> 0 | AJ28: =IF($M28=AJ$17, $H28, 0) -> 0 | AK28: =IF($M28=AK$17, $H28, 0) -> 0
A29: 4. Grass Swale (4.2.5) | N29: Water volume associated with contributing area (cubic feet) | AG29: 0
A30: Grass Swale A/B Soils | D30: =1/12*(0.95*B30+$B$13*C30)*43560 -> 0 | E30: Reduce volume conveyed through grass swale by 0.2 inches. | F30: 0.2 | G30: =U49 -> 0 | H30: =D30+G30 -> 0 | I30: N/A | J30: N/A | K30: =IF((H30+(N30-G30))*F30>H30,H30,(H30+(N30-G30))*F30) -> 0 | L30: =(D30-D30*F30)+IF((G30-N30*F30)<0,0,(G30-N30*F30)) -> 0 | N30: =AI49 -> 0 | Q30: =IF($M30=Q$17, $L30, 0) -> 0 | R30: 0 | S30: 0 | T30: 0 | U30: =IF($M30=U$17, $H30, 0) -> 0 | V30: 0 | W30: 0 | X30: 0 | Y30: 0 | Z30: 0 | AA30: 0 | AB30: 0 | AC30: 0 | AD30: 0 | AE30: 0 | AF30: =IF($M30=AF$17, $L30, 0) -> 0 | AG30: 0 | AI30: =IF($M30=AI$17, $H30, 0) -> 0 | AJ30: 0 | AK30: 0
A31: Grass Swale C/D Soils | D31: =1/12*(0.95*B31+$B$13*C31)*43560 -> 0 | E31: Reduce volume conveyed through grass swale by 0.1 inches. | F31: 0.1 | G31: =V49 -> 0 | H31: =D31+G31 -> 0 | I31: N/A | J31: N/A | K31: =IF((H31+(N31-G31))*F31>H31,H31,(H31+(N31-G31))*F31) -> 0 | L31: =(D31-D31*F31)+IF((G31-N31*F31)<0,0,(G31-N31*F31)) -> 0 | N31: =AJ49 -> 0 | Q31: =IF($M31=Q$17, $L31, 0) -> 0 | R31: 0 | S31: 0 | T31: 0 | U31: 0 | V31: 0 | W31: 0 | X31: 0 | Y31: 0 | Z31: 0 | AA31: 0 | AB31: 0 | AC31: 0 | AD31: 0 | AE31: 0 | AF31: =IF($M31=AF$17, $L31, 0) -> 0 | AG31: 0 | AI31: 0 | AJ31: 0 | AK31: 0
A32: Grass Swale in C/D Soil with Soil Amendments | D32: =1/12*(0.95*B32+$B$13*C32)*43560 -> 0 | E32: Reduce volume conveyed through grass swale by 0.2 inches. | F32: 0.2 | G32: =W49 -> 0 | H32: =D32+G32 -> 0 | I32: N/A | J32: N/A | K32: 0 | L32: 0 | N32: =AK49 -> 0 | Q32: =IF($M32=Q$17, $L32, 0) -> 0 | R32: 0 | S32: 0 | T32: 0 | U32: 0 | V32: 0 | W32: 0 | X32: 0 | Y32: 0 | Z32: 0 | AA32: 0 | AB32: 0 | AC32: 0 | AD32: 0 | AE32: 0 | AF32: =IF($M32=AF$17, $L32, 0) -> 0 | AG32: 0 | AI32: 0 | AJ32: 0 | AK32: 0
A33: 5. Water Quality Swale (4.2.3.A) | AG33: 0
A34: Water Quality Swale, Level 1 | D34: =1/12*(0.95*B34+$B$13*C34)*43560 -> 0 | E34: Subtract 55% of the provided storage volume. | F34: 0.55 | G34: =X49 -> 0 | H34: =D34+G34 -> 0 | I34: N/A | K34: =IF(J34*F34<=H34,J34*F34,H34) -> 0 | L34: 0 | Q34: =IF($M34=Q$17, $L34, 0) -> 0 | R34: 0 | S34: 0 | T34: 0 | U34: =IF($M34=U$17, $H34, 0) -> 0 | V34: 0 | W34: 0 | X34: 0 | Y34: 0 | Z34: 0 | AA34: 0 | AB34: 0 | AC34: 0 | AD34: 0 | AE34: 0 | AF34: =IF($M34=AF$17, $L34, 0) -> 0 | AG34: 0 | AI34: =IF($M34=AI$17, $H34, 0) -> 0 | AJ34: 0 | AK34: 0
A35: Water Quality Swale, Level 2 | D35: =1/12*(0.95*B35+$B$13*C35)*43560 -> 0 | E35: Subtract 100% of the provided storage volume. | F35: 1 | G35: =Y49 -> 0 | H35: =D35+G35 -> 0 | I35: N/A | K35: =IF(J35*F35<=H35,J35*F35,H35) -> 0 | L35: 0 | Q35: =IF($M35=Q$17, $L35, 0) -> 0 | R35: 0 | S35: 0 | T35: 0 | U35: 0 | V35: 0 | W35: 0 | X35: 0 | Y35: 0 | Z35: 0 | AA35: 0 | AB35: 0 | AC35: 0 | AD35: 0 | AE35: 0 | AF35: =IF($M35=AF$17, $L35, 0) -> 0 | AG35: 0 | AI35: 0 | AJ35: 0 | AK35: 0
A36: 6. Bioretention (4.2.3) | AG36: 0
A37: Bioretention, Level 1 or Urban Bioretention (4.2.3.B) | D37: =1/12*(0.95*B37+$B$13*C37)*43560 -> 0 | E37: Subtract 60% of the provided storage volume. | F37: 0.6 | G37: =Z49 -> 0 | H37: =D37+G37 -> 0 | I37: N/A | K37: =IF(J37*F37<=H37,J37*F37,H37) -> 0 | L37: 0 | Q37: =IF($M37=Q$17, $L37, 0) -> 0 | R37: 0 | S37: 0 | T37: 0 | U37: =IF($M37=U$17, $H37, 0) -> 0 | V37: 0 | W37: 0 | X37: 0 | Y37: 0 | Z37: 0 | AA37: 0 | AB37: 0 | AC37: 0 | AD37: 0 | AE37: 0 | AF37: =IF($M37=AF$17, $L37, 0) -> 0 | AG37: 0 | AI37: =IF($M37=AI$17, $H37, 0) -> 0 | AJ37: 0 | AK37: 0
A38: Bioretention, Level 2 | D38: =1/12*(0.95*B38+$B$13*C38)*43560 -> 0 | E38: Subtract 100% of the provided storage volume. | F38: 1 | G38: =AA49 -> 0 | H38: =D38+G38 -> 0 | I38: N/A | K38: =IF(J38*F38<=H38,J38*F38,H38) -> 0 | L38: 0 | Q38: 0 | R38: 0 | S38: 0 | T38: 0 | U38: 0 | V38: 0 | W38: 0 | X38: 0 | Y38: 0 | Z38: 0 | AA38: 0 | AB38: 0 | AC38: 0 | AD38: 0 | AE38: =IF($M38=AE$17, $L38, 0) -> 0 | AF38: =IF($M38=AF$17, $L38, 0) -> 0 | AG38: 0 | AI38: 0 | AJ38: 0 | AK38: 0
A39: 7. Infiltration (4.2.6) or Regenerative Stormwater Conveyance (4.2.7) | AG39: 0
A40: Infiltration | D40: =1/12*(0.95*B40+$B$13*C40)*43560 -> 0 | E40: Subtract 100% of the provided storage volume. | F40: 1 | G40: =AB49 -> 0 | H40: =D40+G40 -> 0 | I40: N/A | K40: =IF(J40*F40<=H40,J40*F40,H40) -> 0 | L40: 0 | Q40: =IF($M40=Q$17, $L40, 0) -> 0 | R40: =IF($M40=R$17, $L40, 0) -> 0 | S40: 0 | T40: 0 | U40: =IF($M40=U$17, $H40, 0) -> 0 | V40: =IF($M40=V$17, $H40, 0) -> 0 | W40: =IF($M40=W$17, $H40, 0) -> 0 | X40: 0 | Y40: 0 | Z40: 0 | AA40: 0 | AB40: 0 | AC40: 0 | AD40: 0 | AE40: 0 | AF40: =IF($M40=AF$17, $L40, 0) -> 0 | AG40: 0 | AI40: =IF($M40=AI$17, $H40, 0) -> 0 | AJ40: =IF($M40=AJ$17, $H40, 0) -> 0 | AK40: =IF($M40=AK$17, $H40, 0) -> 0
A41: 8. Filtration Practice (4.2.10) or Stormwater Wetland (4.2.11)* | AG41: 0
A42: *Filtration Practice/Stormwater Wetland do NOT receive runoff reduction values, but do have associated pollutant removal values | D42: =1/12*(0.95*B42+$B$13*C42)*43560 -> 0 | E42: 0% runoff reduction | F42: 0 | G42: =AC49 -> 0 | H42: =D42+G42 -> 0 | I42: N/A | J42: =0.1*H42 -> 0 | K42: =IF(J42*F42<=H42,J42*F42,H42) -> 0 | L42: 0 | Q42: =IF($M42=Q$17, $L42, 0) -> 0 | R42: =IF($M42=R$17, $L42, 0) -> 0 | S42: 0 | T42: 0 | U42: =IF($M42=U$17, $H42, 0) -> 0 | V42: 0 | W42: 0 | X42: 0 | Y42: 0 | Z42: 0 | AA42: 0 | AB42: 0 | AC42: 0 | AD42: 0 | AE42: 0 | AF42: =IF($M42=AF$17, $L42, 0) -> 0 | AG42: 0 | AI42: =IF($M42=AI$17, $H42, 0) -> 0 | AJ42: 0 | AK42: 0
A43: 9. Sheetflow to Filter/Conservation Area (4.2.1) | Q43: =IF($M43=Q$17, $L43, 0) -> 0 | R43: 0 | S43: 0 | T43: 0 | X43: 0 | Y43: 0 | Z43: 0 | AA43: 0 | AB43: 0 | AC43: 0 | AD43: 0 | AE43: 0 | AF43: 0 | AG43: 0
A44: Sheetflow to Conservation Area with A/B Soils | D44: =1/12*(0.95*B44+$B$13*C44)*43560 -> 0 | E44: Reduce volume conveyed to conservation area by 9 cu. ft per each 100 sq. ft. of conservation area. | F44: N/A | G44: =AD49 -> 0 | H44: =D44+G44 -> 0 | J44: N/A | K44: =IF(I44*0.09<=H44,I44*0.09,H44) -> 0 | L44: 0 | Q44: 0 | R44: 0 | S44: 0 | T44: 0 | U44: 0 | V44: 0 | W44: 0 | X44: 0 | Y44: 0 | Z44: 0 | AA44: 0 | AB44: 0 | AC44: 0 | AD44: 0 | AE44: 0 | AF44: 0 | AG44: 0 | AI44: 0 | AJ44: 0 | AK44: 0
A45: Sheetflow to Conservation Area with C/D Soils | D45: =1/12*(0.95*B45+$B$13*C45)*43560 -> 0 | E45: Reduce volume conveyed to conservation area by 4 cu. ft per each 100 sq. ft. of conservation area. | F45: N/A | G45: =AE49 -> 0 | H45: =D45+G45 -> 0 | J45: N/A | K45: =IF(I45*0.04<=H45,I45*0.04,H45) -> 0 | L45: 0 | Q45: 0 | R45: 0 | S45: 0 | T45: 0 | U45: =IF($M45=U$17, $H45, 0) -> 0 | V45: 0 | W45: 0 | X45: 0 | Y45: 0 | Z45: 0 | AA45: 0 | AB45: 0 | AC45: 0 | AD45: 0 | AE45: 0 | AF45: 0 | AG45: 0 | AI45: 0 | AJ45: 0 | AK45: 0
A46: Sheetflow to Vegetated Filter Strip in A/B Soils or Compost Amended C/D Soils | D46: =1/12*(0.95*B46+$B$13*C46)*43560 -> 0 | E46: Reduce volume conveyed to conservation area by 6 cu. ft per each 100 sq. ft. of filter strip. | F46: N/A | G46: =AF49 -> 0 | H46: =D46+G46 -> 0 | J46: N/A | K46: =IF(I46*0.06<=H46,I46*0.06,H46) -> 0 | L46: 0 | Q46: 0 | R46: 0 | S46: 0 | T46: 0 | U46: 0 | V46: 0 | W46: 0 | X46: 0 | Y46: 0 | Z46: 0 | AA46: 0 | AB46: 0 | AC46: 0 | AD46: 0 | AE46: 0 | AF46: 0 | AG46: 0 | AI46: 0 | AJ46: 0 | AK46: 0
A47: Sheet flow to Vegetated Filter Strip in C/D Soils | D47: =1/12*(0.95*B47+$B$13*C47)*43560 -> 0 | E47: Reduce volume conveyed to conservation area by 3 cu. ft per each 100 sq. ft. of filter strip. | F47: N/A | G47: =AG49 -> 0 | H47: =D47+G47 -> 0 | J47: N/A | K47: =IF(I47*0.03<=H47,I47*0.03,H47) -> 0 | L47: 0 | Q47: 0 | R47: 0 | S47: 0 | T47: 0 | U47: 0 | V47: 0 | W47: 0 | X47: 0 | Y47: 0 | Z47: 0 | AA47: 0 | AB47: 0 | AC47: 0 | AD47: 0 | AE47: 0 | AF47: 0 | AG47: 0 | AI47: 0 | AJ47: 0 | AK47: 0
A48: Totals | B48: =IF(SUM(B17:B47)>F10,"Please Check the Contributing Areas: " &SUM(B17:B47)-F10&" acre Over",SUM(B17:B47)) -> 0 | C48: =IF(SUM(C17:C47)>F9,"Please Check the Contributing Areas: " &SUM(C17:C47)-F9&" acre Over",SUM(C17:C47)) -> 0 | J48: Runoff Reduction Volume Achieved for Drainage Area A: | K48: =SUM(K17:K47) -> 0 | L48: See Runoff Reduction Summary Tab for Detailed Results
J49: Runoff Reduction Volume Balance for Total Site | K49: =ROUND('Site Data'!B88-'D.A. A'!K48-'D.A. B'!K48-'D.A. C'!K48-'D.A. D'!K48-'D.A. E'!K48,0) -> 0 | L49: =IF(ROUND('Site Data'!B88-'D.A. A'!K48-'D.A. B'!K48-'D.A. C'!K48-'D.A. D'!K48-'D.A. E'!K48,0)<0,"More Credit than needed has been provided","") ->  | P49: Totals | Q49: =SUM(Q17:Q48) -> 0 | R49: 0 | S49: 0 | T49: 0 | U49: 0 | V49: 0 | W49: 0 | X49: 0 | Y49: 0 | Z49: 0 | AA49: 0 | AB49: 0 | AC49: 0 | AD49: 0 | AE49: 0 | AF49: 0 | AG49: 0 | AI49: =SUM(AI17:AI48) -> 0 | AJ49: 0 | AK49: 0
A54: Downstream Options
A55: =A21 -> Simple Disconnection to A/B Soils or Soil-Amended Filter Path in C/D Soils (4.2.2, Appendix D)
A56: =A22 -> Simple Disconnection to C/D Soils (4.2.2)
A57: To Residential Rain Garden (4.2.3.C)
A58: =A24 -> To Rainwater Harvesting (4.2.8)
A59: =A30 -> Grass Swale A/B Soils
A60: =A31 -> Grass Swale C/D Soils
A61: =A32 -> Grass Swale in C/D Soil with Soil Amendments
A62: =A34 -> Water Quality Swale, Level 1
A63: =A35 -> Water Quality Swale, Level 2
A64: =A37 -> Bioretention, Level 1 or Urban Bioretention (4.2.3.B)
A65: =A38 -> Bioretention, Level 2
A66: =A40 -> Infiltration
A67: =A42 -> *Filtration Practice/Stormwater Wetland do NOT receive runoff reduction values, but do have associated pollutant removal values
A68: =A44 -> Sheetflow to Conservation Area with A/B Soils
A69: =A45 -> Sheetflow to Conservation Area with C/D Soils
A70: =A46 -> Sheetflow to Vegetated Filter Strip in A/B Soils or Compost Amended C/D Soils
A71: =A47 -> Sheet flow to Vegetated Filter Strip in C/D Soils

Sheet D.A. C
A1: West Virginia MS4 Stormwater Compliance Spreadsheet v2.0; April 2013
A3: Drainage Area C
A6: Drainage Area C Post-Development Land Cover (acres)
A7: Land Cover Type | B7: HSG A soils | C7: HSG B Soils | D7: HSG C Soils | E7: HSG D Soils | F7: Totals
A8: Forest/Preserved Open Space | B8: ='Site Data'!B31 -> 0 | C8: ='Site Data'!C31 -> 0 | D8: ='Site Data'!D31 -> 0 | E8: ='Site Data'!E31 -> 0 | F8: =SUM(B8:E8) -> 0 | H8: ="RRv Achieved for Drainage Area "&RIGHT(A3,1)&" (cubic feet)" -> RRv Achieved for Drainage Area C (cubic feet) | K8: =K48 -> 0
A9: Managed Turf | B9: ='Site Data'!B32 -> 0 | C9: ='Site Data'!C32 -> 0 | D9: ='Site Data'!D32 -> 0 | E9: ='Site Data'!E32 -> 0 | F9: =SUM(B9:E9) -> 0 | H9: ="RRv Balance for Drainage Area "&RIGHT(A3,1)&" (cubic feet)" -> RRv Balance for Drainage Area C (cubic feet) | K9: ='Site Data'!B86/12*B12*F11*43560-K8 -> 0 | L9: =IFERROR(L49,"") -> 
A10: Impervious Cover | B10: ='Site Data'!B33 -> 0 | C10: ='Site Data'!C33 -> 0 | D10: ='Site Data'!D33 -> 0 | E10: ='Site Data'!E33 -> 0 | F10: =SUM(B10:E10) -> 0 | H10: RRv Balance for Total Site (cubic feet) | K10: =K49 -> 0
E11: Total | F11: =SUM(F8:F10) -> 0
A12: Rv(drainage area) | B12: =IFERROR(B13*F9/F11+B14*F10/F11,0) -> 0
A13: Rv(turf) | B13: =IF(F9>0,SUMPRODUCT(B9:E9,'Site Data'!B61:E61)/F9,0) -> 0
A14: Rv(impervious) | B14: 0.95
A16: Apply Runoff Reduction Practices
A17: Runoff Reduction Practice | B17: Impervious Cover in Contributing Drainage Area (acres) | C17: Managed Turf in Contributing Drainage Area (acres) | D17: Volume Received by Practice (cubic feet) | E17: Description of Credit | F17: % Credit | G17: Volume Received from Upstream Practices (cubic feet) | H17: Total Volume Received by Practice (cubic feet) | I17: Disconnection Area of Practice (square feet) | J17: Storage Volume Provided by Practice (cubic feet) | K17: Runoff Reduction (cubic feet) | L17: Remaining Volume (cubic feet) | M17: Downstream Practice | Q17: =A21 -> Simple Disconnection to A/B Soils or Soil-Amended Filter Path in C/D Soils (4.2.2, Appendix D) | R17: =A22 -> Simple Disconnection to C/D Soils (4.2.2) | S17: =A23 -> To Residential Rain Garden (4.2.3.C) | T17: =A24 -> To Rainwater Harvesting (4.2.8) | U17: =A30 -> Grass Swale A/B Soils | V17: =A31 -> Grass Swale C/D Soils | W17: =A32 -> Grass Swale in C/D Soil with Soil Amendments | X17: =A34 -> Water Quality Swale, Level 1 | Y17: =A35 -> Water Quality Swale, Level 2 | Z17: =A37 -> Bioretention, Level 1 or Urban Bioretention (4.2.3.B) | AA17: =A38 -> Bioretention, Level 2 | AB17: =A40 -> Infiltration | AC17: =A42 -> *Filtration Practice/Stormwater Wetland do NOT receive runoff reduction values, but do have associated pollutant removal values | AD17: =A44 -> Sheetflow to Conservation Area with A/B Soils | AE17: =A45 -> Sheetflow to Conservation Area with C/D Soils | AF17: =A46 -> Sheetflow to Vegetated Filter Strip in A/B Soils or Compost Amended C/D Soils | AG17: =A47 -> Sheet flow to Vegetated Filter Strip in C/D Soils | AI17: =A30 -> Grass Swale A/B Soils | AJ17: =A31 -> Grass Swale C/D Soils | AK17: =A32 -> Grass Swale in C/D Soil with Soil Amendments
A18: 1. Vegetated Roof (4.2.9)
A19: Vegetated Roof | C19: N/A | D19: =1/12*0.95*B19*43560 -> 0 | E19: Reduce volume conveyed through green roof by 100%. | F19: 1 | G19: N/A | H19: =D19 -> 0 | I19: N/A | K19: =IF(J19*F19<=H19,J19*F19,H19) -> 0 | L19: =H19-K19 -> 0 | Q19: =IF($M19=Q$17, $L19, 0) -> 0 | R19: =IF($M19=R$17, $L19, 0) -> 0 | S19: 0 | T19: 0 | U19: =IF($M19=U$17, $H19, 0) -> 0 | V19: =IF($M19=V$17, $H19, 0) -> 0 | W19: =IF($M19=W$17, $H19, 0) -> 0 | X19: 0 | Y19: 0 | Z19: 0 | AA19: 0 | AB19: 0 | AC19: 0 | AD19: 0 | AE19: 0 | AF19: =IF($M19=AF$17, $L19, 0) -> 0 | AG19: =IF($M19=AG$17, $L19, 0) -> 0 | AI19: =IF($M19=AI$17, $H19, 0) -> 0 | AJ19: =IF($M19=AJ$17, $H19, 0) -> 0 | AK19: =IF($M19=AK$17, $H19, 0) -> 0
A20: 2. Impervious Surface Disconnection/Rooftop Practices | AG20: =IF($M20=AG$17, $L20, 0) -> 0
A21: Simple Disconnection to A/B Soils or Soil-Amended Filter Path in C/D Soils (4.2.2, Appendix D) | C21: N/A | D21: =1/12*0.95*B21*43560 -> 0 | E21: Reduce volume conveyed to conservation area by 4 cu. ft per each 100 sq. ft. of pervious receiving area. | F21: N/A | G21: =Q49 -> 0 | H21: =D21+G21 -> 0 | J21: N/A | K21: =IF(I21*0.04<=H21,I21*0.04,H21) -> 0 | L21: 0 | Q21: =IF($M21=Q$17, $L21, 0) -> 0 | R21: 0 | S21: 0 | T21: 0 | U21: =IF($M21=U$17, $H21, 0) -> 0 | V21: 0 | W21: 0 | X21: 0 | Y21: 0 | Z21: 0 | AA21: 0 | AB21: 0 | AC21: 0 | AD21: 0 | AE21: 0 | AF21: =IF($M21=AF$17, $L21, 0) -> 0 | AG21: 0 | AI21: =IF($M21=AI$17, $H21, 0) -> 0 | AJ21: 0 | AK21: 0
A22: Simple Disconnection to C/D Soils (4.2.2) | C22: N/A | D22: =1/12*0.95*B22*43560 -> 0 | E22: Reduce volume conveyed to conservation area by 2 cu. ft per each 100 sq. ft. of pervious receiving area. | F22: N/A | G22: =R49 -> 0 | H22: =D22+G22 -> 0 | J22: N/A | K22: =IF(I22*0.02<=H22,I22*0.02,H22) -> 0 | L22: 0 | Q22: =IF($M22=Q$17, $L22, 0) -> 0 | R22: 0 | S22: 0 | T22: 0 | U22: 0 | V22: 0 | W22: 0 | X22: 0 | Y22: 0 | Z22: 0 | AA22: 0 | AB22: 0 | AC22: 0 | AD22: 0 | AE22: 0 | AF22: =IF($M22=AF$17, $L22, 0) -> 0 | AG22: 0 | AI22: 0 | AJ22: 0 | AK22: 0
A23: To Residential Rain Garden (4.2.3.C) | C23: N/A | D23: =1/12*0.95*B23*43560 -> 0 | E23: 60% volume reduction for the Design Volume of the practice | F23: 0.6 | G23: =S49 -> 0 | H23: =D23+G23 -> 0 | I23: N/A | K23: =IF(J23*F23<=H23,J23*F23,H23) -> 0 | L23: 0 | Q23: =IF($M23=Q$17, $L23, 0) -> 0 | R23: 0 | S23: 0 | T23: 0 | U23: 0 | V23: 0 | W23: 0 | X23: 0 | Y23: 0 | Z23: 0 | AA23: 0 | AB23: 0 | AC23: 0 | AD23: 0 | AE23: 0 | AF23: =IF($M23=AF$17, $L23, 0) -> 0 | AG23: 0 | AI23: 0 | AJ23: 0 | AK23: 0
A24: To Rainwater Harvesting (4.2.8) | C24: N/A | D24: =1/12*0.95*B24*43560 -> 0 | E24: Subtract a variable % of the provided Design Volume based on annual beneficial use (see Cistern Design Spreadsheet). | G24: =T49 -> 0 | H24: =D24+G24 -> 0 | I24: N/A | K24: =IF(J24*F24<=H24,J24*F24,H24) -> 0 | L24: 0 | Q24: =IF($M24=Q$17, $L24, 0) -> 0 | R24: 0 | S24: 0 | T24: 0 | U24: 0 | V24: 0 | W24: 0 | X24: 0 | Y24: 0 | Z24: 0 | AA24: 0 | AB24: 0 | AC24: 0 | AD24: 0 | AE24: 0 | AF24: =IF($M24=AF$17, $L24, 0) -> 0 | AG24: 0 | AI24: 0 | AJ24: 0 | AK24: 0
A25: 3. Permeable Pavement (4.2.4) | N25: Storage Volume Provided by Sump Below Underdrain (cubic feet) | O25: Storage Volume Provided by Reservoir Layer Above Underdrain (cubic feet)
A26: Permeable Pavement, Level 1 | C26: N/A | D26: =1/12*0.95*B26*43560 -> 0 | E26: Subtract 45% of the provided storage volume. | F26: 0.45 | G26: N/A | H26: =D26 -> 0 | I26: N/A | K26: =IF(J26*F26<=H26,J26*F26,H26) -> 0 | L26: 0 | Q26: =IF($M26=Q$17, $L26, 0) -> 0 | R26: 0 | S26: 0 | T26: 0 | U26: =IF($M26=U$17, $H26, 0) -> 0 | V26: 0 | W26: 0 | X26: 0 | Y26: 0 | Z26: 0 | AA26: 0 | AB26: 0 | AC26: 0 | AD26: 0 | AE26: 0 | AF26: =IF($M26=AF$17, $L26, 0) -> 0 | AG26: 0 | AI26: =IF($M26=AI$17, $H26, 0) -> 0 | AJ26: 0 | AK26: 0
A27: Permeable Pavement, Level 2 (infiltration) | C27: N/A | D27: =1/12*0.95*B27*43560 -> 0 | E27: Subtract 100% of the provided storage volume. | F27: 1 | G27: N/A | H27: =D27 -> 0 | I27: N/A | K27: =IF(J27*F27<=H27,J27*F27,H27) -> 0 | L27: 0 | Q27: =IF($M27=Q$17, $L27, 0) -> 0 | R27: 0 | S27: 0 | T27: 0 | U27: 0 | V27: 0 | W27: 0 | X27: 0 | Y27: 0 | Z27: 0 | AA27: 0 | AB27: 0 | AC27: 0 | AD27: 0 | AE27: 0 | AF27: =IF($M27=AF$17, $L27, 0) -> 0 | AG27: 0 | AI27: 0 | AJ27: 0 | AK27: 0
A28: Permeable Pavement, Level 2 (infiltration & underdrain) | C28: N/A | D28: =1/12*0.95*B28*43560 -> 0 | E28: Subtract 100% of the provided storage volume of sump and 45% of the provided storage volume in reservoir layer. | G28: N/A | H28: =D28 -> 0 | I28: N/A | K28: =IF(N28*F27+O28*F26<=H28,N28*F27+O28*F26,H28) -> 0 | L28: 0 | Q28: =IF($M28=Q$17, $L28, 0) -> 0 | R28: 0 | S28: 0 | T28: 0 | U28: =IF($M28=U$17, $H28, 0) -> 0 | V28: =IF($M28=V$17, $H28, 0) -> 0 | W28: =IF($M28=W$17, $H28, 0) -> 0 | X28: 0 | Y28: 0 | Z28: 0 | AA28: 0 | AB28: 0 | AC28: 0 | AD28: 0 | AE28: 0 | AF28: =IF($M28=AF$17, $L28, 0) -> 0 | AG28: 0 | AI28: =IF($M28=AI$17, $H28, 0) -> 0 | AJ28: =IF($M28=AJ$17, $H28, 0) -> 0 | AK28: =IF($M28=AK$17, $H28, 0) -> 0
A29: 4. Grass Swale (4.2.5) | N29: Water volume associated with contributing area (cubic feet) | AG29: 0
A30: Grass Swale A/B Soils | D30: =1/12*(0.95*B30+$B$13*C30)*43560 -> 0 | E30: Reduce volume conveyed through grass swale by 0.2 inches. | F30: 0.2 | G30: =U49 -> 0 | H30: =D30+G30 -> 0 | I30: N/A | J30: N/A | K30: =IF((H30+(N30-G30))*F30>H30,H30,(H30+(N30-G30))*F30) -> 0 | L30: =(D30-D30*F30)+IF((G30-N30*F30)<0,0,(G30-N30*F30)) -> 0 | N30: =AI49 -> 0 | Q30: =IF($M30=Q$17, $L30, 0) -> 0 | R30: 0 | S30: 0 | T30: 0 | U30: =IF($M30=U$17, $H30, 0) -> 0 | V30: 0 | W30: 0 | X30: 0 | Y30: 0 | Z30: 0 | AA30: 0 | AB30: 0 | AC30: 0 | AD30: 0 | AE30: 0 | AF30: =IF($M30=AF$17, $L30, 0) -> 0 | AG30: 0 | AI30: =IF($M30=AI$17, $H30, 0) -> 0 | AJ30: 0 | AK30: 0
A31: Grass Swale C/D Soils | D31: =1/12*(0.95*B31+$B$13*C31)*43560 -> 0 | E31: Reduce volume conveyed through grass swale by 0.1 inches. | F31: 0.1 | G31: =V49 -> 0 | H31: =D31+G31 -> 0 | I31: N/A | J31: N/A | K31: =IF((H31+(N31-G31))*F31>H31,H31,(H31+(N31-G31))*F31) -> 0 | L31: =(D31-D31*F31)+IF((G31-N31*F31)<0,0,(G31-N31*F31)) -> 0 | N31: =AJ49 -> 0 | Q31: =IF($M31=Q$17, $L31, 0) -> 0 | R31: 0 | S31: 0 | T31: 0 | U31: 0 | V31: 0 | W31: 0 | X31: 0 | Y31: 0 | Z31: 0 | AA31: 0 | AB31: 0 | AC31: 0 | AD31: 0 | AE31: 0 | AF31: =IF($M31=AF$17, $L31, 0) -> 0 | AG31: 0 | AI31: 0 | AJ31: 0 | AK31: 0
A32: Grass Swale in C/D Soil with Soil Amendments | D32: =1/12*(0.95*B32+$B$13*C32)*43560 -> 0 | E32: Reduce volume conveyed through grass swale by 0.2 inches. | F32: 0.2 | G32: =W49 -> 0 | H32: =D32+G32 -> 0 | I32: N/A | J32: N/A | K32: 0 | L32: 0 | N32: =AK49 -> 0 | Q32: =IF($M32=Q$17, $L32, 0) -> 0 | R32: 0 | S32: 0 | T32: 0 | U32: 0 | V32: 0 | W32: 0 | X32: 0 | Y32: 0 | Z32: 0 | AA32: 0 | AB32: 0 | AC32: 0 | AD32: 0 | AE32: 0 | AF32: =IF($M32=AF$17, $L32, 0) -> 0 | AG32: 0 | AI32: 0 | AJ32: 0 | AK32: 0
A33: 5. Water Quality Swale (4.2.3.A) | AG33: 0
A34: Water Quality Swale, Level 1 | D34: =1/12*(0.95*B34+$B$13*C34)*43560 -> 0 | E34: Subtract 55% of the provided storage volume. | F34: 0.55 | G34: =X49 -> 0 | H34: =D34+G34 -> 0 | I34: N/A | K34: =IF(J34*F34<=H34,J34*F34,H34) -> 0 | L34: 0 | Q34: =IF($M34=Q$17, $L34, 0) -> 0 | R34: 0 | S34: 0 | T34: 0 | U34: =IF($M34=U$17, $H34, 0) -> 0 | V34: 0 | W34: 0 | X34: 0 | Y34: 0 | Z34: 0 | AA34: 0 | AB34: 0 | AC34: 0 | AD34: 0 | AE34: 0 | AF34: =IF($M34=AF$17, $L34, 0) -> 0 | AG34: 0 | AI34: =IF($M34=AI$17, $H34, 0) -> 0 | AJ34: 0 | AK34: 0
A35: Water Quality Swale, Level 2 | D35: =1/12*(0.95*B35+$B$13*C35)*43560 -> 0 | E35: Subtract 100% of the provided storage volume. | F35: 1 | G35: =Y49 -> 0 | H35: =D35+G35 -> 0 | I35: N/A | K35: =IF(J35*F35<=H35,J35*F35,H35) -> 0 | L35: 0 | Q35: =IF($M35=Q$17, $L35, 0) -> 0 | R35: 0 | S35: 0 | T35: 0 | U35: 0 | V35: 0 | W35: 0 | X35: 0 | Y35: 0 | Z35: 0 | AA35: 0 | AB35: 0 | AC35: 0 | AD35: 0 | AE35: 0 | AF35: =IF($M35=AF$17, $L35, 0) -> 0 | AG35: 0 | AI35: 0 | AJ35: 0 | AK35: 0
A36: 6. Bioretention (4.2.3) | AG36: 0
A37: Bioretention, Level 1 or Urban Bioretention (4.2.3.B) | D37: =1/12*(0.95*B37+$B$13*C37)*43560 -> 0 | E37: Subtract 60% of the provided storage volume. | F37: 0.6 | G37: =Z49 -> 0 | H37: =D37+G37 -> 0 | I37: N/A | K37: =IF(J37*F37<=H37,J37*F37,H37) -> 0 | L37: 0 | Q37: =IF($M37=Q$17, $L37, 0) -> 0 | R37: 0 | S37: 0 | T37: 0 | U37: =IF($M37=U$17, $H37, 0) -> 0 | V37: 0 | W37: 0 | X37: 0 | Y37: 0 | Z37: 0 | AA37: 0 | AB37: 0 | AC37: 0 | AD37: 0 | AE37: 0 | AF37: =IF($M37=AF$17, $L37, 0) -> 0 | AG37: 0 | AI37: =IF($M37=AI$17, $H37, 0) -> 0 | AJ37: 0 | AK37: 0
A38: Bioretention, Level 2 | D38: =1/12*(0.95*B38+$B$13*C38)*43560 -> 0 | E38: Subtract 100% of the provided storage volume. | F38: 1 | G38: =AA49 -> 0 | H38: =D38+G38 -> 0 | I38: N/A | K38: =IF(J38*F38<=H38,J38*F38,H38) -> 0 | L38: 0 | Q38: 0 | R38: 0 | S38: 0 | T38: 0 | U38: 0 | V38: 0 | W38: 0 | X38: 0 | Y38: 0 | Z38: 0 | AA38: 0 | AB38: 0 | AC38: 0 | AD38: 0 | AE38: =IF($M38=AE$17, $L38, 0) -> 0 | AF38: =IF($M38=AF$17, $L38, 0) -> 0 | AG38: 0 | AI38: 0 | AJ38: 0 | AK38: 0
A39: 7. Infiltration (4.2.6) or Regenerative Stormwater Conveyance (4.2.7) | AG39: 0
A40: Infiltration | D40: =1/12*(0.95*B40+$B$13*C40)*43560 -> 0 | E40: Subtract 100% of the provided storage volume. | F40: 1 | G40: =AB49 -> 0 | H40: =D40+G40 -> 0 | I40: N/A | K40: =IF(J40*F40<=H40,J40*F40,H40) -> 0 | L40: 0 | Q40: =IF($M40=Q$17, $L40, 0) -> 0 | R40: =IF($M40=R$17, $L40, 0) -> 0 | S40: 0 | T40: 0 | U40: =IF($M40=U$17, $H40, 0) -> 0 | V40: =IF($M40=V$17, $H40, 0) -> 0 | W40: =IF($M40=W$17, $H40, 0) -> 0 | X40: 0 | Y40: 0 | Z40: 0 | AA40: 0 | AB40: 0 | AC40: 0 | AD40: 0 | AE40: 0 | AF40: =IF($M40=AF$17, $L40, 0) -> 0 | AG40: 0 | AI40: =IF($M40=AI$17, $H40, 0) -> 0 | AJ40: =IF($M40=AJ$17, $H40, 0) -> 0 | AK40: =IF($M40=AK$17, $H40, 0) -> 0
A41: 8. Filtration Practice (4.2.10) or Stormwater Wetland (4.2.11)* | AG41: 0
A42: *Filtration Practice/Stormwater Wetland do NOT receive runoff reduction values, but do have associated pollutant removal values | D42: =1/12*(0.95*B42+$B$13*C42)*43560 -> 0 | E42: 0% runoff reduction | F42: 0 | G42: =AC49 -> 0 | H42: =D42+G42 -> 0 | I42: N/A | J42: =0.1*H42 -> 0 | K42: =IF(J42*F42<=H42,J42*F42,H42) -> 0 | L42: 0 | Q42: =IF($M42=Q$17, $L42, 0) -> 0 | R42: =IF($M42=R$17, $L42, 0) -> 0 | S42: 0 | T42: 0 | U42: =IF($M42=U$17, $H42, 0) -> 0 | V42: 0 | W42: 0 | X42: 0 | Y42: 0 | Z42: 0 | AA42: 0 | AB42: 0 | AC42: 0 | AD42: 0 | AE42: 0 | AF42: =IF($M42=AF$17, $L42, 0) -> 0 | AG42: 0 | AI42: =IF($M42=AI$17, $H42, 0) -> 0 | AJ42: 0 | AK42: 0
A43: 9. Sheetflow to Filter/Conservation Area (4.2.1) | Q43: =IF($M43=Q$17, $L43, 0) -> 0 | R43: 0 | S43: 0 | T43: 0 | X43: 0 | Y43: 0 | Z43: 0 | AA43: 0 | AB43: 0 | AC43: 0 | AD43: 0 | AE43: 0 | AF43: 0 | AG43: 0
A44: Sheetflow to Conservation Area with A/B Soils | D44: =1/12*(0.95*B44+$B$13*C44)*43560 -> 0 | E44: Reduce volume conveyed to conservation area by 9 cu. ft per each 100 sq. ft. of conservation area. | F44: N/A | G44: =AD49 -> 0 | H44: =D44+G44 -> 0 | J44: N/A | K44: =IF(I44*0.09<=H44,I44*0.09,H44) -> 0 | L44: 0 | Q44: 0 | R44: 0 | S44: 0 | T44: 0 | U44: 0 | V44: 0 | W44: 0 | X44: 0 | Y44: 0 | Z44: 0 | AA44: 0 | AB44: 0 | AC44: 0 | AD44: 0 | AE44: 0 | AF44: 0 | AG44: 0 | AI44: 0 | AJ44: 0 | AK44: 0
A45: Sheetflow to Conservation Area with C/D Soils | D45: =1/12*(0.95*B45+$B$13*C45)*43560 -> 0 | E45: Reduce volume conveyed to conservation area by 4 cu. ft per each 100 sq. ft. of conservation area. | F45: N/A | G45: =AE49 -> 0 | H45: =D45+G45 -> 0 | J45: N/A | K45: =IF(I45*0.04<=H45,I45*0.04,H45) -> 0 | L45: 0 | Q45: 0 | R45: 0 | S45: 0 | T45: 0 | U45: =IF($M45=U$17, $H45, 0) -> 0 | V45: 0 | W45: 0 | X45: 0 | Y45: 0 | Z45: 0 | AA45: 0 | AB45: 0 | AC45: 0 | AD45: 0 | AE45: 0 | AF45: 0 | AG45: 0 | AI45: 0 | AJ45: 0 | AK45: 0
A46: Sheetflow to Vegetated Filter Strip in A/B Soils or Compost Amended C/D Soils | D46: =1/12*(0.95*B46+$B$13*C46)*43560 -> 0 | E46: Reduce volume conveyed to conservation area by 6 cu. ft per each 100 sq. ft. of filter strip. | F46: N/A | G46: =AF49 -> 0 | H46: =D46+G46 -> 0 | J46: N/A | K46: =IF(I46*0.06<=H46,I46*0.06,H46) -> 0 | L46: 0 | Q46: 0 | R46: 0 | S46: 0 | T46: 0 | U46: 0 | V46: 0 | W46: 0 | X46: 0 | Y46: 0 | Z46: 0 | AA46: 0 | AB46: 0 | AC46: 0 | AD46: 0 | AE46: 0 | AF46: 0 | AG46: 0 | AI46: 0 | AJ46: 0 | AK46: 0
A47: Sheet flow to Vegetated Filter Strip in C/D Soils | D47: =1/12*(0.95*B47+$B$13*C47)*43560 -> 0 | E47: Reduce volume conveyed to conservation area by 3 cu. ft per each 100 sq. ft. of filter strip. | F47: N/A | G47: =AG49 -> 0 | H47: =D47+G47 -> 0 | J47: N/A | K47: =IF(I47*0.03<=H47,I47*0.03,H47) -> 0 | L47: 0 | Q47: 0 | R47: 0 | S47: 0 | T47: 0 | U47: 0 | V47: 0 | W47: 0 | X47: 0 | Y47: 0 | Z47: 0 | AA47: 0 | AB47: 0 | AC47: 0 | AD47: 0 | AE47: 0 | AF47: 0 | AG47: 0 | AI47: 0 | AJ47: 0 | AK47: 0
A48: Totals | B48: =IF(SUM(B17:B47)>F10,"Please Check the Contributing Areas: " &SUM(B17:B47)-F10&" acre Over",SUM(B17:B47)) -> 0 | C48: =IF(SUM(C17:C47)>F9,"Please Check the Contributing Areas: " &SUM(C17:C47)-F9&" acre Over",SUM(C17:C47)) -> 0 | J48: Runoff Reduction Volume Achieved for Drainage Area A: | K48: =SUM(K17:K47) -> 0 | L48: See Runoff Reduction Summary Tab for Detailed Results
J49: Runoff Reduction Volume Balance for Total Site | K49: =ROUND('Site Data'!B88-'D.A. A'!K48-'D.A. B'!K48-'D.A. C'!K48-'D.A. D'!K48-'D.A. E'!K48,0) -> 0 | L49: =IF(ROUND('Site Data'!B88-'D.A. A'!K48-'D.A. B'!K48-'D.A. C'!K48-'D.A. D'!K48-'D.A. E'!K48,0)<0,"More Credit than needed has been provided","") ->  | P49: Totals | Q49: =SUM(Q17:Q48) -> 0 | R49: 0 | S49: 0 | T49: 0 | U49: 0 | V49: 0 | W49: 0 | X49: 0 | Y49: 0 | Z49: 0 | AA49: 0 | AB49: 0 | AC49: 0 | AD49: 0 | AE49: 0 | AF49: 0 | AG49: 0 | AI49: =SUM(AI17:AI48) -> 0 | AJ49: 0 | AK49: 0
A54: Downstream Options
A55: =A21 -> Simple Disconnection to A/B Soils or Soil-Amended Filter Path in C/D Soils (4.2.2, Appendix D)
A56: =A22 -> Simple Disconnection to C/D Soils (4.2.2)
A57: To Residential Rain Garden (4.2.3.C)
A58: =A24 -> To Rainwater Harvesting (4.2.8)
A59: =A30 -> Grass Swale A/B Soils
A60: =A31 -> Grass Swale C/D Soils
A61: =A32 -> Grass Swale in C/D Soil with Soil Amendments
A62: =A34 -> Water Quality Swale, Level 1
A63: =A35 -> Water Quality Swale, Level 2
A64: =A37 -> Bioretention, Level 1 or Urban Bioretention (4.2.3.B)
A65: =A38 -> Bioretention, Level 2
A66: =A40 -> Infiltration
A67: =A42 -> *Filtration Practice/Stormwater Wetland do NOT receive runoff reduction values, but do have associated pollutant removal values
A68: =A44 -> Sheetflow to Conservation Area with A/B Soils
A69: =A45 -> Sheetflow to Conservation Area with C/D Soils
A70: =A46 -> Sheetflow to Vegetated Filter Strip in A/B Soils or Compost Amended C/D Soils
A71: =A47 -> Sheet flow to Vegetated Filter Strip in C/D Soils

Sheet D.A. D
A1: West Virginia MS4 Stormwater Compliance Spreadsheet v2.0; April 2013
A3: Drainage Area D
A6: Drainage Area D Post-Development Land Cover (acres)
A7: Land Cover Type | B7: HSG A soils | C7: HSG B Soils | D7: HSG C Soils | E7: HSG D Soils | F7: Totals
A8: Forest/Preserved Open Space | B8: ='Site Data'!B38 -> 0 | C8: ='Site Data'!C38 -> 0 | D8: ='Site Data'!D38 -> 0 | E8: ='Site Data'!E38 -> 0 | F8: =SUM(B8:E8) -> 0 | H8: ="RRv Achieved for Drainage Area "&RIGHT(A3,1)&" (cubic feet)" -> RRv Achieved for Drainage Area D (cubic feet) | K8: =K48 -> 0
A9: Managed Turf | B9: ='Site Data'!B39 -> 0 | C9: ='Site Data'!C39 -> 0 | D9: ='Site Data'!D39 -> 0 | E9: ='Site Data'!E39 -> 0 | F9: =SUM(B9:E9) -> 0 | H9: ="RRv Balance for Drainage Area "&RIGHT(A3,1)&" (cubic feet)" -> RRv Balance for Drainage Area D (cubic feet) | K9: ='Site Data'!B86/12*B12*F11*43560-K8 -> 0 | L9: =IFERROR(L49,"") -> 
A10: Impervious Cover | B10: ='Site Data'!B40 -> 0 | C10: ='Site Data'!C40 -> 0 | D10: ='Site Data'!D40 -> 0 | E10: ='Site Data'!E40 -> 0 | F10: =SUM(B10:E10) -> 0 | H10: RRv Balance for Total Site (cubic feet) | K10: =K49 -> 0
E11: Total | F11: =SUM(F8:F10) -> 0
A12: Rv(drainage area) | B12: =IFERROR(B13*F9/F11+B14*F10/F11,0) -> 0
A13: Rv(turf) | B13: =IF(F9>0,SUMPRODUCT(B9:E9,'Site Data'!B61:E61)/F9,0) -> 0
A14: Rv(impervious) | B14: 0.95
A16: Apply Runoff Reduction Practices
A17: Runoff Reduction Practice | B17: Impervious Cover in Contributing Drainage Area (acres) | C17: Managed Turf in Contributing Drainage Area (acres) | D17: Volume Received by Practice (cubic feet) | E17: Description of Credit | F17: % Credit | G17: Volume Received from Upstream Practices (cubic feet) | H17: Total Volume Received by Practice (cubic feet) | I17: Disconnection Area of Practice (square feet) | J17: Storage Volume Provided by Practice (cubic feet) | K17: Runoff Reduction (cubic feet) | L17: Remaining Volume (cubic feet) | M17: Downstream Practice | Q17: =A21 -> Simple Disconnection to A/B Soils or Soil-Amended Filter Path in C/D Soils (4.2.2, Appendix D) | R17: =A22 -> Simple Disconnection to C/D Soils (4.2.2) | S17: =A23 -> To Residential Rain Garden (4.2.3.C) | T17: =A24 -> To Rainwater Harvesting (4.2.8) | U17: =A30 -> Grass Swale A/B Soils | V17: =A31 -> Grass Swale C/D Soils | W17: =A32 -> Grass Swale in C/D Soil with Soil Amendments | X17: =A34 -> Water Quality Swale, Level 1 | Y17: =A35 -> Water Quality Swale, Level 2 | Z17: =A37 -> Bioretention, Level 1 or Urban Bioretention (4.2.3.B) | AA17: =A38 -> Bioretention, Level 2 | AB17: =A40 -> Infiltration | AC17: =A42 -> *Filtration Practice/Stormwater Wetland do NOT receive runoff reduction values, but do have associated pollutant removal values | AD17: =A44 -> Sheetflow to Conservation Area with A/B Soils | AE17: =A45 -> Sheetflow to Conservation Area with C/D Soils | AF17: =A46 -> Sheetflow to Vegetated Filter Strip in A/B Soils or Compost Amended C/D Soils | AG17: =A47 -> Sheet flow to Vegetated Filter Strip in C/D Soils | AI17: =A30 -> Grass Swale A/B Soils | AJ17: =A31 -> Grass Swale C/D Soils | AK17: =A32 -> Grass Swale in C/D Soil with Soil Amendments
A18: 1. Vegetated Roof (4.2.9)
A19: Vegetated Roof | C19: N/A | D19: =1/12*0.95*B19*43560 -> 0 | E19: Reduce volume conveyed through green roof by 100%. | F19: 1 | G19: N/A | H19: =D19 -> 0 | I19: N/A | K19: =IF(J19*F19<=H19,J19*F19,H19) -> 0 | L19: =H19-K19 -> 0 | Q19: =IF($M19=Q$17, $L19, 0) -> 0 | R19: =IF($M19=R$17, $L19, 0) -> 0 | S19: 0 | T19: 0 | U19: =IF($M19=U$17, $H19, 0) -> 0 | V19: =IF($M19=V$17, $H19, 0) -> 0 | W19: =IF($M19=W$17, $H19, 0) -> 0 | X19: 0 | Y19: 0 | Z19: 0 | AA19: 0 | AB19: 0 | AC19: 0 | AD19: 0 | AE19: 0 | AF19: =IF($M19=AF$17, $L19, 0) -> 0 | AG19: =IF($M19=AG$17, $L19, 0) -> 0 | AI19: =IF($M19=AI$17, $H19, 0) -> 0 | AJ19: =IF($M19=AJ$17, $H19, 0) -> 0 | AK19: =IF($M19=AK$17, $H19, 0) -> 0
A20: 2. Impervious Surface Disconnection/Rooftop Practices | AG20: =IF($M20=AG$17, $L20, 0) -> 0
A21: Simple Disconnection to A/B Soils or Soil-Amended Filter Path in C/D Soils (4.2.2, Appendix D) | C21: N/A | D21: =1/12*0.95*B21*43560 -> 0 | E21: Reduce volume conveyed to conservation area by 4 cu. ft per each 100 sq. ft. of pervious receiving area. | F21: N/A | G21: =Q49 -> 0 | H21: =D21+G21 -> 0 | J21: N/A | K21: =IF(I21*0.04<=H21,I21*0.04,H21) -> 0 | L21: 0 | Q21: =IF($M21=Q$17, $L21, 0) -> 0 | R21: 0 | S21: 0 | T21: 0 | U21: =IF($M21=U$17, $H21, 0) -> 0 | V21: 0 | W21: 0 | X21: 0 | Y21: 0 | Z21: 0 | AA21: 0 | AB21: 0 | AC21: 0 | AD21: 0 | AE21: 0 | AF21: =IF($M21=AF$17, $L21, 0) -> 0 | AG21: 0 | AI21: =IF($M21=AI$17, $H21, 0) -> 0 | AJ21: 0 | AK21: 0
A22: Simple Disconnection to C/D Soils (4.2.2) | C22: N/A | D22: =1/12*0.95*B22*43560 -> 0 | E22: Reduce volume conveyed to conservation area by 2 cu. ft per each 100 sq. ft. of pervious receiving area. | F22: N/A | G22: =R49 -> 0 | H22: =D22+G22 -> 0 | J22: N/A | K22: =IF(I22*0.02<=H22,I22*0.02,H22) -> 0 | L22: 0 | Q22: =IF($M22=Q$17, $L22, 0) -> 0 | R22: 0 | S22: 0 | T22: 0 | U22: 0 | V22: 0 | W22: 0 | X22: 0 | Y22: 0 | Z22: 0 | AA22: 0 | AB22: 0 | AC22: 0 | AD22: 0 | AE22: 0 | AF22: =IF($M22=AF$17, $L22, 0) -> 0 | AG22: 0 | AI22: 0 | AJ22: 0 | AK22: 0
A23: To Residential Rain Garden (4.2.3.C) | C23: N/A | D23: =1/12*0.95*B23*43560 -> 0 | E23: 60% volume reduction for the Design Volume of the practice | F23: 0.6 | G23: =S49 -> 0 | H23: =D23+G23 -> 0 | I23: N/A | K23: =IF(J23*F23<=H23,J23*F23,H23) -> 0 | L23: 0 | Q23: =IF($M23=Q$17, $L23, 0) -> 0 | R23: 0 | S23: 0 | T23: 0 | U23: 0 | V23: 0 | W23: 0 | X23: 0 | Y23: 0 | Z23: 0 | AA23: 0 | AB23: 0 | AC23: 0 | AD23: 0 | AE23: 0 | AF23: =IF($M23=AF$17, $L23, 0) -> 0 | AG23: 0 | AI23: 0 | AJ23: 0 | AK23: 0
A24: To Rainwater Harvesting (4.2.8) | C24: N/A | D24: =1/12*0.95*B24*43560 -> 0 | E24: Subtract a variable % of the provided Design Volume based on annual beneficial use (see Cistern Design Spreadsheet). | G24: =T49 -> 0 | H24: =D24+G24 -> 0 | I24: N/A | K24: =IF(J24*F24<=H24,J24*F24,H24) -> 0 | L24: 0 | Q24: =IF($M24=Q$17, $L24, 0) -> 0 | R24: 0 | S24: 0 | T24: 0 | U24: 0 | V24: 0 | W24: 0 | X24: 0 | Y24: 0 | Z24: 0 | AA24: 0 | AB24: 0 | AC24: 0 | AD24: 0 | AE24: 0 | AF24: =IF($M24=AF$17, $L24, 0) -> 0 | AG24: 0 | AI24: 0 | AJ24: 0 | AK24: 0
A25: 3. Permeable Pavement (4.2.4) | N25: Storage Volume Provided by Sump Below Underdrain (cubic feet) | O25: Storage Volume Provided by Reservoir Layer Above Underdrain (cubic feet)
A26: Permeable Pavement, Level 1 | C26: N/A | D26: =1/12*0.95*B26*43560 -> 0 | E26: Subtract 45% of the provided storage volume. | F26: 0.45 | G26: N/A | H26: =D26 -> 0 | I26: N/A | K26: =IF(J26*F26<=H26,J26*F26,H26) -> 0 | L26: 0 | Q26: =IF($M26=Q$17, $L26, 0) -> 0 | R26: 0 | S26: 0 | T26: 0 | U26: =IF($M26=U$17, $H26, 0) -> 0 | V26: 0 | W26: 0 | X26: 0 | Y26: 0 | Z26: 0 | AA26: 0 | AB26: 0 | AC26: 0 | AD26: 0 | AE26: 0 | AF26: =IF($M26=AF$17, $L26, 0) -> 0 | AG26: 0 | AI26: =IF($M26=AI$17, $H26, 0) -> 0 | AJ26: 0 | AK26: 0
A27: Permeable Pavement, Level 2 (infiltration) | C27: N/A | D27: =1/12*0.95*B27*43560 -> 0 | E27: Subtract 100% of the provided storage volume. | F27: 1 | G27: N/A | H27: =D27 -> 0 | I27: N/A | K27: =IF(J27*F27<=H27,J27*F27,H27) -> 0 | L27: 0 | Q27: =IF($M27=Q$17, $L27, 0) -> 0 | R27: 0 | S27: 0 | T27: 0 | U27: 0 | V27: 0 | W27: 0 | X27: 0 | Y27: 0 | Z27: 0 | AA27: 0 | AB27: 0 | AC27: 0 | AD27: 0 | AE27: 0 | AF27: =IF($M27=AF$17, $L27, 0) -> 0 | AG27: 0 | AI27: 0 | AJ27: 0 | AK27: 0
A28: Permeable Pavement, Level 2 (infiltration & underdrain) | C28: N/A | D28: =1/12*0.95*B28*43560 -> 0 | E28: Subtract 100% of the provided storage volume of sump and 45% of the provided storage volume in reservoir layer. | G28: N/A | H28: =D28 -> 0 | I28: N/A | K28: =IF(N28*F27+O28*F26<=H28,N28*F27+O28*F26,H28) -> 0 | L28: 0 | Q28: =IF($M28=Q$17, $L28, 0) -> 0 | R28: 0 | S28: 0 | T28: 0 | U28: =IF($M28=U$17, $H28, 0) -> 0 | V28: =IF($M28=V$17, $H28, 0) -> 0 | W28: =IF($M28=W$17, $H28, 0) -> 0 | X28: 0 | Y28: 0 | Z28: 0 | AA28: 0 | AB28: 0 | AC28: 0 | AD28: 0 | AE28: 0 | AF28: =IF($M28=AF$17, $L28, 0) -> 0 | AG28: 0 | AI28: =IF($M28=AI$17, $H28, 0) -> 0 | AJ28: =IF($M28=AJ$17, $H28, 0) -> 0 | AK28: =IF($M28=AK$17, $H28, 0) -> 0
A29: 4. Grass Swale (4.2.5) | N29: Water volume associated with contributing area (cubic feet) | AG29: 0
A30: Grass Swale A/B Soils | D30: =1/12*(0.95*B30+$B$13*C30)*43560 -> 0 | E30: Reduce volume conveyed through grass swale by 0.2 inches. | F30: 0.2 | G30: =U49 -> 0 | H30: =D30+G30 -> 0 | I30: N/A | J30: N/A | K30: =IF((H30+(N30-G30))*F30>H30,H30,(H30+(N30-G30))*F30) -> 0 | L30: =(D30-D30*F30)+IF((G30-N30*F30)<0,0,(G30-N30*F30)) -> 0 | N30: =AI49 -> 0 | Q30: =IF($M30=Q$17, $L30, 0) -> 0 | R30: 0 | S30: 0 | T30: 0 | U30: =IF($M30=U$17, $H30, 0) -> 0 | V30: 0 | W30: 0 | X30: 0 | Y30: 0 | Z30: 0 | AA30: 0 | AB30: 0 | AC30: 0 | AD30: 0 | AE30: 0 | AF30: =IF($M30=AF$17, $L30, 0) -> 0 | AG30: 0 | AI30: =IF($M30=AI$17, $H30, 0) -> 0 | AJ30: 0 | AK30: 0
A31: Grass Swale C/D Soils | D31: =1/12*(0.95*B31+$B$13*C31)*43560 -> 0 | E31: Reduce volume conveyed through grass swale by 0.1 inches. | F31: 0.1 | G31: =V49 -> 0 | H31: =D31+G31 -> 0 | I31: N/A | J31: N/A | K31: =IF((H31+(N31-G31))*F31>H31,H31,(H31+(N31-G31))*F31) -> 0 | L31: =(D31-D31*F31)+IF((G31-N31*F31)<0,0,(G31-N31*F31)) -> 0 | N31: =AJ49 -> 0 | Q31: =IF($M31=Q$17, $L31, 0) -> 0 | R31: 0 | S31: 0 | T31: 0 | U31: 0 | V31: 0 | W31: 0 | X31: 0 | Y31: 0 | Z31: 0 | AA31: 0 | AB31: 0 | AC31: 0 | AD31: 0 | AE31: 0 | AF31: =IF($M31=AF$17, $L31, 0) -> 0 | AG31: 0 | AI31: 0 | AJ31: 0 | AK31: 0
A32: Grass Swale in C/D Soil with Soil Amendments | D32: =1/12*(0.95*B32+$B$13*C32)*43560 -> 0 | E32: Reduce volume conveyed through grass swale by 0.2 inches. | F32: 0.2 | G32: =W49 -> 0 | H32: =D32+G32 -> 0 | I32: N/A | J32: N/A | K32: 0 | L32: 0 | N32: =AK49 -> 0 | Q32: =IF($M32=Q$17, $L32, 0) -> 0 | R32: 0 | S32: 0 | T32: 0 | U32: 0 | V32: 0 | W32: 0 | X32: 0 | Y32: 0 | Z32: 0 | AA32: 0 | AB32: 0 | AC32: 0 | AD32: 0 | AE32: 0 | AF32: =IF($M32=AF$17, $L32, 0) -> 0 | AG32: 0 | AI32: 0 | AJ32: 0 | AK32: 0
A33: 5. Water Quality Swale (4.2.3.A) | AG33: 0
A34: Water Quality Swale, Level 1 | D34: =1/12*(0.95*B34+$B$13*C34)*43560 -> 0 | E34: Subtract 55% of the provided storage volume. | F34: 0.55 | G34: =X49 -> 0 | H34: =D34+G34 -> 0 | I34: N/A | K34: =IF(J34*F34<=H34,J34*F34,H34) -> 0 | L34: 0 | Q34: =IF($M34=Q$17, $L34, 0) -> 0 | R34: 0 | S34: 0 | T34: 0 | U34: =IF($M34=U$17, $H34, 0) -> 0 | V34: 0 | W34: 0 | X34: 0 | Y34: 0 | Z34: 0 | AA34: 0 | AB34: 0 | AC34: 0 | AD34: 0 | AE34: 0 | AF34: =IF($M34=AF$17, $L34, 0) -> 0 | AG34: 0 | AI34: =IF($M34=AI$17, $H34, 0) -> 0 | AJ34: 0 | AK34: 0
A35: Water Quality Swale, Level 2 | D35: =1/12*(0.95*B35+$B$13*C35)*43560 -> 0 | E35: Subtract 100% of the provided storage volume. | F35: 1 | G35: =Y49 -> 0 | H35: =D35+G35 -> 0 | I35: N/A | K35: =IF(J35*F35<=H35,J35*F35,H35) -> 0 | L35: 0 | Q35: =IF($M35=Q$17, $L35, 0) -> 0 | R35: 0 | S35: 0 | T35: 0 | U35: 0 | V35: 0 | W35: 0 | X35: 0 | Y35: 0 | Z35: 0 | AA35: 0 | AB35: 0 | AC35: 0 | AD35: 0 | AE35: 0 | AF35: =IF($M35=AF$17, $L35, 0) -> 0 | AG35: 0 | AI35: 0 | AJ35: 0 | AK35: 0
A36: 6. Bioretention (4.2.3) | AG36: 0
A37: Bioretention, Level 1 or Urban Bioretention (4.2.3.B) | D37: =1/12*(0.95*B37+$B$13*C37)*43560 -> 0 | E37: Subtract 60% of the provided storage volume. | F37: 0.6 | G37: =Z49 -> 0 | H37: =D37+G37 -> 0 | I37: N/A | K37: =IF(J37*F37<=H37,J37*F37,H37) -> 0 | L37: 0 | Q37: =IF($M37=Q$17, $L37, 0) -> 0 | R37: 0 | S37: 0 | T37: 0 | U37: =IF($M37=U$17, $H37, 0) -> 0 | V37: 0 | W37: 0 | X37: 0 | Y37: 0 | Z37: 0 | AA37: 0 | AB37: 0 | AC37: 0 | AD37: 0 | AE37: 0 | AF37: =IF($M37=AF$17, $L37, 0) -> 0 | AG37: 0 | AI37: =IF($M37=AI$17, $H37, 0) -> 0 | AJ37: 0 | AK37: 0
A38: Bioretention, Level 2 | D38: =1/12*(0.95*B38+$B$13*C38)*43560 -> 0 | E38: Subtract 100% of the provided storage volume. | F38: 1 | G38: =AA49 -> 0 | H38: =D38+G38 -> 0 | I38: N/A | K38: =IF(J38*F38<=H38,J38*F38,H38) -> 0 | L38: 0 | Q38: 0 | R38: 0 | S38: 0 | T38: 0 | U38: 0 | V38: 0 | W38: 0 | X38: 0 | Y38: 0 | Z38: 0 | AA38: 0 | AB38: 0 | AC38: 0 | AD38: 0 | AE38: =IF($M38=AE$17, $L38, 0) -> 0 | AF38: =IF($M38=AF$17, $L38, 0) -> 0 | AG38: 0 | AI38: 0 | AJ38: 0 | AK38: 0
A39: 7. Infiltration (4.2.6) or Regenerative Stormwater Conveyance (4.2.7) | AG39: 0
A40: Infiltration | D40: =1/12*(0.95*B40+$B$13*C40)*43560 -> 0 | E40: Subtract 100% of the provided storage volume. | F40: 1 | G40: =AB49 -> 0 | H40: =D40+G40 -> 0 | I40: N/A | K40: =IF(J40*F40<=H40,J40*F40,H40) -> 0 | L40: 0 | Q40: =IF($M40=Q$17, $L40, 0) -> 0 | R40: =IF($M40=R$17, $L40, 0) -> 0 | S40: 0 | T40: 0 | U40: =IF($M40=U$17, $H40, 0) -> 0 | V40: =IF($M40=V$17, $H40, 0) -> 0 | W40: =IF($M40=W$17, $H40, 0) -> 0 | X40: 0 | Y40: 0 | Z40: 0 | AA40: 0 | AB40: 0 | AC40: 0 | AD40: 0 | AE40: 0 | AF40: =IF($M40=AF$17, $L40, 0) -> 0 | AG40: 0 | AI40: =IF($M40=AI$17, $H40, 0) -> 0 | AJ40: =IF($M40=AJ$17, $H40, 0) -> 0 | AK40: =IF($M40=AK$17, $H40, 0) -> 0
A41: 8. Filtration Practice (4.2.10) or Stormwater Wetland (4.2.11)* | AG41: 0
A42: *Filtration Practice/Stormwater Wetland do NOT receive runoff reduction values, but do have associated pollutant removal values | D42: =1/12*(0.95*B42+$B$13*C42)*43560 -> 0 | E42: 0% runoff reduction | F42: 0 | G42: =AC49 -> 0 | H42: =D42+G42 -> 0 | I42: N/A | J42: =0.1*H42 -> 0 | K42: =IF(J42*F42<=H42,J42*F42,H42) -> 0 | L42: 0 | Q42: =IF($M42=Q$17, $L42, 0) -> 0 | R42: =IF($M42=R$17, $L42, 0) -> 0 | S42: 0 | T42: 0 | U42: =IF($M42=U$17, $H42, 0) -> 0 | V42: 0 | W42: 0 | X42: 0 | Y42: 0 | Z42: 0 | AA42: 0 | AB42: 0 | AC42: 0 | AD42: 0 | AE42: 0 | AF42: =IF($M42=AF$17, $L42, 0) -> 0 | AG42: 0 | AI42: =IF($M42=AI$17, $H42, 0) -> 0 | AJ42: 0 | AK42: 0
A43: 9. Sheetflow to Filter/Conservation Area (4.2.1) | Q43: =IF($M43=Q$17, $L43, 0) -> 0 | R43: 0 | S43: 0 | T43: 0 | X43: 0 | Y43: 0 | Z43: 0 | AA43: 0 | AB43: 0 | AC43: 0 | AD43: 0 | AE43: 0 | AF43: 0 | AG43: 0
A44: Sheetflow to Conservation Area with A/B Soils | D44: =1/12*(0.95*B44+$B$13*C44)*43560 -> 0 | E44: Reduce volume conveyed to conservation area by 9 cu. ft per each 100 sq. ft. of conservation area. | F44: N/A | G44: =AD49 -> 0 | H44: =D44+G44 -> 0 | J44: N/A | K44: =IF(I44*0.09<=H44,I44*0.09,H44) -> 0 | L44: 0 | Q44: 0 | R44: 0 | S44: 0 | T44: 0 | U44: 0 | V44: 0 | W44: 0 | X44: 0 | Y44: 0 | Z44: 0 | AA44: 0 | AB44: 0 | AC44: 0 | AD44: 0 | AE44: 0 | AF44: 0 | AG44: 0 | AI44: 0 | AJ44: 0 | AK44: 0
A45: Sheetflow to Conservation Area with C/D Soils | D45: =1/12*(0.95*B45+$B$13*C45)*43560 -> 0 | E45: Reduce volume conveyed to conservation area by 4 cu. ft per each 100 sq. ft. of conservation area. | F45: N/A | G45: =AE49 -> 0 | H45: =D45+G45 -> 0 | J45: N/A | K45: =IF(I45*0.04<=H45,I45*0.04,H45) -> 0 | L45: 0 | Q45: 0 | R45: 0 | S45: 0 | T45: 0 | U45: =IF($M45=U$17, $H45, 0) -> 0 | V45: 0 | W45: 0 | X45: 0 | Y45: 0 | Z45: 0 | AA45: 0 | AB45: 0 | AC45: 0 | AD45: 0 | AE45: 0 | AF45: 0 | AG45: 0 | AI45: 0 | AJ45: 0 | AK45: 0
A46: Sheetflow to Vegetated Filter Strip in A/B Soils or Compost Amended C/D Soils | D46: =1/12*(0.95*B46+$B$13*C46)*43560 -> 0 | E46: Reduce volume conveyed to conservation area by 6 cu. ft per each 100 sq. ft. of filter strip. | F46: N/A | G46: =AF49 -> 0 | H46: =D46+G46 -> 0 | J46: N/A | K46: =IF(I46*0.06<=H46,I46*0.06,H46) -> 0 | L46: 0 | Q46: 0 | R46: 0 | S46: 0 | T46: 0 | U46: 0 | V46: 0 | W46: 0 | X46: 0 | Y46: 0 | Z46: 0 | AA46: 0 | AB46: 0 | AC46: 0 | AD46: 0 | AE46: 0 | AF46: 0 | AG46: 0 | AI46: 0 | AJ46: 0 | AK46: 0
A47: Sheet flow to Vegetated Filter Strip in C/D Soils | D47: =1/12*(0.95*B47+$B$13*C47)*43560 -> 0 | E47: Reduce volume conveyed to conservation area by 3 cu. ft per each 100 sq. ft. of filter strip. | F47: N/A | G47: =AG49 -> 0 | H47: =D47+G47 -> 0 | J47: N/A | K47: =IF(I47*0.03<=H47,I47*0.03,H47) -> 0 | L47: 0 | Q47: 0 | R47: 0 | S47: 0 | T47: 0 | U47: 0 | V47: 0 | W47: 0 | X47: 0 | Y47: 0 | Z47: 0 | AA47: 0 | AB47: 0 | AC47: 0 | AD47: 0 | AE47: 0 | AF47: 0 | AG47: 0 | AI47: 0 | AJ47: 0 | AK47: 0
A48: Totals | B48: =IF(SUM(B17:B47)>F10,"Please Check the Contributing Areas: " &SUM(B17:B47)-F10&" acre Over",SUM(B17:B47)) -> 0 | C48: =IF(SUM(C17:C47)>F9,"Please Check the Contributing Areas: " &SUM(C17:C47)-F9&" acre Over",SUM(C17:C47)) -> 0 | J48: Runoff Reduction Volume Achieved for Drainage Area A: | K48: =SUM(K17:K47) -> 0 | L48: See Runoff Reduction Summary Tab for Detailed Results
J49: Runoff Reduction Volume Balance for Total Site | K49: =ROUND('Site Data'!B88-'D.A. A'!K48-'D.A. B'!K48-'D.A. C'!K48-'D.A. D'!K48-'D.A. E'!K48,0) -> 0 | L49: =IF(ROUND('Site Data'!B88-'D.A. A'!K48-'D.A. B'!K48-'D.A. C'!K48-'D.A. D'!K48-'D.A. E'!K48,0)<0,"More Credit than needed has been provided","") ->  | P49: Totals | Q49: =SUM(Q17:Q48) -> 0 | R49: 0 | S49: 0 | T49: 0 | U49: 0 | V49: 0 | W49: 0 | X49: 0 | Y49: 0 | Z49: 0 | AA49: 0 | AB49: 0 | AC49: 0 | AD49: 0 | AE49: 0 | AF49: 0 | AG49: 0 | AI49: =SUM(AI17:AI48) -> 0 | AJ49: 0 | AK49: 0
A54: Downstream Options
A55: =A21 -> Simple Disconnection to A/B Soils or Soil-Amended Filter Path in C/D Soils (4.2.2, Appendix D)
A56: =A22 -> Simple Disconnection to C/D Soils (4.2.2)
A57: To Residential Rain Garden (4.2.3.C)
A58: =A24 -> To Rainwater Harvesting (4.2.8)
A59: =A30 -> Grass Swale A/B Soils
A60: =A31 -> Grass Swale C/D Soils
A61: =A32 -> Grass Swale in C/D Soil with Soil Amendments
A62: =A34 -> Water Quality Swale, Level 1
A63: =A35 -> Water Quality Swale, Level 2
A64: =A37 -> Bioretention, Level 1 or Urban Bioretention (4.2.3.B)
A65: =A38 -> Bioretention, Level 2
A66: =A40 -> Infiltration
A67: =A42 -> *Filtration Practice/Stormwater Wetland do NOT receive runoff reduction values, but do have associated pollutant removal values
A68: =A44 -> Sheetflow to Conservation Area with A/B Soils
A69: =A45 -> Sheetflow to Conservation Area with C/D Soils
A70: =A46 -> Sheetflow to Vegetated Filter Strip in A/B Soils or Compost Amended C/D Soils
A71: =A47 -> Sheet flow to Vegetated Filter Strip in C/D Soils

Sheet D.A. E
A1: West Virginia MS4 Stormwater Compliance Spreadsheet v2.0; April 2013
A3: Drainage Area E
A6: Drainage Area E Post-Development Land Cover (acres)
A7: Land Cover Type | B7: HSG A soils | C7: HSG B Soils | D7: HSG C Soils | E7: HSG D Soils | F7: Totals
A8: Forest/Preserved Open Space | B8: ='Site Data'!B45 -> 0 | C8: ='Site Data'!C45 -> 0 | D8: ='Site Data'!D45 -> 0 | E8: ='Site Data'!E45 -> 0 | F8: =SUM(B8:E8) -> 0 | H8: ="RRv Achieved for Drainage Area "&RIGHT(A3,1)&" (cubic feet)" -> RRv Achieved for Drainage Area E (cubic feet) | K8: =K48 -> 0
A9: Managed Turf | B9: ='Site Data'!B46 -> 0 | C9: ='Site Data'!C46 -> 0 | D9: ='Site Data'!D46 -> 0 | E9: ='Site Data'!E46 -> 0 | F9: =SUM(B9:E9) -> 0 | H9: ="RRv Balance for Drainage Area "&RIGHT(A3,1)&" (cubic feet)" -> RRv Balance for Drainage Area E (cubic feet) | K9: ='Site Data'!B86/12*B12*F11*43560-K8 -> 0 | L9: =IFERROR(L49,"") -> 
A10: Impervious Cover | B10: ='Site Data'!B47 -> 0 | C10: ='Site Data'!C47 -> 0 | D10: ='Site Data'!D47 -> 0 | E10: ='Site Data'!E47 -> 0 | F10: =SUM(B10:E10) -> 0 | H10: RRv Balance for Total Site (cubic feet) | K10: =K49 -> 0
E11: Total | F11: =SUM(F8:F10) -> 0
A12: Rv(drainage area) | B12: =IFERROR(B13*F9/F11+B14*F10/F11,0) -> 0
A13: Rv(turf) | B13: =IF(F9>0,SUMPRODUCT(B9:E9,'Site Data'!B61:E61)/F9,0) -> 0
A14: Rv(impervious) | B14: 0.95
A16: Apply Runoff Reduction Practices
A17: Runoff Reduction Practice | B17: Impervious Cover in Contributing Drainage Area (acres) | C17: Managed Turf in Contributing Drainage Area (acres) | D17: Volume Received by Practice (cubic feet) | E17: Description of Credit | F17: % Credit | G17: Volume Received from Upstream Practices (cubic feet) | H17: Total Volume Received by Practice (cubic feet) | I17: Disconnection Area of Practice (square feet) | J17: Storage Volume Provided by Practice (cubic feet) | K17: Runoff Reduction (cubic feet) | L17: Remaining Volume (cubic feet) | M17: Downstream Practice | Q17: =A21 -> Simple Disconnection to A/B Soils or Soil-Amended Filter Path in C/D Soils (4.2.2, Appendix D) | R17: =A22 -> Simple Disconnection to C/D Soils (4.2.2) | S17: =A23 -> To Residential Rain Garden (4.2.3.C) | T17: =A24 -> To Rainwater Harvesting (4.2.8) | U17: =A30 -> Grass Swale A/B Soils | V17: =A31 -> Grass Swale C/D Soils | W17: =A32 -> Grass Swale in C/D Soil with Soil Amendments | X17: =A34 -> Water Quality Swale, Level 1 | Y17: =A35 -> Water Quality Swale, Level 2 | Z17: =A37 -> Bioretention, Level 1 or Urban Bioretention (4.2.3.B) | AA17: =A38 -> Bioretention, Level 2 | AB17: =A40 -> Infiltration | AC17: =A42 -> *Filtration Practice/Stormwater Wetland do NOT receive runoff reduction values, but do have associated pollutant removal values | AD17: =A44 -> Sheetflow to Conservation Area with A/B Soils | AE17: =A45 -> Sheetflow to Conservation Area with C/D Soils | AF17: =A46 -> Sheetflow to Vegetated Filter Strip in A/B Soils or Compost Amended C/D Soils | AG17: =A47 -> Sheet flow to Vegetated Filter Strip in C/D Soils | AI17: =A30 -> Grass Swale A/B Soils | AJ17: =A31 -> Grass Swale C/D Soils | AK17: =A32 -> Grass Swale in C/D Soil with Soil Amendments
A18: 1. Vegetated Roof (4.2.9)
A19: Vegetated Roof | C19: N/A | D19: =1/12*0.95*B19*43560 -> 0 | E19: Reduce volume conveyed through green roof by 100%. | F19: 1 | G19: N/A | H19: =D19 -> 0 | I19: N/A | K19: =IF(J19*F19<=H19,J19*F19,H19) -> 0 | L19: =H19-K19 -> 0 | Q19: =IF($M19=Q$17, $L19, 0) -> 0 | R19: =IF($M19=R$17, $L19, 0) -> 0 | S19: 0 | T19: 0 | U19: =IF($M19=U$17, $H19, 0) -> 0 | V19: =IF($M19=V$17, $H19, 0) -> 0 | W19: =IF($M19=W$17, $H19, 0) -> 0 | X19: 0 | Y19: 0 | Z19: 0 | AA19: 0 | AB19: 0 | AC19: 0 | AD19: 0 | AE19: 0 | AF19: =IF($M19=AF$17, $L19, 0) -> 0 | AG19: =IF($M19=AG$17, $L19, 0) -> 0 | AI19: =IF($M19=AI$17, $H19, 0) -> 0 | AJ19: =IF($M19=AJ$17, $H19, 0) -> 0 | AK19: =IF($M19=AK$17, $H19, 0) -> 0
A20: 2. Impervious Surface Disconnection/Rooftop Practices | AG20: =IF($M20=AG$17, $L20, 0) -> 0
A21: Simple Disconnection to A/B Soils or Soil-Amended Filter Path in C/D Soils (4.2.2, Appendix D) | C21: N/A | D21: =1/12*0.95*B21*43560 -> 0 | E21: Reduce volume conveyed to conservation area by 4 cu. ft per each 100 sq. ft. of pervious receiving area. | F21: N/A | G21: =Q49 -> 0 | H21: =D21+G21 -> 0 | J21: N/A | K21: =IF(I21*0.04<=H21,I21*0.04,H21) -> 0 | L21: 0 | Q21: =IF($M21=Q$17, $L21, 0) -> 0 | R21: 0 | S21: 0 | T21: 0 | U21: =IF($M21=U$17, $H21, 0) -> 0 | V21: 0 | W21: 0 | X21: 0 | Y21: 0 | Z21: 0 | AA21: 0 | AB21: 0 | AC21: 0 | AD21: 0 | AE21: 0 | AF21: =IF($M21=AF$17, $L21, 0) -> 0 | AG21: 0 | AI21: =IF($M21=AI$17, $H21, 0) -> 0 | AJ21: 0 | AK21: 0
A22: Simple Disconnection to C/D Soils (4.2.2) | C22: N/A | D22: =1/12*0.95*B22*43560 -> 0 | E22: Reduce volume conveyed to conservation area by 2 cu. ft per each 100 sq. ft. of pervious receiving area. | F22: N/A | G22: =R49 -> 0 | H22: =D22+G22 -> 0 | J22: N/A | K22: =IF(I22*0.02<=H22,I22*0.02,H22) -> 0 | L22: 0 | Q22: =IF($M22=Q$17, $L22, 0) -> 0 | R22: 0 | S22: 0 | T22: 0 | U22: 0 | V22: 0 | W22: 0 | X22: 0 | Y22: 0 | Z22: 0 | AA22: 0 | AB22: 0 | AC22: 0 | AD22: 0 | AE22: 0 | AF22: =IF($M22=AF$17, $L22, 0) -> 0 | AG22: 0 | AI22: 0 | AJ22: 0 | AK22: 0
A23: To Residential Rain Garden (4.2.3.C) | C23: N/A | D23: =1/12*0.95*B23*43560 -> 0 | E23: 60% volume reduction for the Design Volume of the practice | F23: 0.6 | G23: =S49 -> 0 | H23: =D23+G23 -> 0 | I23: N/A | K23: =IF(J23*F23<=H23,J23*F23,H23) -> 0 | L23: 0 | Q23: =IF($M23=Q$17, $L23, 0) -> 0 | R23: 0 | S23: 0 | T23: 0 | U23: 0 | V23: 0 | W23: 0 | X23: 0 | Y23: 0 | Z23: 0 | AA23: 0 | AB23: 0 | AC23: 0 | AD23: 0 | AE23: 0 | AF23: =IF($M23=AF$17, $L23, 0) -> 0 | AG23: 0 | AI23: 0 | AJ23: 0 | AK23: 0
A24: To Rainwater Harvesting (4.2.8) | C24: N/A | D24: =1/12*0.95*B24*43560 -> 0 | E24: Subtract a variable % of the provided Design Volume based on annual beneficial use (see Cistern Design Spreadsheet). | G24: =T49 -> 0 | H24: =D24+G24 -> 0 | I24: N/A | K24: =IF(J24*F24<=H24,J24*F24,H24) -> 0 | L24: 0 | Q24: =IF($M24=Q$17, $L24, 0) -> 0 | R24: 0 | S24: 0 | T24: 0 | U24: 0 | V24: 0 | W24: 0 | X24: 0 | Y24: 0 | Z24: 0 | AA24: 0 | AB24: 0 | AC24: 0 | AD24: 0 | AE24: 0 | AF24: =IF($M24=AF$17, $L24, 0) -> 0 | AG24: 0 | AI24: 0 | AJ24: 0 | AK24: 0
A25: 3. Permeable Pavement (4.2.4) | N25: Storage Volume Provided by Sump Below Underdrain (cubic feet) | O25: Storage Volume Provided by Reservoir Layer Above Underdrain (cubic feet)
A26: Permeable Pavement, Level 1 | C26: N/A | D26: =1/12*0.95*B26*43560 -> 0 | E26: Subtract 45% of the provided storage volume. | F26: 0.45 | G26: N/A | H26: =D26 -> 0 | I26: N/A | K26: =IF(J26*F26<=H26,J26*F26,H26) -> 0 | L26: 0 | Q26: =IF($M26=Q$17, $L26, 0) -> 0 | R26: 0 | S26: 0 | T26: 0 | U26: =IF($M26=U$17, $H26, 0) -> 0 | V26: 0 | W26: 0 | X26: 0 | Y26: 0 | Z26: 0 | AA26: 0 | AB26: 0 | AC26: 0 | AD26: 0 | AE26: 0 | AF26: =IF($M26=AF$17, $L26, 0) -> 0 | AG26: 0 | AI26: =IF($M26=AI$17, $H26, 0) -> 0 | AJ26: 0 | AK26: 0
A27: Permeable Pavement, Level 2 (infiltration) | C27: N/A | D27: =1/12*0.95*B27*43560 -> 0 | E27: Subtract 100% of the provided storage volume. | F27: 1 | G27: N/A | H27: =D27 -> 0 | I27: N/A | K27: =IF(J27*F27<=H27,J27*F27,H27) -> 0 | L27: 0 | Q27: =IF($M27=Q$17, $L27, 0) -> 0 | R27: 0 | S27: 0 | T27: 0 | U27: 0 | V27: 0 | W27: 0 | X27: 0 | Y27: 0 | Z27: 0 | AA27: 0 | AB27: 0 | AC27: 0 | AD27: 0 | AE27: 0 | AF27: =IF($M27=AF$17, $L27, 0) -> 0 | AG27: 0 | AI27: 0 | AJ27: 0 | AK27: 0
A28: Permeable Pavement, Level 2 (infiltration & underdrain) | C28: N/A | D28: =1/12*0.95*B28*43560 -> 0 | E28: Subtract 100% of the provided storage volume of sump and 45% of the provided storage volume in reservoir layer. | G28: N/A | H28: =D28 -> 0 | I28: N/A | K28: =IF(N28*F27+O28*F26<=H28,N28*F27+O28*F26,H28) -> 0 | L28: 0 | Q28: =IF($M28=Q$17, $L28, 0) -> 0 | R28: 0 | S28: 0 | T28: 0 | U28: =IF($M28=U$17, $H28, 0) -> 0 | V28: =IF($M28=V$17, $H28, 0) -> 0 | W28: =IF($M28=W$17, $H28, 0) -> 0 | X28: 0 | Y28: 0 | Z28: 0 | AA28: 0 | AB28: 0 | AC28: 0 | AD28: 0 | AE28: 0 | AF28: =IF($M28=AF$17, $L28, 0) -> 0 | AG28: 0 | AI28: =IF($M28=AI$17, $H28, 0) -> 0 | AJ28: =IF($M28=AJ$17, $H28, 0) -> 0 | AK28: =IF($M28=AK$17, $H28, 0) -> 0
A29: 4. Grass Swale (4.2.5) | N29: Water volume associated with contributing area (cubic feet) | AG29: 0
A30: Grass Swale A/B Soils | D30: =1/12*(0.95*B30+$B$13*C30)*43560 -> 0 | E30: Reduce volume conveyed through grass swale by 0.2 inches. | F30: 0.2 | G30: =U49 -> 0 | H30: =D30+G30 -> 0 | I30: N/A | J30: N/A | K30: =IF((H30+(N30-G30))*F30>H30,H30,(H30+(N30-G30))*F30) -> 0 | L30: =(D30-D30*F30)+IF((G30-N30*F30)<0,0,(G30-N30*F30)) -> 0 | N30: =AI49 -> 0 | Q30: =IF($M30=Q$17, $L30, 0) -> 0 | R30: 0 | S30: 0 | T30: 0 | U30: =IF($M30=U$17, $H30, 0) -> 0 | V30: 0 | W30: 0 | X30: 0 | Y30: 0 | Z30: 0 | AA30: 0 | AB30: 0 | AC30: 0 | AD30: 0 | AE30: 0 | AF30: =IF($M30=AF$17, $L30, 0) -> 0 | AG30: 0 | AI30: =IF($M30=AI$17, $H30, 0) -> 0 | AJ30: 0 | AK30: 0
A31: Grass Swale C/D Soils | D31: =1/12*(0.95*B31+$B$13*C31)*43560 -> 0 | E31: Reduce volume conveyed through grass swale by 0.1 inches. | F31: 0.1 | G31: =V49 -> 0 | H31: =D31+G31 -> 0 | I31: N/A | J31: N/A | K31: =IF((H31+(N31-G31))*F31>H31,H31,(H31+(N31-G31))*F31) -> 0 | L31: =(D31-D31*F31)+IF((G31-N31*F31)<0,0,(G31-N31*F31)) -> 0 | N31: =AJ49 -> 0 | Q31: =IF($M31=Q$17, $L31, 0) -> 0 | R31: 0 | S31: 0 | T31: 0 | U31: 0 | V31: 0 | W31: 0 | X31: 0 | Y31: 0 | Z31: 0 | AA31: 0 | AB31: 0 | AC31: 0 | AD31: 0 | AE31: 0 | AF31: =IF($M31=AF$17, $L31, 0) -> 0 | AG31: 0 | AI31: 0 | AJ31: 0 | AK31: 0
A32: Grass Swale in C/D Soil with Soil Amendments | D32: =1/12*(0.95*B32+$B$13*C32)*43560 -> 0 | E32: Reduce volume conveyed through grass swale by 0.2 inches. | F32: 0.2 | G32: =W49 -> 0 | H32: =D32+G32 -> 0 | I32: N/A | J32: N/A | K32: 0 | L32: 0 | N32: =AK49 -> 0 | Q32: =IF($M32=Q$17, $L32, 0) -> 0 | R32: 0 | S32: 0 | T32: 0 | U32: 0 | V32: 0 | W32: 0 | X32: 0 | Y32: 0 | Z32: 0 | AA32: 0 | AB32: 0 | AC32: 0 | AD32: 0 | AE32: 0 | AF32: =IF($M32=AF$17, $L32, 0) -> 0 | AG32: 0 | AI32: 0 | AJ32: 0 | AK32: 0
A33: 5. Water Quality Swale (4.2.3.A) | AG33: 0
A34: Water Quality Swale, Level 1 | D34: =1/12*(0.95*B34+$B$13*C34)*43560 -> 0 | E34: Subtract 55% of the provided storage volume. | F34: 0.55 | G34: =X49 -> 0 | H34: =D34+G34 -> 0 | I34: N/A | K34: =IF(J34*F34<=H34,J34*F34,H34) -> 0 | L34: 0 | Q34: =IF($M34=Q$17, $L34, 0) -> 0 | R34: 0 | S34: 0 | T34: 0 | U34: =IF($M34=U$17, $H34, 0) -> 0 | V34: 0 | W34: 0 | X34: 0 | Y34: 0 | Z34: 0 | AA34: 0 | AB34: 0 | AC34: 0 | AD34: 0 | AE34: 0 | AF34: =IF($M34=AF$17, $L34, 0) -> 0 | AG34: 0 | AI34: =IF($M34=AI$17, $H34, 0) -> 0 | AJ34: 0 | AK34: 0
A35: Water Quality Swale, Level 2 | D35: =1/12*(0.95*B35+$B$13*C35)*43560 -> 0 | E35: Subtract 100% of the provided storage volume. | F35: 1 | G35: =Y49 -> 0 | H35: =D35+G35 -> 0 | I35: N/A | K35: =IF(J35*F35<=H35,J35*F35,H35) -> 0 | L35: 0 | Q35: =IF($M35=Q$17, $L35, 0) -> 0 | R35: 0 | S35: 0 | T35: 0 | U35: 0 | V35: 0 | W35: 0 | X35: 0 | Y35: 0 | Z35: 0 | AA35: 0 | AB35: 0 | AC35: 0 | AD35: 0 | AE35: 0 | AF35: =IF($M35=AF$17, $L35, 0) -> 0 | AG35: 0 | AI35: 0 | AJ35: 0 | AK35: 0
A36: 6. Bioretention (4.2.3) | AG36: 0
A37: Bioretention, Level 1 or Urban Bioretention (4.2.3.B) | D37: =1/12*(0.95*B37+$B$13*C37)*43560 -> 0 | E37: Subtract 60% of the provided storage volume. | F37: 0.6 | G37: =Z49 -> 0 | H37: =D37+G37 -> 0 | I37: N/A | K37: =IF(J37*F37<=H37,J37*F37,H37) -> 0 | L37: 0 | Q37: =IF($M37=Q$17, $L37, 0) -> 0 | R37: 0 | S37: 0 | T37: 0 | U37: =IF($M37=U$17, $H37, 0) -> 0 | V37: 0 | W37: 0 | X37: 0 | Y37: 0 | Z37: 0 | AA37: 0 | AB37: 0 | AC37: 0 | AD37: 0 | AE37: 0 | AF37: =IF($M37=AF$17, $L37, 0) -> 0 | AG37: 0 | AI37: =IF($M37=AI$17, $H37, 0) -> 0 | AJ37: 0 | AK37: 0
A38: Bioretention, Level 2 | D38: =1/12*(0.95*B38+$B$13*C38)*43560 -> 0 | E38: Subtract 100% of the provided storage volume. | F38: 1 | G38: =AA49 -> 0 | H38: =D38+G38 -> 0 | I38: N/A | K38: =IF(J38*F38<=H38,J38*F38,H38) -> 0 | L38: 0 | Q38: 0 | R38: 0 | S38: 0 | T38: 0 | U38: 0 | V38: 0 | W38: 0 | X38: 0 | Y38: 0 | Z38: 0 | AA38: 0 | AB38: 0 | AC38: 0 | AD38: 0 | AE38: =IF($M38=AE$17, $L38, 0) -> 0 | AF38: =IF($M38=AF$17, $L38, 0) -> 0 | AG38: 0 | AI38: 0 | AJ38: 0 | AK38: 0
A39: 7. Infiltration (4.2.6) or Regenerative Stormwater Conveyance (4.2.7) | AG39: 0
A40: Infiltration | D40: =1/12*(0.95*B40+$B$13*C40)*43560 -> 0 | E40: Subtract 100% of the provided storage volume. | F40: 1 | G40: =AB49 -> 0 | H40: =D40+G40 -> 0 | I40: N/A | K40: =IF(J40*F40<=H40,J40*F40,H40) -> 0 | L40: 0 | Q40: =IF($M40=Q$17, $L40, 0) -> 0 | R40: =IF($M40=R$17, $L40, 0) -> 0 | S40: 0 | T40: 0 | U40: =IF($M40=U$17, $H40, 0) -> 0 | V40: =IF($M40=V$17, $H40, 0) -> 0 | W40: =IF($M40=W$17, $H40, 0) -> 0 | X40: 0 | Y40: 0 | Z40: 0 | AA40: 0 | AB40: 0 | AC40: 0 | AD40: 0 | AE40: 0 | AF40: =IF($M40=AF$17, $L40, 0) -> 0 | AG40: 0 | AI40: =IF($M40=AI$17, $H40, 0) -> 0 | AJ40: =IF($M40=AJ$17, $H40, 0) -> 0 | AK40: =IF($M40=AK$17, $H40, 0) -> 0
A41: 8. Filtration Practice (4.2.10) or Stormwater Wetland (4.2.11)* | AG41: 0
A42: *Filtration Practice/Stormwater Wetland do NOT receive runoff reduction values, but do have associated pollutant removal values | D42: =1/12*(0.95*B42+$B$13*C42)*43560 -> 0 | E42: 0% runoff reduction | F42: 0 | G42: =AC49 -> 0 | H42: =D42+G42 -> 0 | I42: N/A | J42: =0.1*H42 -> 0 | K42: =IF(J42*F42<=H42,J42*F42,H42) -> 0 | L42: 0 | Q42: =IF($M42=Q$17, $L42, 0) -> 0 | R42: =IF($M42=R$17, $L42, 0) -> 0 | S42: 0 | T42: 0 | U42: =IF($M42=U$17, $H42, 0) -> 0 | V42: 0 | W42: 0 | X42: 0 | Y42: 0 | Z42: 0 | AA42: 0 | AB42: 0 | AC42: 0 | AD42: 0 | AE42: 0 | AF42: =IF($M42=AF$17, $L42, 0) -> 0 | AG42: 0 | AI42: =IF($M42=AI$17, $H42, 0) -> 0 | AJ42: 0 | AK42: 0
A43: 9. Sheetflow to Filter/Conservation Area (4.2.1) | Q43: =IF($M43=Q$17, $L43, 0) -> 0 | R43: 0 | S43: 0 | T43: 0 | X43: 0 | Y43: 0 | Z43: 0 | AA43: 0 | AB43: 0 | AC43: 0 | AD43: 0 | AE43: 0 | AF43: 0 | AG43: 0
A44: Sheetflow to Conservation Area with A/B Soils | D44: =1/12*(0.95*B44+$B$13*C44)*43560 -> 0 | E44: Reduce volume conveyed to conservation area by 9 cu. ft per each 100 sq. ft. of conservation area. | F44: N/A | G44: =AD49 -> 0 | H44: =D44+G44 -> 0 | J44: N/A | K44: =IF(I44*0.09<=H44,I44*0.09,H44) -> 0 | L44: 0 | Q44: 0 | R44: 0 | S44: 0 | T44: 0 | U44: 0 | V44: 0 | W44: 0 | X44: 0 | Y44: 0 | Z44: 0 | AA44: 0 | AB44: 0 | AC44: 0 | AD44: 0 | AE44: 0 | AF44: 0 | AG44: 0 | AI44: 0 | AJ44: 0 | AK44: 0
A45: Sheetflow to Conservation Area with C/D Soils | D45: =1/12*(0.95*B45+$B$13*C45)*43560 -> 0 | E45: Reduce volume conveyed to conservation area by 4 cu. ft per each 100 sq. ft. of conservation area. | F45: N/A | G45: =AE49 -> 0 | H45: =D45+G45 -> 0 | J45: N/A | K45: =IF(I45*0.04<=H45,I45*0.04,H45) -> 0 | L45: 0 | Q45: 0 | R45: 0 | S45: 0 | T45: 0 | U45: =IF($M45=U$17, $H45, 0) -> 0 | V45: 0 | W45: 0 | X45: 0 | Y45: 0 | Z45: 0 | AA45: 0 | AB45: 0 | AC45: 0 | AD45: 0 | AE45: 0 | AF45: 0 | AG45: 0 | AI45: 0 | AJ45: 0 | AK45: 0
A46: Sheetflow to Vegetated Filter Strip in A/B Soils or Compost Amended C/D Soils | D46: =1/12*(0.95*B46+$B$13*C46)*43560 -> 0 | E46: Reduce volume conveyed to conservation area by 6 cu. ft per each 100 sq. ft. of filter strip. | F46: N/A | G46: =AF49 -> 0 | H46: =D46+G46 -> 0 | J46: N/A | K46: =IF(I46*0.06<=H46,I46*0.06,H46) -> 0 | L46: 0 | Q46: 0 | R46: 0 | S46: 0 | T46: 0 | U46: 0 | V46: 0 | W46: 0 | X46: 0 | Y46: 0 | Z46: 0 | AA46: 0 | AB46: 0 | AC46: 0 | AD46: 0 | AE46: 0 | AF46: 0 | AG46: 0 | AI46: 0 | AJ46: 0 | AK46: 0
A47: Sheet flow to Vegetated Filter Strip in C/D Soils | D47: =1/12*(0.95*B47+$B$13*C47)*43560 -> 0 | E47: Reduce volume conveyed to conservation area by 3 cu. ft per each 100 sq. ft. of filter strip. | F47: N/A | G47: =AG49 -> 0 | H47: =D47+G47 -> 0 | J47: N/A | K47: =IF(I47*0.03<=H47,I47*0.03,H47) -> 0 | L47: 0 | Q47: 0 | R47: 0 | S47: 0 | T47: 0 | U47: 0 | V47: 0 | W47: 0 | X47: 0 | Y47: 0 | Z47: 0 | AA47: 0 | AB47: 0 | AC47: 0 | AD47: 0 | AE47: 0 | AF47: 0 | AG47: 0 | AI47: 0 | AJ47: 0 | AK47: 0
A48: Totals | B48: =IF(SUM(B17:B47)>F10,"Please Check the Contributing Areas: " &SUM(B17:B47)-F10&" acre Over",SUM(B17:B47)) -> 0 | C48: =IF(SUM(C17:C47)>F9,"Please Check the Contributing Areas: " &SUM(C17:C47)-F9&" acre Over",SUM(C17:C47)) -> 0 | J48: Runoff Reduction Volume Achieved for Drainage Area A: | K48: =SUM(K17:K47) -> 0 | L48: See Runoff Reduction Summary Tab for Detailed Results
J49: Runoff Reduction Volume Balance for Total Site | K49: =ROUND('Site Data'!B88-'D.A. A'!K48-'D.A. B'!K48-'D.A. C'!K48-'D.A. D'!K48-'D.A. E'!K48,0) -> 0 | L49: =IF(ROUND('Site Data'!B88-'D.A. A'!K48-'D.A. B'!K48-'D.A. C'!K48-'D.A. D'!K48-'D.A. E'!K48,0)<0,"More Credit than needed has been provided","") ->  | P49: Totals | Q49: =SUM(Q17:Q48) -> 0 | R49: 0 | S49: 0 | T49: 0 | U49: 0 | V49: 0 | W49: 0 | X49: 0 | Y49: 0 | Z49: 0 | AA49: 0 | AB49: 0 | AC49: 0 | AD49: 0 | AE49: 0 | AF49: 0 | AG49: 0 | AI49: =SUM(AI17:AI48) -> 0 | AJ49: 0 | AK49: 0
A54: Downstream Options
A55: =A21 -> Simple Disconnection to A/B Soils or Soil-Amended Filter Path in C/D Soils (4.2.2, Appendix D)
A56: =A22 -> Simple Disconnection to C/D Soils (4.2.2)
A57: To Residential Rain Garden (4.2.3.C)
A58: =A24 -> To Rainwater Harvesting (4.2.8)
A59: =A30 -> Grass Swale A/B Soils
A60: =A31 -> Grass Swale C/D Soils
A61: =A32 -> Grass Swale in C/D Soil with Soil Amendments
A62: =A34 -> Water Quality Swale, Level 1
A63: =A35 -> Water Quality Swale, Level 2
A64: =A37 -> Bioretention, Level 1 or Urban Bioretention (4.2.3.B)
A65: =A38 -> Bioretention, Level 2
A66: =A40 -> Infiltration
A67: =A42 -> *Filtration Practice/Stormwater Wetland do NOT receive runoff reduction values, but do have associated pollutant removal values
A68: =A44 -> Sheetflow to Conservation Area with A/B Soils
A69: =A45 -> Sheetflow to Conservation Area with C/D Soils
A70: =A46 -> Sheetflow to Vegetated Filter Strip in A/B Soils or Compost Amended C/D Soils
A71: =A47 -> Sheet flow to Vegetated Filter Strip in C/D Soils

Sheet Runoff Reduction Summary
A1: West Virginia MS4 Stormwater Compliance Spreadsheet v2.0; April 2013
A4: Stormwater Runoff Reduction Summary
A6: Target Runoff Reduction Volume, RRv (cubic feet) | B6: ='Site Data'!B88 -> 0
A7: Runoff Reduction Achieved (cubic feet) | B7: ='D.A. A'!K48+'D.A. B'!K48+'D.A. C'!K48+'D.A. D'!K48+'D.A. E'!K48 -> 0
A9: Runoff Reduction Volume Remaining (cubic feet) | B9: =IF(B6-B7>0,B6-B7,0) -> 0
A14: 1.5:1 Mitigation Runoff Volume (cubic feet) | B14: =IF(B9<0.6*1/12*'Site Data'!B75*'Site Data'!B74*43560,B9*1.5,0.6*1/12*'Site Data'!B75*'Site Data'!B74*43560*1.5) -> 0
A15: 2:1 Mitigation Runoff Volume (cubic feet) | B15: =IF(B9>0.6*1/12*'Site Data'!B75*'Site Data'!B74*43560,(B9-0.6*1/12*'Site Data'!B75*'Site Data'!B74*43560)*2,0) -> 0
A16: Total Mitigation Runoff Volume Required (cubic feet) | B16: =B15+B14 -> 0

Sheet Channel and Flood Protection
A1: WV MS4 Stormwater Compliance Spreadsheet v2.0; April 2013 | D1: 1-year storm | E1: 2-year storm | F1: 10-year storm
A2: Target Rainfall Event (in) | D2: 2.7 | E2: 3.35 | F2: 5.15
A4: Drainage Area A
A5: Drainage Area (acres) | C5: ='D.A. A'!$F$11 -> 0
A6: Storage Volume Provided By Runoff Reduction Practices (cf) | C6: ='D.A. A'!$J$19+'D.A. A'!$K$21+'D.A. A'!$K$22+'D.A. A'!$J$23+'D.A. A'!$J$24+'D.A. A'!$J$26+'D.A. A'!$J$27+'D.A. A'!$N$28+'D.A. A'!$O$28+'D.A. A'!$K$30+'D.A. A'!$K$31+'D.A. A'!$K$32+'D.A. A'!$J$34+'D.A. A'!$J$35+'D.A. A'!$J$37+'D.A. A'!$J$38+'D.A. A'!$J$40+'D.A. A'!$K$42+'D.A. A'!$K$44+'D.A. A'!$K$45+'D.A. A'!$K$46+'D.A. A'!$K$47 -> 0
A8: Drainage Area B
A9: Drainage Area (acres) | C9: ='D.A. B'!$F$11 -> 0
A10: Storage Volume Provided By Runoff Reduction Practices (cf) | C10: ='D.A. B'!$J$19+'D.A. B'!$K$21+'D.A. B'!$K$22+'D.A. B'!$J$23+'D.A. B'!$J$24+'D.A. B'!$J$26+'D.A. B'!$J$27+'D.A. B'!$N$28+'D.A. B'!$O$28+'D.A. B'!$K$30+'D.A. B'!$K$31+'D.A. B'!$K$32+'D.A. B'!$J$34+'D.A. B'!$J$35+'D.A. B'!$J$37+'D.A. B'!$J$38+'D.A. B'!$J$40+'D.A. B'!$K$42+'D.A. B'!$K$44+'D.A. B'!$K$45+'D.A. B'!$K$46+'D.A. B'!$K$47 -> 0
A12: Drainage Area C
A13: Drainage Area (acres) | C13: ='D.A. C'!$F$11 -> 0
A14: Storage Volume Provided By Runoff Reduction Practices (cf) | C14: ='D.A. C'!$J$19+'D.A. C'!$K$21+'D.A. C'!$K$22+'D.A. C'!$J$23+'D.A. C'!$J$24+'D.A. C'!$J$26+'D.A. C'!$J$27+'D.A. C'!$N$28+'D.A. C'!$O$28+'D.A. C'!$K$30+'D.A. C'!$K$31+'D.A. C'!$K$32+'D.A. C'!$J$34+'D.A. C'!$J$35+'D.A. C'!$J$37+'D.A. C'!$J$38+'D.A. C'!$J$40+'D.A. C'!$K$42+'D.A. C'!$K$44+'D.A. C'!$K$45+'D.A. C'!$K$46+'D.A. C'!$K$47 -> 0
A16: Drainage Area D
A17: Drainage Area (acres) | C17: ='D.A. D'!$F$11 -> 0
A18: Storage Volume Provided By Runoff Reduction Practices (cf) | C18: ='D.A. D'!$J$19+'D.A. D'!$K$21+'D.A. D'!$K$22+'D.A. D'!$J$23+'D.A. D'!$J$24+'D.A. D'!$J$26+'D.A. D'!$J$27+'D.A. D'!$N$28+'D.A. D'!$O$28+'D.A. D'!$K$30+'D.A. D'!$K$31+'D.A. D'!$K$32+'D.A. D'!$J$34+'D.A. D'!$J$35+'D.A. D'!$J$37+'D.A. D'!$J$38+'D.A. D'!$J$40+'D.A. D'!$K$42+'D.A. D'!$K$44+'D.A. D'!$K$45+'D.A. D'!$K$46+'D.A. D'!$K$47 -> 0
A20: Drainage Area E
A21: Drainage Area (acres) | C21: ='D.A. E'!$F$11 -> 0
A22: Storage Volume Provided By Runoff Reduction Practices (cf) | C22: ='D.A. E'!$J$19+'D.A. E'!$K$21+'D.A. E'!$K$22+'D.A. E'!$J$23+'D.A. E'!$J$24+'D.A. E'!$J$26+'D.A. E'!$J$27+'D.A. E'!$N$28+'D.A. E'!$O$28+'D.A. E'!$K$30+'D.A. E'!$K$31+'D.A. E'!$K$32+'D.A. E'!$J$34+'D.A. E'!$J$35+'D.A. E'!$J$37+'D.A. E'!$J$38+'D.A. E'!$J$40+'D.A. E'!$K$42+'D.A. E'!$K$44+'D.A. E'!$K$45+'D.A. E'!$K$46+'D.A. E'!$K$47 -> 0
J23: =D1 -> 1-year storm | K23: =E1 -> 2-year storm | L23: =F1 -> 10-year storm
A24: Based on the use of Runoff Reduction practices in the various drainage areas, the spreadsheet calculates an adjusted RVDeveloped and adjusted Curve Number. | J24: v | M24: CN | N24: S
A26: Drainage Area A | D26: A soils | E26: B Soils | F26: C Soils | G26: D Soils | J26: =IF(D$2>0.2*($N26),(D$2-0.2*($N26))^2/(D$2+0.8*($N26)),0) -> 0 | K26: =IF(E$2>0.2*($N26),(E$2-0.2*($N26))^2/(E$2+0.8*($N26)),0) -> 0.007980456026 | L26: =IF(F$2>0.2*($N26),(F$2-0.2*($N26))^2/(F$2+0.8*($N26)),0) -> 0.2695335277 | M26: 40 | N26: =IF(M26>0,1000/M26-10,1000) -> 15
A27: Forest/Preserved Open Space | C27: Area (acres) | D27: ='D.A. A'!$B$8 -> 0 | E27: ='D.A. A'!$C$8 -> 0 | F27: ='D.A. A'!$D$8 -> 0 | G27: ='D.A. A'!$E$8 -> 0 | J27: 0 | K27: 0.008587096765 | L27: 0.2734641716 | M27: =M26+0.1 -> 40.1 | N27: 14.93765586
C28: CN | D28: 30 | E28: 55 | F28: 70 | G28: 77 | J28: 0 | K28: 0.009214894909 | L28: 0.2774161849 | M28: 40.2 | N28: 14.87562189
A29: Managed Turf | C29: Area (acres) | D29: ='D.A. A'!$B$9 -> 0 | E29: ='D.A. A'!$C$9 -> 0 | F29: ='D.A. A'!$D$9 -> 0 | G29: ='D.A. A'!$E$9 -> 0 | J29: 0 | K29: 0.009863747873 | L29: 0.2813894596 | M29: 40.3 | N29: 14.81389578
C30: CN | D30: 39 | E30: 61 | F30: 74 | G30: 80 | J30: 0 | K30: 0.01053355425 | L30: 0.2853838885 | M30: 40.4 | N30: 14.75247525
A31: Impervious Cover | C31: Area (acres) | D31: ='D.A. A'!$B$10 -> 0 | E31: ='D.A. A'!$C$10 -> 0 | F31: ='D.A. A'!$D$10 -> 0 | G31: ='D.A. A'!$E$10 -> 0 | J31: 0 | K31: 0.01122421382 | L31: 0.289399366 | M31: 40.5 | N31: 14.69135802
C32: CN | D32: 98 | E32: 98 | F32: 98 | G32: 98 | J32: 0 | K32: 0.01193562749 | L32: 0.2934357873 | M32: 40.6 | N32: 14.63054187
G33: Weighted CN | H33: S | J33: 0 | K33: 0.01266769732 | L33: 0.2974930487 | M33: 40.7 | N33: 14.57002457
G34: =IF(C5>0,(SUMPRODUCT(D27:G27,D28:G28)+SUMPRODUCT(D29:G29,D30:G30)+SUMPRODUCT(D31:G31,D32:G32))/C5,0) -> 0 | H34: =IF(G34>0,1000/G34-10,1000) -> 1000 | J34: 0 | K34: 0.01342032651 | L34: 0.3015710479 | M34: 40.8 | N34: 14.50980392
D35: =D1 -> 1-year storm | E35: =E1 -> 2-year storm | F35: =F1 -> 10-year storm | J35: 0 | K35: 0.01419341936 | L35: 0.3056696833 | M35: 40.9 | N35: 14.44987775
A36: RVDeveloped (in) with no Runoff Reduction | D36: =IF(D$2>0.2*($H34),(D$2-0.2*($H34))^2/(D$2+0.8*($H34)),0) -> 0 | E36: =IF(E$2>0.2*($H34),(E$2-0.2*($H34))^2/(E$2+0.8*($H34)),0) -> 0 | F36: =IF(F$2>0.2*($H34),(F$2-0.2*($H34))^2/(F$2+0.8*($H34)),0) -> 0 | J36: 0 | K36: 0.01498688126 | L36: 0.3097888547 | M36: 41 | N36: 14.3902439
A37: RVDeveloped (in) with Runoff Reduction | D37: =IF($C5>0,D36-$C6/3630/$C5,D36) -> 0 | E37: =IF($C5>0,E36-$C6/3630/$C5,E36) -> 0 | F37: =IF($C5>0,F36-$C6/3630/$C5,F36) -> 0 | J37: 0 | K37: 0.01580061872 | L37: 0.3139284628 | M37: 41.1 | N37: 14.33090024
C38: Adjusted CN for D.A. A | D38: =IF(D37>0,VLOOKUP(D37,J$26:$N$626,4),0) -> 0 | E38: =IF(E37>0,VLOOKUP(E37,K$26:$N$626,3),0) -> 0 | F38: =IF(F37>0,VLOOKUP(F37,L$26:$N$626,2),0) -> 0 | J38: 0 | K38: 0.01663453931 | L38: 0.3180884093 | M38: 41.2 | N38: 14.27184466
J39: 0 | K39: 0.01748855165 | L39: 0.322268597 | M39: 41.3 | N39: 14.21307506
J40: 0 | K40: 0.01836256544 | L40: 0.3264689299 | M40: 41.4 | N40: 14.15458937
A41: Drainage Area B | D41: A soils | E41: B Soils | F41: C Soils | G41: D Soils | J41: 0 | K41: 0.01925649139 | L41: 0.3306893127 | M41: 41.5 | N41: 14.09638554
A42: Forest/Preserved Open Space | C42: Area (acres) | D42: ='D.A. B'!$B$8 -> 0 | E42: ='D.A. B'!$C$8 -> 0 | F42: ='D.A. B'!$D$8 -> 0 | G42: ='D.A. B'!$E$8 -> 0 | J42: 0 | K42: 0.02017024126 | L42: 0.3349296512 | M42: 41.6 | N42: 14.03846154
C43: CN | D43: 30 | E43: 55 | F43: 70 | G43: 77 | J43: 0 | K43: 0.02110372781 | L43: 0.3391898524 | M43: 41.7 | N43: 13.98081535
A44: Managed Turf | C44: Area (acres) | D44: ='D.A. B'!$B$9 -> 0 | E44: ='D.A. B'!$C$9 -> 0 | F44: ='D.A. B'!$D$9 -> 0 | G44: ='D.A. B'!$E$9 -> 0 | J44: 0 | K44: 0.02205686482 | L44: 0.343469824 | M44: 41.8 | N44: 13.92344498
C45: CN | D45: 39 | E45: 61 | F45: 74 | G45: 80 | J45: 0 | K45: 0.02302956706 | L45: 0.3477694747 | M45: 41.9 | N45: 13.86634845
A46: Impervious Cover | C46: Area (acres) | D46: ='D.A. B'!$B$10 -> 0 | E46: ='D.A. B'!$C$10 -> 0 | F46: ='D.A. B'!$D$10 -> 0 | G46: ='D.A. B'!$E$10 -> 0 | J46: 0 | K46: 0.02402175026 | L46: 0.3520887144 | M46: 42 | N46: 13.80952381
C47: CN | D47: 98 | E47: 98 | F47: 98 | G47: 98 | J47: 0 | K47: 0.02503333115 | L47: 0.3564274536 | M47: 42.1 | N47: 13.75296912
G48: Weighted CN | H48: S | J48: 0 | K48: 0.0260642274 | L48: 0.360785604 | M48: 42.2 | N48: 13.69668246
G49: =IF(C9>0,(SUMPRODUCT(D42:G42,D43:G43)+SUMPRODUCT(D44:G44,D45:G45)+SUMPRODUCT(D46:G46,D47:G47))/C9,0) -> 0 | H49: =IF(G49>0,1000/G49-10,1000) -> 1000 | J49: 0 | K49: 0.02711435765 | L49: 0.365163078 | M49: 42.3 | N49: 13.64066194
D50: =D16 -> 0 | E50: =E16 -> 0 | F50: =F16 -> 0 | J50: 0 | K50: 0.02818364146 | L50: 0.3695597892 | M50: 42.4 | N50: 13.58490566
A51: RVDeveloped (in) with no Runoff Reduction | D51: =IF(D$2>0.2*($H49),(D$2-0.2*($H49))^2/(D$2+0.8*($H49)),0) -> 0 | E51: =IF(E$2>0.2*($H49),(E$2-0.2*($H49))^2/(E$2+0.8*($H49)),0) -> 0 | F51: =IF(F$2>0.2*($H49),(F$2-0.2*($H49))^2/(F$2+0.8*($H49)),0) -> 0 | J51: 0 | K51: 0.02927199932 | L51: 0.3739756518 | M51: 42.5 | N51: 13.52941176
A52: RVDeveloped (in) with Runoff Reduction | D52: =IF($C9>0,D51-$C10/3630/$C9,D51) -> 0 | E52: =IF($C9>0,E51-$C10/3630/$C9,E51) -> 0 | F52: =IF($C9>0,F51-$C10/3630/$C9,F51) -> 0 | J52: 1.978597462e-06 | K52: 0.03037935264 | L52: 0.378410581 | M52: 42.6 | N52: 13.4741784
C53: Adjusted CN for D.A. B | D53: =IF(D52>0,VLOOKUP(D52,J$26:$N$626,4),0) -> 0 | E53: =IF(E52>0,VLOOKUP(E52,K$26:$N$626,3),0) -> 0 | F53: =IF(F52>0,VLOOKUP(F52,L$26:$N$626,2),0) -> 0 | J53: 1.943537957e-05 | K53: 0.03150562376 | L53: 0.3828644929 | M53: 42.7 | N53: 13.41920375
J54: 5.485248855e-05 | K54: 0.03265073589 | L54: 0.3873373046 | M54: 42.8 | N54: 13.36448598
J55: 0.0001081543072 | K55: 0.03381461313 | L55: 0.3918289337 | M55: 42.9 | N55: 13.31002331
A56: Drainage Area C | D56: A soils | E56: B Soils | F56: C Soils | G56: D Soils | J56: 0.0001792661065 | K56: 0.03499718047 | L56: 0.396339299 | M56: 43 | N56: 13.25581395
A57: Forest/Preserved Open Space | C57: Area (acres) | D57: ='D.A. C'!$B$8 -> 0 | E57: ='D.A. C'!$C$8 -> 0 | F57: ='D.A. C'!$D$8 -> 0 | G57: ='D.A. C'!$E$8 -> 0 | J57: 0.0002681140362 | K57: 0.03619836377 | L57: 0.40086832 | M57: 43.1 | N57: 13.20185615
C58: CN | D58: 30 | E58: 55 | F58: 70 | G58: 77 | J58: =IF(D$2>0.2*($N58),(D$2-0.2*($N58))^2/(D$2+0.8*($N58)),0) -> 0.0003746251154 | K58: =IF(E$2>0.2*($N58),(E$2-0.2*($N58))^2/(E$2+0.8*($N58)),0) -> 0.03741808974 | L58: =IF(F$2>0.2*($N58),(F$2-0.2*($N58))^2/(F$2+0.8*($N58)),0) -> 0.405415917 | M58: 43.2 | N58: =IF(M58>0,1000/M58-10,1000) -> 13.14814815
A59: Managed Turf | C59: Area (acres) | D59: ='D.A. C'!$B$9 -> 0 | E59: ='D.A. C'!$C$9 -> 0 | F59: ='D.A. C'!$D$9 -> 0 | G59: ='D.A. C'!$E$9 -> 0 | J59: 0.0004987272236 | K59: 0.03865628595 | L59: 0.4099820112 | M59: =M58+0.1 -> 43.3 | N59: 13.09468822
C60: CN | D60: 39 | E60: 61 | F60: 74 | G60: 80 | J60: 0.0006403490914 | K60: 0.03991288082 | L60: 0.4145665245 | M60: 43.4 | N60: 13.04147465
A61: Impervious Cover | C61: Area (acres) | D61: ='D.A. C'!$B$10 -> 0 | E61: ='D.A. C'!$C$10 -> 0 | F61: ='D.A. C'!$D$10 -> 0 | G61: ='D.A. C'!$E$10 -> 0 | J61: 0.0007994202916 | K61: 0.04118780356 | L61: 0.4191693797 | M61: 43.5 | N61: 12.98850575
C62: CN | D62: 98 | E62: 98 | F62: 98 | G62: 98 | J62: 0.0009758712307 | K62: 0.04248098426 | L62: 0.4237905003 | M62: 43.6 | N62: 12.93577982
G63: Weighted CN | H63: S | J63: 0.00116963314 | K63: 0.04379235379 | L63: 0.4284298107 | M63: 43.7 | N63: 12.88329519
G64: =IF(C13>0,(SUMPRODUCT(D57:G57,D58:G58)+SUMPRODUCT(D59:G59,D60:G60)+SUMPRODUCT(D61:G61,D62:G62))/C13,0) -> 0 | H64: =IF(G64>0,1000/G64-10,1000) -> 1000 | J64: 0.001380638066 | K64: 0.04512184383 | L64: 0.433087236 | M64: 43.8 | N64: 12.83105023
D65: =D31 -> 0 | E65: =E31 -> 0 | F65: =F31 -> 0 | J65: 0.001608818866 | K65: 0.04646938687 | L65: 0.4377627021 | M65: 43.9 | N65: 12.77904328
A66: RVDeveloped (in) with no Runoff Reduction | D66: =IF(D$2>0.2*($H64),(D$2-0.2*($H64))^2/(D$2+0.8*($H64)),0) -> 0 | E66: =IF(E$2>0.2*($H64),(E$2-0.2*($H64))^2/(E$2+0.8*($H64)),0) -> 0 | F66: =IF(F$2>0.2*($H64),(F$2-0.2*($H64))^2/(F$2+0.8*($H64)),0) -> 0 | J66: 0.001854109194 | K66: 0.04783491618 | L66: 0.4424561356 | M66: 44 | N66: 12.72727273
A67: RVDeveloped (in) with Runoff Reduction | D67: =IF($C13>0,D66-$C14/3630/$C13,D66) -> 0 | E67: =IF($C13>0,E66-$C14/3630/$C13,E66) -> 0 | F67: =IF($C13>0,F66-$C14/3630/$C13,F66) -> 0 | J67: 0.002116443495 | K67: 0.0492183658 | L67: 0.447167464 | M67: 44.1 | N67: 12.67573696
C68: Adjusted CN for D.A. C | D68: =IF(D67>0,VLOOKUP(D67,J$26:$N$626,4),0) -> 0 | E68: =IF(E67>0,VLOOKUP(E67,K$26:$N$626,3),0) -> 0 | F68: =IF(F67>0,VLOOKUP(F67,L$26:$N$626,2),0) -> 0 | J68: 0.002395757001 | K68: 0.05061967057 | L68: 0.4518966152 | M68: 44.2 | N68: 12.62443439
J69: 0.002691985715 | K69: 0.05203876608 | L69: 0.4566435183 | M69: 44.3 | N69: 12.57336343
J70: 0.003005066411 | K70: 0.05347558867 | L70: 0.4614081028 | M70: 44.4 | N70: 12.52252252
A71: Drainage Area D | D71: A soils | E71: B Soils | F71: C Soils | G71: D Soils | J71: 0.00333493662 | K71: 0.05493007544 | L71: 0.4661902989 | M71: 44.5 | N71: 12.47191011
A72: Forest/Preserved Open Space | C72: Area (acres) | D72: ='D.A. D'!$B$8 -> 0 | E72: ='D.A. D'!$C$8 -> 0 | F72: ='D.A. D'!$D$8 -> 0 | G72: ='D.A. D'!$E$8 -> 0 | J72: 0.003681534628 | K72: 0.05640216423 | L72: 0.4709900378 | M72: 44.6 | N72: 12.42152466
C73: CN | D73: 30 | E73: 55 | F73: 70 | G73: 77 | J73: 0.004044799463 | K73: 0.05789179361 | L73: 0.4758072511 | M73: 44.7 | N73: 12.37136465
A74: Managed Turf | C74: Area (acres) | D74: ='D.A. D'!$B$9 -> 0 | E74: ='D.A. D'!$C$9 -> 0 | F74: ='D.A. D'!$D$9 -> 0 | G74: ='D.A. D'!$E$9 -> 0 | J74: 0.004424670892 | K74: 0.05939890288 | L74: 0.4806418712 | M74: 44.8 | N74: 12.32142857
C75: CN | D75: 39 | E75: 61 | F75: 74 | G75: 80 | J75: 0.004821089412 | K75: 0.06092343205 | L75: 0.4854938312 | M75: 44.9 | N75: 12.27171492
A76: Impervious Cover | C76: Area (acres) | D76: ='D.A. D'!$B$10 -> 0 | E76: ='D.A. D'!$C$10 -> 0 | F76: ='D.A. D'!$D$10 -> 0 | G76: ='D.A. D'!$E$10 -> 0 | J76: 0.00523399624 | K76: 0.06246532186 | L76: 0.490363065 | M76: 45 | N76: 12.22222222
C77: CN | D77: 98 | E77: 98 | F77: 98 | G77: 98 | J77: 0.005663333313 | K77: 0.06402451373 | L77: 0.4952495068 | M77: 45.1 | N77: 12.172949
G78: Weighted CN | H78: S | J78: 0.006109043274 | K78: 0.0656009498 | L78: 0.5001530919 | M78: 45.2 | N78: 12.12389381
G79: =IF(C17>0,(SUMPRODUCT(D72:G72,D73:G73)+SUMPRODUCT(D74:G74,D75:G75)+SUMPRODUCT(D76:G76,D77:G77))/C17,0) -> 0 | H79: =IF(G79>0,1000/G79-10,1000) -> 1000 | J79: 0.006571069467 | K79: 0.06719457289 | L79: 0.505073756 | M79: 45.3 | N79: 12.07505519
D80: =D46 -> 0 | E80: =E46 -> 0 | F80: =F46 -> 0 | J80: 0.007049355934 | K80: 0.0688053265 | L80: 0.5100114354 | M80: 45.4 | N80: 12.02643172
A81: RVDeveloped (in) with no Runoff Reduction | D81: =IF(D$2>0.2*($H79),(D$2-0.2*($H79))^2/(D$2+0.8*($H79)),0) -> 0 | E81: =IF(E$2>0.2*($H79),(E$2-0.2*($H79))^2/(E$2+0.8*($H79)),0) -> 0 | F81: =IF(F$2>0.2*($H79),(F$2-0.2*($H79))^2/(F$2+0.8*($H79)),0) -> 0 | J81: 0.007543847402 | K81: 0.07043315481 | L81: 0.5149660674 | M81: 45.5 | N81: 11.97802198
A82: RVDeveloped (in) with Runoff Reduction | D82: =IF($C17>0,D81-$C18/3630/$C17,D81) -> 0 | E82: =IF($C17>0,E81-$C18/3630/$C17,E81) -> 0 | F82: =IF($C17>0,F81-$C18/3630/$C17,F81) -> 0 | J82: 0.008054489282 | K82: 0.07207800268 | L82: 0.5199375895 | M82: 45.6 | N82: 11.92982456
C83: Adjusted CN for D.A. D | D83: =IF(D82>0,VLOOKUP(D82,J$26:$N$626,4),0) -> 0 | E83: =IF(E82>0,VLOOKUP(E82,K$26:$N$626,3),0) -> 0 | F83: =IF(F82>0,VLOOKUP(F82,L$26:$N$626,2),0) -> 0 | J83: 0.008581227659 | K83: 0.07373981562 | L83: 0.52492594 | M83: 45.7 | N83: 11.88183807
J84: 0.009124009286 | K84: 0.07541853979 | L84: 0.529931058 | M84: 45.8 | N84: 11.83406114
J85: 0.00968278158 | K85: 0.07711412203 | L85: 0.534952883 | M85: 45.9 | N85: 11.78649237
A86: Drainage Area E | D86: A soils | E86: B Soils | F86: C Soils | G86: D Soils | J86: 0.01025749261 | K86: 0.0788265098 | L86: 0.539991355 | M86: 46 | N86: 11.73913043
A87: Forest/Preserved Open Space | C87: Area (acres) | D87: ='D.A. E'!$B$8 -> 0 | E87: ='D.A. E'!$C$8 -> 0 | F87: ='D.A. E'!$D$8 -> 0 | G87: ='D.A. E'!$E$8 -> 0 | J87: 0.01084809111 | K87: 0.08055565119 | L87: 0.545046415 | M87: 46.1 | N87: 11.69197397
C88: CN | D88: 30 | E88: 55 | F88: 70 | G88: 77 | J88: 0.01145452643 | K88: 0.08230149495 | L88: 0.5501180043 | M88: 46.2 | N88: 11.64502165
A89: Managed Turf | C89: Area (acres) | D89: ='D.A. E'!$B$9 -> 0 | E89: ='D.A. E'!$C$9 -> 0 | F89: ='D.A. E'!$D$9 -> 0 | G89: ='D.A. E'!$E$9 -> 0 | J89: 0.01207674858 | K89: 0.08406399044 | L89: 0.5552060648 | M89: 46.3 | N89: 11.59827214
C90: CN | D90: 39 | E90: 61 | F90: 74 | G90: 80 | J90: =IF(D$2>0.2*($N90),(D$2-0.2*($N90))^2/(D$2+0.8*($N90)),0) -> 0.0127147082 | K90: =IF(E$2>0.2*($N90),(E$2-0.2*($N90))^2/(E$2+0.8*($N90)),0) -> 0.08584308763 | L90: =IF(F$2>0.2*($N90),(F$2-0.2*($N90))^2/(F$2+0.8*($N90)),0) -> 0.560310539 | M90: 46.4 | N90: =IF(M90>0,1000/M90-10,1000) -> 11.55172414
A91: Impervious Cover | C91: Area (acres) | D91: ='D.A. E'!$B$10 -> 0 | E91: ='D.A. E'!$C$10 -> 0 | F91: ='D.A. E'!$D$10 -> 0 | G91: ='D.A. E'!$E$10 -> 0 | J91: 0.01336835654 | K91: 0.08763873712 | L91: 0.5654313701 | M91: =M90+0.1 -> 46.5 | N91: 11.50537634
C92: CN | D92: 98 | E92: 98 | F92: 98 | G92: 98 | J92: 0.0140376455 | K92: 0.08945089011 | L92: 0.5705685018 | M92: 46.6 | N92: 11.45922747
G93: Weighted CN | H93: S | J93: 0.01472252756 | K93: 0.09127949841 | L93: 0.5757218783 | M93: 46.7 | N93: 11.41327623
G94: =IF(C21>0,(SUMPRODUCT(D87:G87,D88:G88)+SUMPRODUCT(D89:G89,D90:G90)+SUMPRODUCT(D91:G91,D92:G92))/C21,0) -> 0 | H94: =IF(G94>0,1000/G94-10,1000) -> 1000 | J94: 0.01542295583 | K94: 0.09312451441 | L94: 0.5808914445 | M94: 46.8 | N94: 11.36752137
D95: =D61 -> 0 | E95: =E61 -> 0 | F95: =F61 -> 0 | J95: 0.01613888403 | K95: 0.0949858911 | L95: 0.5860771456 | M95: 46.9 | N95: 11.32196162
A96: RVDeveloped (in) with no Runoff Reduction | D96: =IF(D$2>0.2*($H94),(D$2-0.2*($H94))^2/(D$2+0.8*($H94)),0) -> 0 | E96: =IF(E$2>0.2*($H94),(E$2-0.2*($H94))^2/(E$2+0.8*($H94)),0) -> 0 | F96: =IF(F$2>0.2*($H94),(F$2-0.2*($H94))^2/(F$2+0.8*($H94)),0) -> 0 | J96: 0.01687026645 | K96: 0.09686358206 | L96: 0.5912789277 | M96: 47 | N96: 11.27659574
A97: RVDeveloped (in) with Runoff Reduction | D97: =IF($C21>0,D96-$C22/3630/$C21,D96) -> 0 | E97: =IF($C21>0,E96-$C22/3630/$C21,E96) -> 0 | F97: =IF($C21>0,F96-$C22/3630/$C21,F96) -> 0 | J97: 0.017617058 | K97: 0.09875754144 | L97: 0.5964967372 | M97: 47.1 | N97: 11.23142251
C98: Adjusted CN for D.A. E | D98: =IF(D97>0,VLOOKUP(D97,J$26:$N$626,4),0) -> 0 | E98: =IF(E97>0,VLOOKUP(E97,K$26:$N$626,3),0) -> 0 | F98: =IF(F97>0,VLOOKUP(F97,L$26:$N$626,2),0) -> 0 | J98: 0.01837921417 | K98: 0.100667724 | L98: 0.601730521 | M98: 47.2 | N98: 11.18644068
J99: 0.01915669102 | K99: 0.1025940849 | L99: 0.6069802268 | M99: 47.3 | N99: 11.14164905
J100: 0.01994944521 | K100: 0.1045365802 | L100: 0.6122458025 | M100: 47.4 | N100: 11.09704641
J101: 0.02075743394 | K101: 0.1064951663 | L101: 0.6175271968 | M101: 47.5 | N101: 11.05263158
J102: 0.02158061501 | K102: 0.1084698 | L102: 0.6228243587 | M102: 47.6 | N102: 11.00840336
J103: 0.02241894676 | K103: 0.1104604389 | L103: 0.6281372378 | M103: 47.7 | N103: 10.96436059
J104: 0.02327238811 | K104: 0.1124670411 | L104: 0.6334657844 | M104: 47.8 | N104: 10.92050209
J105: 0.02414089849 | K105: 0.1144895653 | L105: 0.6388099488 | M105: 47.9 | N105: 10.87682672
J106: 0.02502443793 | K106: 0.1165279704 | L106: 0.6441696823 | M106: 48 | N106: 10.83333333
J107: 0.02592296696 | K107: 0.1185822162 | L107: 0.6495449365 | M107: 48.1 | N107: 10.79002079
J108: 0.02683644667 | K108: 0.120652263 | L108: 0.6549356635 | M108: 48.2 | N108: 10.74688797
J109: 0.02776483869 | K109: 0.1227380713 | L109: 0.6603418157 | M109: 48.3 | N109: 10.70393375
J110: 0.02870810516 | K110: 0.1248396024 | L110: 0.6657633462 | M110: 48.4 | N110: 10.66115702
J111: 0.02966620875 | K111: 0.126956818 | L111: 0.6712002086 | M111: 48.5 | N111: 10.6185567
J112: 0.03063911266 | K112: 0.1290896805 | L112: 0.6766523568 | M112: 48.6 | N112: 10.57613169
J113: 0.0316267806 | K113: 0.1312381524 | L113: 0.6821197452 | M113: 48.7 | N113: 10.5338809
J114: 0.03262917679 | K114: 0.1334021972 | L114: 0.6876023288 | M114: 48.8 | N114: 10.49180328
J115: 0.03364626596 | K115: 0.1355817784 | L115: 0.6931000628 | M115: 48.9 | N115: 10.44989775
J116: 0.03467801335 | K116: 0.1377768603 | L116: 0.6986129032 | M116: 49 | N116: 10.40816327
J117: 0.03572438468 | K117: 0.1399874076 | L117: 0.704140806 | M117: 49.1 | N117: 10.36659878
J118: 0.03678534619 | K118: 0.1422133855 | L118: 0.709683728 | M118: 49.2 | N118: 10.32520325
J119: =IF(D$2>0.2*($N119),(D$2-0.2*($N119))^2/(D$2+0.8*($N119)),0) -> 0.0378608646 | K119: =IF(E$2>0.2*($N119),(E$2-0.2*($N119))^2/(E$2+0.8*($N119)),0) -> 0.1444547597 | L119: =IF(F$2>0.2*($N119),(F$2-0.2*($N119))^2/(F$2+0.8*($N119)),0) -> 0.7152416263 | M119: =M118+0.1 -> 49.3 | N119: =IF(M119>0,1000/M119-10,1000) -> 10.28397566
J120: 0.03895090711 | K120: 0.1467114962 | L120: 0.7208144585 | M120: =M119+0.1 -> 49.4 | N120: 10.24291498
J121: 0.04005544142 | K121: 0.1489835618 | L121: 0.7264021825 | M121: 49.5 | N121: 10.2020202
J122: 0.0411744357 | K122: 0.1512709233 | L122: 0.7320047566 | M122: 49.6 | N122: 10.16129032
J123: 0.04230785859 | K123: 0.1535735484 | L123: 0.7376221398 | M123: 49.7 | N123: 10.12072435
J124: 0.04345567923 | K124: 0.1558914051 | L124: 0.7432542912 | M124: 49.8 | N124: 10.08032129
J125: 0.04461786718 | K125: 0.1582244617 | L125: 0.7489011705 | M125: 49.9 | N125: 10.04008016
J126: 0.04579439252 | K126: 0.1605726872 | L126: 0.7545627376 | M126: 50 | N126: 10
J127: 0.04698522576 | K127: 0.1629360509 | L127: 0.7602389532 | M127: 50.1 | N127: 9.96007984
J128: 0.04819033787 | K128: 0.1653145225 | L128: 0.7659297779 | M128: 50.2 | N128: 9.920318725
J129: 0.04940970029 | K129: 0.1677080722 | L129: 0.7716351731 | M129: 50.3 | N129: 9.880715706
J130: 0.05064328489 | K130: 0.1701166708 | L130: 0.7773551003 | M130: 50.4 | N130: 9.841269841
J131: 0.051891064 | K131: 0.1725402892 | L131: 0.7830895217 | M131: 50.5 | N131: 9.801980198
J132: 0.0531530104 | K132: 0.1749788989 | L132: 0.7888383995 | M132: 50.6 | N132: 9.76284585
J133: 0.05442909731 | K133: 0.1774324719 | L133: 0.7946016966 | M133: 50.7 | N133: 9.723865878
J134: 0.05571929837 | K134: 0.1799009805 | L134: 0.8003793761 | M134: 50.8 | N134: 9.68503937
J135: 0.05702358768 | K135: 0.1823843975 | L135: 0.8061714016 | M135: 50.9 | N135: 9.646365422
J136: 0.05834193976 | K136: 0.1848826961 | L136: 0.8119777369 | M136: 51 | N136: 9.607843137
J137: 0.05967432956 | K137: 0.1873958498 | L137: 0.8177983464 | M137: 51.1 | N137: 9.569471624
J138: 0.06102073245 | K138: 0.1899238326 | L138: 0.8236331947 | M138: 51.2 | N138: 9.53125
J139: 0.06238112423 | K139: 0.1924666189 | L139: 0.8294822468 | M139: 51.3 | N139: 9.493177388
J140: 0.06375548112 | K140: 0.1950241836 | L140: 0.8353454679 | M140: 51.4 | N140: 9.455252918
J141: 0.06514377977 | K141: 0.1975965017 | L141: 0.8412228239 | M141: 51.5 | N141: 9.417475728
J142: 0.06654599721 | K142: 0.200183549 | L142: 0.8471142807 | M142: 51.6 | N142: 9.379844961
J143: 0.06796211091 | K143: 0.2027853014 | L143: 0.8530198048 | M143: 51.7 | N143: 9.342359768
J144: 0.06939209873 | K144: 0.2054017352 | L144: 0.8589393629 | M144: 51.8 | N144: 9.305019305
J145: 0.07083593897 | K145: 0.2080328273 | L145: 0.8648729222 | M145: 51.9 | N145: 9.267822736
J146: 0.07229361028 | K146: 0.2106785547 | L146: 0.8708204499 | M146: 52 | N146: 9.230769231
J147: 0.07376509176 | K147: 0.213338895 | L147: 0.8767819139 | M147: 52.1 | N147: 9.193857965
J148: 0.07525036287 | K148: 0.2160138262 | L148: 0.8827572822 | M148: 52.2 | N148: 9.157088123
J149: 0.07674940349 | K149: 0.2187033264 | L149: 0.8887465233 | M149: 52.3 | N149: 9.120458891
J150: 0.07826219389 | K150: 0.2214073743 | L150: 0.894749606 | M150: 52.4 | N150: 9.083969466
J151: 0.07978871472 | K151: 0.224125949 | L151: 0.9007664992 | M151: 52.5 | N151: 9.047619048
J152: 0.08132894702 | K152: 0.2268590298 | L152: 0.9067971723 | M152: 52.6 | N152: 9.011406844
J153: 0.08288287221 | K153: 0.2296065966 | L153: 0.9128415951 | M153: 52.7 | N153: 8.975332068
J154: 0.08445047212 | K154: 0.2323686293 | L154: 0.9188997376 | M154: 52.8 | N154: 8.939393939
J155: 0.08603172892 | K155: 0.2351451085 | L155: 0.9249715701 | M155: 52.9 | N155: 8.903591682
J156: 0.08762662518 | K156: 0.2379360151 | L156: 0.9310570632 | M156: 53 | N156: 8.867924528
J157: 0.08923514386 | K157: 0.2407413301 | L157: 0.9371561878 | M157: 53.1 | N157: 8.832391714
J158: 0.09085726826 | K158: 0.2435610352 | L158: 0.9432689152 | M158: 53.2 | N158: 8.796992481
J159: 0.09249298207 | K159: 0.2463951122 | L159: 0.949395217 | M159: 53.3 | N159: 8.761726079
J160: 0.09414226936 | K160: 0.2492435433 | L160: 0.9555350649 | M160: 53.4 | N160: 8.72659176
J161: 0.09580511454 | K161: 0.2521063112 | L161: 0.9616884312 | M161: 53.5 | N161: 8.691588785
J162: 0.0974815024 | K162: 0.2549833988 | L162: 0.9678552882 | M162: 53.6 | N162: 8.656716418
J163: 0.09917141809 | K163: 0.2578747893 | L163: 0.9740356086 | M163: 53.7 | N163: 8.621973929
J164: 0.1008748471 | K164: 0.2607804663 | L164: 0.9802293655 | M164: 53.8 | N164: 8.587360595
J165: 0.1025917754 | K165: 0.2637004138 | L165: 0.9864365321 | M165: 53.9 | N165: 8.552875696
J166: 0.1043221891 | K166: 0.266634616 | L166: 0.9926570821 | M166: 54 | N166: 8.518518519
J167: 0.1060660748 | K167: 0.2695830576 | L167: 0.9988909892 | M167: 54.1 | N167: 8.484288355
J168: 0.1078234194 | K168: 0.2725457234 | L168: 1.005138228 | M168: 54.2 | N168: 8.450184502
J169: 0.1095942103 | K169: 0.2755225988 | L169: 1.011398772 | M169: 54.3 | N169: 8.416206262
J170: 0.1113784351 | K170: 0.2785136693 | L170: 1.017672596 | M170: 54.4 | N170: 8.382352941
J171: 0.1131760816 | K171: 0.2815189208 | L171: 1.023959676 | M171: 54.5 | N171: 8.348623853
J172: 0.1149871384 | K172: 0.2845383395 | L172: 1.030259986 | M172: 54.6 | N172: 8.315018315
J173: 0.116811594 | K173: 0.2875719121 | L173: 1.036573503 | M173: 54.7 | N173: 8.281535649
J174: 0.1186494374 | K174: 0.2906196253 | L174: 1.042900201 | M174: 54.8 | N174: 8.248175182
J175: 0.1205006579 | K175: 0.2936814663 | L175: 1.049240057 | M175: 54.9 | N175: 8.214936248
J176: 0.1223652454 | K176: 0.2967574226 | L176: 1.055593047 | M176: 55 | N176: 8.181818182
J177: 0.1242431897 | K177: 0.2998474821 | L177: 1.061959147 | M177: 55.1 | N177: 8.148820327
J178: 0.1261344812 | K178: 0.3029516328 | L178: 1.068338335 | M178: 55.2 | N178: 8.115942029
J179: 0.1280391107 | K179: 0.3060698632 | L179: 1.074730587 | M179: 55.3 | N179: 8.08318264
J180: 0.1299570691 | K180: 0.309202162 | L180: 1.081135881 | M180: 55.4 | N180: 8.050541516
J181: 0.1318883478 | K181: 0.3123485182 | L181: 1.087554194 | M181: 55.5 | N181: 8.018018018
J182: 0.1338329384 | K182: 0.3155089211 | L182: 1.093985504 | M182: 55.6 | N182: 7.985611511
J183: =IF(D$2>0.2*($N183),(D$2-0.2*($N183))^2/(D$2+0.8*($N183)),0) -> 0.135790833 | K183: =IF(E$2>0.2*($N183),(E$2-0.2*($N183))^2/(E$2+0.8*($N183)),0) -> 0.3186833604 | L183: =IF(F$2>0.2*($N183),(F$2-0.2*($N183))^2/(F$2+0.8*($N183)),0) -> 1.100429789 | M183: 55.7 | N183: =IF(M183>0,1000/M183-10,1000) -> 7.953321364
J184: 0.1377620238 | K184: 0.3218718261 | L184: 1.106887028 | M184: =M183+0.1 -> 55.8 | N184: 7.921146953
J185: 0.1397465036 | K185: 0.3250743082 | L185: 1.113357198 | M185: 55.9 | N185: 7.889087657
J186: 0.1417442653 | K186: 0.3282907974 | L186: 1.119840278 | M186: 56 | N186: 7.857142857
J187: 0.1437553021 | K187: 0.3315212845 | L187: 1.126336249 | M187: 56.1 | N187: 7.825311943
J188: 0.1457796078 | K188: 0.3347657606 | L188: 1.132845087 | M188: 56.2 | N188: 7.793594306
J189: 0.1478171761 | K189: 0.338024217 | L189: 1.139366774 | M189: 56.3 | N189: 7.761989343
J190: 0.1498680014 | K190: 0.3412966455 | L190: 1.145901289 | M190: 56.4 | N190: 7.730496454
J191: 0.1519320783 | K191: 0.3445830381 | L191: 1.152448612 | M191: 56.5 | N191: 7.699115044
J192: 0.1540094015 | K192: 0.3478833869 | L192: 1.159008722 | M192: 56.6 | N192: 7.667844523
J193: 0.1560999662 | K193: 0.3511976846 | L193: 1.165581601 | M193: 56.7 | N193: 7.636684303
J194: 0.1582037681 | K194: 0.3545259239 | L194: 1.172167229 | M194: 56.8 | N194: 7.605633803
J195: 0.1603208028 | K195: 0.357868098 | L195: 1.178765586 | M195: 56.9 | N195: 7.574692443
J196: 0.1624510664 | K196: 0.3612242003 | L196: 1.185376654 | M196: 57 | N196: 7.543859649
J197: 0.1645945555 | K197: 0.3645942244 | L197: 1.192000414 | M197: 57.1 | N197: 7.513134851
J198: 0.1667512666 | K198: 0.3679781643 | L198: 1.198636848 | M198: 57.2 | N198: 7.482517483
J199: 0.1689211969 | K199: 0.3713760142 | L199: 1.205285936 | M199: 57.3 | N199: 7.452006981
J200: 0.1711043437 | K200: 0.3747877685 | L200: 1.211947662 | M200: 57.4 | N200: 7.421602787
J201: 0.1733007045 | K201: 0.378213422 | L201: 1.218622007 | M201: 57.5 | N201: 7.391304348
J202: 0.1755102774 | K202: 0.3816529699 | L202: 1.225308953 | M202: 57.6 | N202: 7.361111111
J203: 0.1777330606 | K203: 0.3851064073 | L203: 1.232008483 | M203: 57.7 | N203: 7.33102253
J204: 0.1799690526 | K204: 0.3885737298 | L204: 1.238720579 | M204: 57.8 | N204: 7.301038062
J205: 0.1822182522 | K205: 0.3920549334 | L205: 1.245445226 | M205: 57.9 | N205: 7.271157168
J206: 0.1844806586 | K206: 0.395550014 | L206: 1.252182405 | M206: 58 | N206: 7.24137931
... 420 more rows

Sheet Print Summary
B2: West Virginia MS4 Stormwater Compliance Spreadsheet v2.0; April 2013
B4: Site Data Summary
B6: Site Land Cover Summary
C8: A Soils | D8: B Soils | E8: C Soils | F8: D Soils | G8: Total | H8: % of Total
B9: Forest (acres) | C9: 0 | D9: 0 | E9: 0 | F9: 0 | G9: 0 | H9: 0
B10: Turf (acres) | C10: 0 | D10: 0 | E10: 0 | F10: 0 | G10: 0 | H10: 0
B11: Impervious (acres) | C11: 0 | D11: 0 | E11: 0 | F11: 0 | G11: 0 | H11: 0
G12: 0 | H12: 0
B15: Site Rv | C15: 0
B16: Post Development Treatment Volume (ft3) | C16: 0
B18: Total Runoff Volume Reduction (ft3) | C18: 0
B21: Drainage Area Summary
C23: D.A. A | D23: D.A. B | E23: D.A. C | F23: D.A. D | G23: D.A. E | H23: Total
B24: Forest (acres) | C24: 0 | D24: 0 | E24: 0 | F24: 0 | G24: 0 | H24: 0
B25: Turf (acres) | C25: 0 | D25: 0 | E25: 0 | F25: 0 | G25: 0 | H25: 0
B26: Impervious (acres) | C26: 0 | D26: 0 | E26: 0 | F26: 0 | G26: 0 | H26: 0
H27: 0
B40: Channel and Flood Protection
C42: Weighted CN | D42: 1-year storm Adjusted CN | E42: 2-year storm Adjusted CN | F42: 10-year storm Adjusted CN
B43: Target Rainfall Event (in) | D43: 2.7 | E43: 3.35 | F43: 5.15
B44: D.A. A CN | C44: 0 | D44: 0 | E44: 0 | F44: 0
B45: D.A. B CN | C45: 0 | D45: 0 | E45: 0 | F45: 0
B46: D.A. C CN | C46: 0 | D46: 0 | E46: 0 | F46: 0
B47: D.A. D CN | C47: 0 | D47: 0 | E47: 0 | F47: 0
B48: D.A. E CN | C48: 0 | D48: 0 | E48: 0 | F48: 0

Sheet Summary_BU (hidden)
I1: wv
B2: ='Site Data'!A1 -> West Virginia MS4 Stormwater Compliance Spreadsheet v2.0; April 2013
B4: Site Data Summary
B6: Site Land Cover Summary
C8: A Soils | D8: B Soils | E8: C Soils | F8: D Soils | G8: Total | H8: % of Total
B9: Forest (acres) | C9: ='Site Data'!B52 -> 0 | D9: ='Site Data'!C52 -> 0 | E9: ='Site Data'!D52 -> 0 | F9: ='Site Data'!E52 -> 0 | G9: ='Site Data'!F52 -> 0 | H9: =IF(G$12>0,G9/G$12*100,0) -> 0
B10: Turf (acres) | C10: ='Site Data'!B53 -> 0 | D10: ='Site Data'!C53 -> 0 | E10: ='Site Data'!D53 -> 0 | F10: ='Site Data'!E53 -> 0 | G10: ='Site Data'!F53 -> 0 | H10: =IF(G$12>0,G10/G$12*100,0) -> 0
B11: Impervious (acres) | C11: ='Site Data'!B54 -> 0 | D11: ='Site Data'!C54 -> 0 | E11: ='Site Data'!D54 -> 0 | F11: ='Site Data'!E54 -> 0 | G11: ='Site Data'!F54 -> 0 | H11: =IF(G$12>0,G11/G$12*100,0) -> 0
G12: ='Site Data'!F55 -> 0 | H12: =SUM(H9:H11) -> 0
C13: =IF(('D.A. A'!F8+'D.A. B'!F8+'D.A. C'!F8+'D.A. D'!F8+'D.A. E'!F8) >Summary_BU!G12,"Sum of Drainage Areas is greater than Total Site Area","") -> 
B15: Site Rv | C15: ='Site Data'!B75 -> 0
B16: Post Development Treatment Volume (ft3) | C16: ='Site Data'!B88 -> 0
B18: Total Runoff Volume Reduction (ft3) | C18: ='Runoff Reduction Summary'!B7 -> 0
B21: Drainage Area Summary
C23: D.A. A | D23: D.A. B | E23: D.A. C | F23: D.A. D | G23: D.A. E | H23: Total
B24: Forest (acres) | C24: ='Site Data'!F17 -> 0 | D24: ='Site Data'!F24 -> 0 | E24: ='Site Data'!F31 -> 0 | F24: ='Site Data'!F38 -> 0 | G24: ='Site Data'!F45 -> 0 | H24: =SUM(C24:G24) -> 0
B25: Turf (acres) | C25: ='Site Data'!F18 -> 0 | D25: ='Site Data'!F25 -> 0 | E25: ='Site Data'!F32 -> 0 | F25: ='Site Data'!F39 -> 0 | G25: ='Site Data'!F46 -> 0 | H25: =SUM(C25:G25) -> 0
B26: Impervious (acres) | C26: ='Site Data'!F19 -> 0 | D26: ='Site Data'!F26 -> 0 | E26: ='Site Data'!F33 -> 0 | F26: ='Site Data'!F40 -> 0 | G26: ='Site Data'!F47 -> 0 | H26: =SUM(C26:G26) -> 0
H27: =SUM(H24:H26) -> 0
B30: Drainage Area A Summary | I30: =IF(SUM($C$24:$C$26)<>0,1,"") -> 
I31: =IF(SUM($C$24:$C$26)<>0,1,"") -> 
B32: Land Cover Summary
C34: A Soils | D34: B Soils | E34: C Soils | F34: D Soils | G34: Total | H34: % of Total
B35: Forest (acres) | C35: ='Site Data'!B17 -> 0 | D35: ='Site Data'!C17 -> 0 | E35: ='Site Data'!D17 -> 0 | F35: ='Site Data'!E17 -> 0 | G35: ='Site Data'!F17 -> 0 | H35: =IF(G$38>0,G35/G$38*100,0) -> 0
B36: Turf (acres) | C36: ='Site Data'!B18 -> 0 | D36: ='Site Data'!C18 -> 0 | E36: ='Site Data'!D18 -> 0 | F36: ='Site Data'!E18 -> 0 | G36: ='Site Data'!F18 -> 0 | H36: =IF(G$38>0,G36/G$38*100,0) -> 0
B37: Impervious (acres) | C37: ='Site Data'!B19 -> 0 | D37: ='Site Data'!C19 -> 0 | E37: ='Site Data'!D19 -> 0 | F37: ='Site Data'!E19 -> 0 | G37: ='Site Data'!F19 -> 0 | H37: =IF(G$38>0,G37/G$38*100,0) -> 0
G38: =SUM(G35:G37) -> 0
B40: BMP Selections
B42: =IF(SUM(I43:I63)>0,"Practice","No Practices in this Drainage Area") -> No Practices in this Drainage Area | C42: Credit Area (acres) | D42: Runoff Reduction (ft3) | E42: Downstream Practice
B43: Vegetated Roof | C43: =SUMIFS('D.A. A'!$B$19:$B$47,'D.A. A'!$A$19:$A$47,B43,'D.A. A'!$B$19:$B$47,">0")+SUMIFS('D.A. A'!$C$19:$C$47,'D.A. A'!$A$19:$A$47,B43,'D.A. A'!$C$19:$C$47,">0") -> 0 | D43: =SUMIFS('D.A. A'!$K$19:$K$47,'D.A. A'!$A$19:$A$47,B43,'D.A. A'!$K$19:$K$47,">0") -> 0 | E43: =IF(OFFSET(INDEX('D.A. A'!$A$19:$A$47,MATCH(B43,'D.A. A'!$A$19:$A$47,0),1),0,12)=0,"",IF(LEN(OFFSET(INDEX('D.A. A'!$A$19:$A$47,MATCH(B43,'D.A. A'!$A$19:$A$47,0),1),0,12))>27,LEFT(OFFSET(INDEX('D.A. A'!$A$19:$A$47,MATCH(B43,'D.A. A'!$A$19:$A$47,0),1),0,12),27)&"…",OFFSET(INDEX('D.A. A'!$A$19:$A$47,MATCH(B43,'D.A. A'!$A$19:$A$47,0),1),0,12))) ->  | I43: =IF(AND(D43>0,SUM($C$24:$C$26)>0),1,"") -> 
B44: Simple Disconnection to A/B Soils or Soil-Amended Filter Path in C/D Soils (4.2.2, Appendix D) | C44: =SUMIFS('D.A. A'!$B$19:$B$47,'D.A. A'!$A$19:$A$47,B44,'D.A. A'!$B$19:$B$47,">0")+SUMIFS('D.A. A'!$C$19:$C$47,'D.A. A'!$A$19:$A$47,B44,'D.A. A'!$C$19:$C$47,">0") -> 0 | D44: =SUMIFS('D.A. A'!$K$19:$K$47,'D.A. A'!$A$19:$A$47,B44,'D.A. A'!$K$19:$K$47,">0") -> 0 | E44: =IF(OFFSET(INDEX('D.A. A'!$A$19:$A$47,MATCH(B44,'D.A. A'!$A$19:$A$47,0),1),0,12)=0,"",IF(LEN(OFFSET(INDEX('D.A. A'!$A$19:$A$47,MATCH(B44,'D.A. A'!$A$19:$A$47,0),1),0,12))>27,LEFT(OFFSET(INDEX('D.A. A'!$A$19:$A$47,MATCH(B44,'D.A. A'!$A$19:$A$47,0),1),0,12),27)&"…",OFFSET(INDEX('D.A. A'!$A$19:$A$47,MATCH(B44,'D.A. A'!$A$19:$A$47,0),1),0,12))) ->  | I44: =IF(AND(D44>0,SUM($C$24:$C$26)>0),1,"") -> 
B45: Simple Disconnection to C/D Soils (4.2.2) | C45: =SUMIFS('D.A. A'!$B$19:$B$47,'D.A. A'!$A$19:$A$47,B45,'D.A. A'!$B$19:$B$47,">0")+SUMIFS('D.A. A'!$C$19:$C$47,'D.A. A'!$A$19:$A$47,B45,'D.A. A'!$C$19:$C$47,">0") -> 0 | D45: =SUMIFS('D.A. A'!$K$19:$K$47,'D.A. A'!$A$19:$A$47,B45,'D.A. A'!$K$19:$K$47,">0") -> 0 | E45: =IF(OFFSET(INDEX('D.A. A'!$A$19:$A$47,MATCH(B45,'D.A. A'!$A$19:$A$47,0),1),0,12)=0,"",IF(LEN(OFFSET(INDEX('D.A. A'!$A$19:$A$47,MATCH(B45,'D.A. A'!$A$19:$A$47,0),1),0,12))>27,LEFT(OFFSET(INDEX('D.A. A'!$A$19:$A$47,MATCH(B45,'D.A. A'!$A$19:$A$47,0),1),0,12),27)&"…",OFFSET(INDEX('D.A. A'!$A$19:$A$47,MATCH(B45,'D.A. A'!$A$19:$A$47,0),1),0,12))) -> 
B46: To Residential Rain Garden (4.2.3.C) | C46: =SUMIFS('D.A. A'!$B$19:$B$47,'D.A. A'!$A$19:$A$47,B46,'D.A. A'!$B$19:$B$47,">0")+SUMIFS('D.A. A'!$C$19:$C$47,'D.A. A'!$A$19:$A$47,B46,'D.A. A'!$C$19:$C$47,">0") -> 0 | D46: =SUMIFS('D.A. A'!$K$19:$K$47,'D.A. A'!$A$19:$A$47,B46,'D.A. A'!$K$19:$K$47,">0") -> 0 | E46: =IF(OFFSET(INDEX('D.A. A'!$A$19:$A$47,MATCH(B46,'D.A. A'!$A$19:$A$47,0),1),0,12)=0,"",IF(LEN(OFFSET(INDEX('D.A. A'!$A$19:$A$47,MATCH(B46,'D.A. A'!$A$19:$A$47,0),1),0,12))>27,LEFT(OFFSET(INDEX('D.A. A'!$A$19:$A$47,MATCH(B46,'D.A. A'!$A$19:$A$47,0),1),0,12),27)&"…",OFFSET(INDEX('D.A. A'!$A$19:$A$47,MATCH(B46,'D.A. A'!$A$19:$A$47,0),1),0,12))) -> 
B47: To Rainwater Harvesting (4.2.8) | C47: =SUMIFS('D.A. A'!$B$19:$B$47,'D.A. A'!$A$19:$A$47,B47,'D.A. A'!$B$19:$B$47,">0")+SUMIFS('D.A. A'!$C$19:$C$47,'D.A. A'!$A$19:$A$47,B47,'D.A. A'!$C$19:$C$47,">0") -> 0 | D47: =SUMIFS('D.A. A'!$K$19:$K$47,'D.A. A'!$A$19:$A$47,B47,'D.A. A'!$K$19:$K$47,">0") -> 0 | E47: =IF(OFFSET(INDEX('D.A. A'!$A$19:$A$47,MATCH(B47,'D.A. A'!$A$19:$A$47,0),1),0,12)=0,"",IF(LEN(OFFSET(INDEX('D.A. A'!$A$19:$A$47,MATCH(B47,'D.A. A'!$A$19:$A$47,0),1),0,12))>27,LEFT(OFFSET(INDEX('D.A. A'!$A$19:$A$47,MATCH(B47,'D.A. A'!$A$19:$A$47,0),1),0,12),27)&"…",OFFSET(INDEX('D.A. A'!$A$19:$A$47,MATCH(B47,'D.A. A'!$A$19:$A$47,0),1),0,12))) -> 
B48: Permeable Pavement, Level 1 | C48: =SUMIFS('D.A. A'!$B$19:$B$47,'D.A. A'!$A$19:$A$47,B48,'D.A. A'!$B$19:$B$47,">0")+SUMIFS('D.A. A'!$C$19:$C$47,'D.A. A'!$A$19:$A$47,B48,'D.A. A'!$C$19:$C$47,">0") -> 0 | D48: =SUMIFS('D.A. A'!$K$19:$K$47,'D.A. A'!$A$19:$A$47,B48,'D.A. A'!$K$19:$K$47,">0") -> 0 | E48: =IF(OFFSET(INDEX('D.A. A'!$A$19:$A$47,MATCH(B48,'D.A. A'!$A$19:$A$47,0),1),0,12)=0,"",IF(LEN(OFFSET(INDEX('D.A. A'!$A$19:$A$47,MATCH(B48,'D.A. A'!$A$19:$A$47,0),1),0,12))>27,LEFT(OFFSET(INDEX('D.A. A'!$A$19:$A$47,MATCH(B48,'D.A. A'!$A$19:$A$47,0),1),0,12),27)&"…",OFFSET(INDEX('D.A. A'!$A$19:$A$47,MATCH(B48,'D.A. A'!$A$19:$A$47,0),1),0,12))) -> 
B49: Permeable Pavement, Level 2 (infiltration) | C49: =SUMIFS('D.A. A'!$B$19:$B$47,'D.A. A'!$A$19:$A$47,B49,'D.A. A'!$B$19:$B$47,">0")+SUMIFS('D.A. A'!$C$19:$C$47,'D.A. A'!$A$19:$A$47,B49,'D.A. A'!$C$19:$C$47,">0") -> 0 | D49: =SUMIFS('D.A. A'!$K$19:$K$47,'D.A. A'!$A$19:$A$47,B49,'D.A. A'!$K$19:$K$47,">0") -> 0 | E49: =IF(OFFSET(INDEX('D.A. A'!$A$19:$A$47,MATCH(B49,'D.A. A'!$A$19:$A$47,0),1),0,12)=0,"",IF(LEN(OFFSET(INDEX('D.A. A'!$A$19:$A$47,MATCH(B49,'D.A. A'!$A$19:$A$47,0),1),0,12))>27,LEFT(OFFSET(INDEX('D.A. A'!$A$19:$A$47,MATCH(B49,'D.A. A'!$A$19:$A$47,0),1),0,12),27)&"…",OFFSET(INDEX('D.A. A'!$A$19:$A$47,MATCH(B49,'D.A. A'!$A$19:$A$47,0),1),0,12))) -> 
B50: Permeable Pavement, Level 2 (infiltration & underdrain) | C50: =SUMIFS('D.A. A'!$B$19:$B$47,'D.A. A'!$A$19:$A$47,B50,'D.A. A'!$B$19:$B$47,">0")+SUMIFS('D.A. A'!$C$19:$C$47,'D.A. A'!$A$19:$A$47,B50,'D.A. A'!$C$19:$C$47,">0") -> 0 | D50: =SUMIFS('D.A. A'!$K$19:$K$47,'D.A. A'!$A$19:$A$47,B50,'D.A. A'!$K$19:$K$47,">0") -> 0 | E50: =IF(OFFSET(INDEX('D.A. A'!$A$19:$A$47,MATCH(B50,'D.A. A'!$A$19:$A$47,0),1),0,12)=0,"",IF(LEN(OFFSET(INDEX('D.A. A'!$A$19:$A$47,MATCH(B50,'D.A. A'!$A$19:$A$47,0),1),0,12))>27,LEFT(OFFSET(INDEX('D.A. A'!$A$19:$A$47,MATCH(B50,'D.A. A'!$A$19:$A$47,0),1),0,12),27)&"…",OFFSET(INDEX('D.A. A'!$A$19:$A$47,MATCH(B50,'D.A. A'!$A$19:$A$47,0),1),0,12))) -> 
B51: Grass Swale A/B Soils | C51: =SUMIFS('D.A. A'!$B$19:$B$47,'D.A. A'!$A$19:$A$47,B51,'D.A. A'!$B$19:$B$47,">0")+SUMIFS('D.A. A'!$C$19:$C$47,'D.A. A'!$A$19:$A$47,B51,'D.A. A'!$C$19:$C$47,">0") -> 0 | D51: =SUMIFS('D.A. A'!$K$19:$K$47,'D.A. A'!$A$19:$A$47,B51,'D.A. A'!$K$19:$K$47,">0") -> 0 | E51: =IF(OFFSET(INDEX('D.A. A'!$A$19:$A$47,MATCH(B51,'D.A. A'!$A$19:$A$47,0),1),0,12)=0,"",IF(LEN(OFFSET(INDEX('D.A. A'!$A$19:$A$47,MATCH(B51,'D.A. A'!$A$19:$A$47,0),1),0,12))>27,LEFT(OFFSET(INDEX('D.A. A'!$A$19:$A$47,MATCH(B51,'D.A. A'!$A$19:$A$47,0),1),0,12),27)&"…",OFFSET(INDEX('D.A. A'!$A$19:$A$47,MATCH(B51,'D.A. A'!$A$19:$A$47,0),1),0,12))) -> 
B52: Grass Swale C/D Soils | C52: =SUMIFS('D.A. A'!$B$19:$B$47,'D.A. A'!$A$19:$A$47,B52,'D.A. A'!$B$19:$B$47,">0")+SUMIFS('D.A. A'!$C$19:$C$47,'D.A. A'!$A$19:$A$47,B52,'D.A. A'!$C$19:$C$47,">0") -> 0 | D52: =SUMIFS('D.A. A'!$K$19:$K$47,'D.A. A'!$A$19:$A$47,B52,'D.A. A'!$K$19:$K$47,">0") -> 0 | E52: =IF(OFFSET(INDEX('D.A. A'!$A$19:$A$47,MATCH(B52,'D.A. A'!$A$19:$A$47,0),1),0,12)=0,"",IF(LEN(OFFSET(INDEX('D.A. A'!$A$19:$A$47,MATCH(B52,'D.A. A'!$A$19:$A$47,0),1),0,12))>27,LEFT(OFFSET(INDEX('D.A. A'!$A$19:$A$47,MATCH(B52,'D.A. A'!$A$19:$A$47,0),1),0,12),27)&"…",OFFSET(INDEX('D.A. A'!$A$19:$A$47,MATCH(B52,'D.A. A'!$A$19:$A$47,0),1),0,12))) -> 
B53: Grass Swale in C/D Soil with Soil Amendments | C53: =SUMIFS('D.A. A'!$B$19:$B$47,'D.A. A'!$A$19:$A$47,B53,'D.A. A'!$B$19:$B$47,">0")+SUMIFS('D.A. A'!$C$19:$C$47,'D.A. A'!$A$19:$A$47,B53,'D.A. A'!$C$19:$C$47,">0") -> 0 | D53: =SUMIFS('D.A. A'!$K$19:$K$47,'D.A. A'!$A$19:$A$47,B53,'D.A. A'!$K$19:$K$47,">0") -> 0 | E53: =IF(OFFSET(INDEX('D.A. A'!$A$19:$A$47,MATCH(B53,'D.A. A'!$A$19:$A$47,0),1),0,12)=0,"",IF(LEN(OFFSET(INDEX('D.A. A'!$A$19:$A$47,MATCH(B53,'D.A. A'!$A$19:$A$47,0),1),0,12))>27,LEFT(OFFSET(INDEX('D.A. A'!$A$19:$A$47,MATCH(B53,'D.A. A'!$A$19:$A$47,0),1),0,12),27)&"…",OFFSET(INDEX('D.A. A'!$A$19:$A$47,MATCH(B53,'D.A. A'!$A$19:$A$47,0),1),0,12))) -> 
B54: Water Quality Swale, Level 1 | C54: =SUMIFS('D.A. A'!$B$19:$B$47,'D.A. A'!$A$19:$A$47,B54,'D.A. A'!$B$19:$B$47,">0")+SUMIFS('D.A. A'!$C$19:$C$47,'D.A. A'!$A$19:$A$47,B54,'D.A. A'!$C$19:$C$47,">0") -> 0 | D54: =SUMIFS('D.A. A'!$K$19:$K$47,'D.A. A'!$A$19:$A$47,B54,'D.A. A'!$K$19:$K$47,">0") -> 0 | E54: =IF(OFFSET(INDEX('D.A. A'!$A$19:$A$47,MATCH(B54,'D.A. A'!$A$19:$A$47,0),1),0,12)=0,"",IF(LEN(OFFSET(INDEX('D.A. A'!$A$19:$A$47,MATCH(B54,'D.A. A'!$A$19:$A$47,0),1),0,12))>27,LEFT(OFFSET(INDEX('D.A. A'!$A$19:$A$47,MATCH(B54,'D.A. A'!$A$19:$A$47,0),1),0,12),27)&"…",OFFSET(INDEX('D.A. A'!$A$19:$A$47,MATCH(B54,'D.A. A'!$A$19:$A$47,0),1),0,12))) -> 
B55: Water Quality Swale, Level 2 | C55: =SUMIFS('D.A. A'!$B$19:$B$47,'D.A. A'!$A$19:$A$47,B55,'D.A. A'!$B$19:$B$47,">0")+SUMIFS('D.A. A'!$C$19:$C$47,'D.A. A'!$A$19:$A$47,B55,'D.A. A'!$C$19:$C$47,">0") -> 0 | D55: =SUMIFS('D.A. A'!$K$19:$K$47,'D.A. A'!$A$19:$A$47,B55,'D.A. A'!$K$19:$K$47,">0") -> 0 | E55: =IF(OFFSET(INDEX('D.A. A'!$A$19:$A$47,MATCH(B55,'D.A. A'!$A$19:$A$47,0),1),0,12)=0,"",IF(LEN(OFFSET(INDEX('D.A. A'!$A$19:$A$47,MATCH(B55,'D.A. A'!$A$19:$A$47,0),1),0,12))>27,LEFT(OFFSET(INDEX('D.A. A'!$A$19:$A$47,MATCH(B55,'D.A. A'!$A$19:$A$47,0),1),0,12),27)&"…",OFFSET(INDEX('D.A. A'!$A$19:$A$47,MATCH(B55,'D.A. A'!$A$19:$A$47,0),1),0,12))) -> 
B56: Bioretention, Level 1 or Urban Bioretention (4.2.3.B) | C56: =SUMIFS('D.A. A'!$B$19:$B$47,'D.A. A'!$A$19:$A$47,B56,'D.A. A'!$B$19:$B$47,">0")+SUMIFS('D.A. A'!$C$19:$C$47,'D.A. A'!$A$19:$A$47,B56,'D.A. A'!$C$19:$C$47,">0") -> 0 | D56: =SUMIFS('D.A. A'!$K$19:$K$47,'D.A. A'!$A$19:$A$47,B56,'D.A. A'!$K$19:$K$47,">0") -> 0 | E56: =IF(OFFSET(INDEX('D.A. A'!$A$19:$A$47,MATCH(B56,'D.A. A'!$A$19:$A$47,0),1),0,12)=0,"",IF(LEN(OFFSET(INDEX('D.A. A'!$A$19:$A$47,MATCH(B56,'D.A. A'!$A$19:$A$47,0),1),0,12))>27,LEFT(OFFSET(INDEX('D.A. A'!$A$19:$A$47,MATCH(B56,'D.A. A'!$A$19:$A$47,0),1),0,12),27)&"…",OFFSET(INDEX('D.A. A'!$A$19:$A$47,MATCH(B56,'D.A. A'!$A$19:$A$47,0),1),0,12))) -> 
B57: Bioretention, Level 2 | C57: =SUMIFS('D.A. A'!$B$19:$B$47,'D.A. A'!$A$19:$A$47,B57,'D.A. A'!$B$19:$B$47,">0")+SUMIFS('D.A. A'!$C$19:$C$47,'D.A. A'!$A$19:$A$47,B57,'D.A. A'!$C$19:$C$47,">0") -> 0 | D57: =SUMIFS('D.A. A'!$K$19:$K$47,'D.A. A'!$A$19:$A$47,B57,'D.A. A'!$K$19:$K$47,">0") -> 0 | E57: =IF(OFFSET(INDEX('D.A. A'!$A$19:$A$47,MATCH(B57,'D.A. A'!$A$19:$A$47,0),1),0,12)=0,"",IF(LEN(OFFSET(INDEX('D.A. A'!$A$19:$A$47,MATCH(B57,'D.A. A'!$A$19:$A$47,0),1),0,12))>27,LEFT(OFFSET(INDEX('D.A. A'!$A$19:$A$47,MATCH(B57,'D.A. A'!$A$19:$A$47,0),1),0,12),27)&"…",OFFSET(INDEX('D.A. A'!$A$19:$A$47,MATCH(B57,'D.A. A'!$A$19:$A$47,0),1),0,12))) -> 
B58: Infiltration | C58: =SUMIFS('D.A. A'!$B$19:$B$47,'D.A. A'!$A$19:$A$47,B58,'D.A. A'!$B$19:$B$47,">0")+SUMIFS('D.A. A'!$C$19:$C$47,'D.A. A'!$A$19:$A$47,B58,'D.A. A'!$C$19:$C$47,">0") -> 0 | D58: =SUMIFS('D.A. A'!$K$19:$K$47,'D.A. A'!$A$19:$A$47,B58,'D.A. A'!$K$19:$K$47,">0") -> 0 | E58: =IF(OFFSET(INDEX('D.A. A'!$A$19:$A$47,MATCH(B58,'D.A. A'!$A$19:$A$47,0),1),0,12)=0,"",IF(LEN(OFFSET(INDEX('D.A. A'!$A$19:$A$47,MATCH(B58,'D.A. A'!$A$19:$A$47,0),1),0,12))>27,LEFT(OFFSET(INDEX('D.A. A'!$A$19:$A$47,MATCH(B58,'D.A. A'!$A$19:$A$47,0),1),0,12),27)&"…",OFFSET(INDEX('D.A. A'!$A$19:$A$47,MATCH(B58,'D.A. A'!$A$19:$A$47,0),1),0,12))) -> 
B59: *Filtration Practice/Stormwater Wetland do NOT receive runoff reduction values, but do have associated pollutant removal values | C59: =SUMIFS('D.A. A'!$B$19:$B$47,'D.A. A'!$A$19:$A$47,B59,'D.A. A'!$B$19:$B$47,">0")+SUMIFS('D.A. A'!$C$19:$C$47,'D.A. A'!$A$19:$A$47,B59,'D.A. A'!$C$19:$C$47,">0") -> 0 | D59: =SUMIFS('D.A. A'!$K$19:$K$47,'D.A. A'!$A$19:$A$47,B59,'D.A. A'!$K$19:$K$47,">0") -> 0 | E59: =IF(OFFSET(INDEX('D.A. A'!$A$19:$A$47,MATCH(B59,'D.A. A'!$A$19:$A$47,0),1),0,12)=0,"",IF(LEN(OFFSET(INDEX('D.A. A'!$A$19:$A$47,MATCH(B59,'D.A. A'!$A$19:$A$47,0),1),0,12))>27,LEFT(OFFSET(INDEX('D.A. A'!$A$19:$A$47,MATCH(B59,'D.A. A'!$A$19:$A$47,0),1),0,12),27)&"…",OFFSET(INDEX('D.A. A'!$A$19:$A$47,MATCH(B59,'D.A. A'!$A$19:$A$47,0),1),0,12))) -> 
B60: Sheetflow to Conservation Area with A/B Soils | C60: =SUMIFS('D.A. A'!$B$19:$B$47,'D.A. A'!$A$19:$A$47,B60,'D.A. A'!$B$19:$B$47,">0")+SUMIFS('D.A. A'!$C$19:$C$47,'D.A. A'!$A$19:$A$47,B60,'D.A. A'!$C$19:$C$47,">0") -> 0 | D60: =SUMIFS('D.A. A'!$K$19:$K$47,'D.A. A'!$A$19:$A$47,B60,'D.A. A'!$K$19:$K$47,">0") -> 0 | E60: =IF(OFFSET(INDEX('D.A. A'!$A$19:$A$47,MATCH(B60,'D.A. A'!$A$19:$A$47,0),1),0,12)=0,"",IF(LEN(OFFSET(INDEX('D.A. A'!$A$19:$A$47,MATCH(B60,'D.A. A'!$A$19:$A$47,0),1),0,12))>27,LEFT(OFFSET(INDEX('D.A. A'!$A$19:$A$47,MATCH(B60,'D.A. A'!$A$19:$A$47,0),1),0,12),27)&"…",OFFSET(INDEX('D.A. A'!$A$19:$A$47,MATCH(B60,'D.A. A'!$A$19:$A$47,0),1),0,12))) -> 
B61: Sheetflow to Conservation Area with C/D Soils | C61: =SUMIFS('D.A. A'!$B$19:$B$47,'D.A. A'!$A$19:$A$47,B61,'D.A. A'!$B$19:$B$47,">0")+SUMIFS('D.A. A'!$C$19:$C$47,'D.A. A'!$A$19:$A$47,B61,'D.A. A'!$C$19:$C$47,">0") -> 0 | D61: =SUMIFS('D.A. A'!$K$19:$K$47,'D.A. A'!$A$19:$A$47,B61,'D.A. A'!$K$19:$K$47,">0") -> 0 | E61: =IF(OFFSET(INDEX('D.A. A'!$A$19:$A$47,MATCH(B61,'D.A. A'!$A$19:$A$47,0),1),0,12)=0,"",IF(LEN(OFFSET(INDEX('D.A. A'!$A$19:$A$47,MATCH(B61,'D.A. A'!$A$19:$A$47,0),1),0,12))>27,LEFT(OFFSET(INDEX('D.A. A'!$A$19:$A$47,MATCH(B61,'D.A. A'!$A$19:$A$47,0),1),0,12),27)&"…",OFFSET(INDEX('D.A. A'!$A$19:$A$47,MATCH(B61,'D.A. A'!$A$19:$A$47,0),1),0,12))) -> 
B62: Sheetflow to Vegetated Filter Strip in A/B Soils or Compost Amended C/D Soils | C62: =SUMIFS('D.A. A'!$B$19:$B$47,'D.A. A'!$A$19:$A$47,B62,'D.A. A'!$B$19:$B$47,">0")+SUMIFS('D.A. A'!$C$19:$C$47,'D.A. A'!$A$19:$A$47,B62,'D.A. A'!$C$19:$C$47,">0") -> 0 | D62: =SUMIFS('D.A. A'!$K$19:$K$47,'D.A. A'!$A$19:$A$47,B62,'D.A. A'!$K$19:$K$47,">0") -> 0 | E62: =IF(OFFSET(INDEX('D.A. A'!$A$19:$A$47,MATCH(B62,'D.A. A'!$A$19:$A$47,0),1),0,12)=0,"",IF(LEN(OFFSET(INDEX('D.A. A'!$A$19:$A$47,MATCH(B62,'D.A. A'!$A$19:$A$47,0),1),0,12))>27,LEFT(OFFSET(INDEX('D.A. A'!$A$19:$A$47,MATCH(B62,'D.A. A'!$A$19:$A$47,0),1),0,12),27)&"…",OFFSET(INDEX('D.A. A'!$A$19:$A$47,MATCH(B62,'D.A. A'!$A$19:$A$47,0),1),0,12))) -> 
B63: Sheet flow to Vegetated Filter Strip in C/D Soils | C63: =SUMIFS('D.A. A'!$B$19:$B$47,'D.A. A'!$A$19:$A$47,B63,'D.A. A'!$B$19:$B$47,">0")+SUMIFS('D.A. A'!$C$19:$C$47,'D.A. A'!$A$19:$A$47,B63,'D.A. A'!$C$19:$C$47,">0") -> 0 | D63: =SUMIFS('D.A. A'!$K$19:$K$47,'D.A. A'!$A$19:$A$47,B63,'D.A. A'!$K$19:$K$47,">0") -> 0 | E63: =IF(OFFSET(INDEX('D.A. A'!$A$19:$A$47,MATCH(B63,'D.A. A'!$A$19:$A$47,0),1),0,12)=0,"",IF(LEN(OFFSET(INDEX('D.A. A'!$A$19:$A$47,MATCH(B63,'D.A. A'!$A$19:$A$47,0),1),0,12))>27,LEFT(OFFSET(INDEX('D.A. A'!$A$19:$A$47,MATCH(B63,'D.A. A'!$A$19:$A$47,0),1),0,12),27)&"…",OFFSET(INDEX('D.A. A'!$A$19:$A$47,MATCH(B63,'D.A. A'!$A$19:$A$47,0),1),0,12))) -> 
I64: =IF(SUM($C$24:$C$26)<>0,1,"") -> 
B65: Total Impervious Cover Treated (acres) | C65: ='D.A. A'!B48 -> 0 | I65: =IF(SUM($C$24:$C$26)<>0,1,"") -> 
B66: Total Turf Area Treated (acres) | C66: ='D.A. A'!C48 -> 0 | I66: =IF(SUM($C$24:$C$26)<>0,1,"") -> 
B69: Drainage Area B Summary | I69: =IF(SUM($D$24:$D$26)<>0,1,"") -> 
I70: =IF(SUM($D$24:$D$26)<>0,1,"") -> 
B71: Land Cover Summary
C73: A Soils | D73: B Soils | E73: C Soils | F73: D Soils | G73: Total | H73: % of Total
B74: Forest (acres) | C74: ='Site Data'!B24 -> 0 | D74: ='Site Data'!C24 -> 0 | E74: ='Site Data'!D24 -> 0 | F74: ='Site Data'!E24 -> 0 | G74: ='Site Data'!F24 -> 0 | H74: =IF(G$38>0,G74/G$38*100,0) -> 0
B75: Turf (acres) | C75: ='Site Data'!B25 -> 0 | D75: ='Site Data'!C25 -> 0 | E75: ='Site Data'!D25 -> 0 | F75: ='Site Data'!E25 -> 0 | G75: ='Site Data'!F25 -> 0 | H75: =IF(G$38>0,G75/G$38*100,0) -> 0
B76: Impervious (acres) | C76: ='Site Data'!B26 -> 0 | D76: ='Site Data'!C26 -> 0 | E76: ='Site Data'!D26 -> 0 | F76: ='Site Data'!E26 -> 0 | G76: ='Site Data'!F26 -> 0 | H76: =IF(G$38>0,G76/G$38*100,0) -> 0
G77: =SUM(G74:G76) -> 0
B79: BMP Selections
B81: =IF(SUM(I82:I102)>0,"Practice","No Practices in this Drainage Area") -> No Practices in this Drainage Area | C81: Credit Area (acres) | D81: Runoff Reduction (ft3) | E81: Downstream Practice
B82: Vegetated Roof | C82: =SUMIFS('D.A. B'!$B$19:$B$47,'D.A. B'!$A$19:$A$47,B82,'D.A. B'!$B$19:$B$47,">0")+SUMIFS('D.A. B'!$C$19:$C$47,'D.A. B'!$A$19:$A$47,B82,'D.A. B'!$C$19:$C$47,">0") -> 0 | D82: =SUMIFS('D.A. B'!$K$19:$K$47,'D.A. B'!$A$19:$A$47,B82,'D.A. B'!$K$19:$K$47,">0") -> 0 | E82: =IF(OFFSET(INDEX('D.A. B'!$A$19:$A$47,MATCH(B82,'D.A. B'!$A$19:$A$47,0),1),0,12)=0,"",IF(LEN(OFFSET(INDEX('D.A. B'!$A$19:$A$47,MATCH(B82,'D.A. B'!$A$19:$A$47,0),1),0,12))>27,LEFT(OFFSET(INDEX('D.A. B'!$A$19:$A$47,MATCH(B82,'D.A. B'!$A$19:$A$47,0),1),0,12),27)&"…",OFFSET(INDEX('D.A. B'!$A$19:$A$47,MATCH(B82,'D.A. B'!$A$19:$A$47,0),1),0,12))) ->  | I82: =IF(AND(D82>0,SUM($D$24:$D$26)>0),1,"") -> 
B83: Simple Disconnection to A/B Soils or Soil-Amended Filter Path in C/D Soils (4.2.2, Appendix D) | C83: =SUMIFS('D.A. B'!$B$19:$B$47,'D.A. B'!$A$19:$A$47,B83,'D.A. B'!$B$19:$B$47,">0")+SUMIFS('D.A. B'!$C$19:$C$47,'D.A. B'!$A$19:$A$47,B83,'D.A. B'!$C$19:$C$47,">0") -> 0 | D83: =SUMIFS('D.A. B'!$K$19:$K$47,'D.A. B'!$A$19:$A$47,B83,'D.A. B'!$K$19:$K$47,">0") -> 0 | E83: =IF(OFFSET(INDEX('D.A. B'!$A$19:$A$47,MATCH(B83,'D.A. B'!$A$19:$A$47,0),1),0,12)=0,"",IF(LEN(OFFSET(INDEX('D.A. B'!$A$19:$A$47,MATCH(B83,'D.A. B'!$A$19:$A$47,0),1),0,12))>27,LEFT(OFFSET(INDEX('D.A. B'!$A$19:$A$47,MATCH(B83,'D.A. B'!$A$19:$A$47,0),1),0,12),27)&"…",OFFSET(INDEX('D.A. B'!$A$19:$A$47,MATCH(B83,'D.A. B'!$A$19:$A$47,0),1),0,12))) ->  | I83: =IF(AND(D83>0,SUM($D$24:$D$26)>0),1,"") -> 
B84: Simple Disconnection to C/D Soils (4.2.2) | C84: =SUMIFS('D.A. B'!$B$19:$B$47,'D.A. B'!$A$19:$A$47,B84,'D.A. B'!$B$19:$B$47,">0")+SUMIFS('D.A. B'!$C$19:$C$47,'D.A. B'!$A$19:$A$47,B84,'D.A. B'!$C$19:$C$47,">0") -> 0 | D84: =SUMIFS('D.A. B'!$K$19:$K$47,'D.A. B'!$A$19:$A$47,B84,'D.A. B'!$K$19:$K$47,">0") -> 0 | E84: =IF(OFFSET(INDEX('D.A. B'!$A$19:$A$47,MATCH(B84,'D.A. B'!$A$19:$A$47,0),1),0,12)=0,"",IF(LEN(OFFSET(INDEX('D.A. B'!$A$19:$A$47,MATCH(B84,'D.A. B'!$A$19:$A$47,0),1),0,12))>27,LEFT(OFFSET(INDEX('D.A. B'!$A$19:$A$47,MATCH(B84,'D.A. B'!$A$19:$A$47,0),1),0,12),27)&"…",OFFSET(INDEX('D.A. B'!$A$19:$A$47,MATCH(B84,'D.A. B'!$A$19:$A$47,0),1),0,12))) -> 
B85: To Residential Rain Garden (4.2.3.C) | C85: =SUMIFS('D.A. B'!$B$19:$B$47,'D.A. B'!$A$19:$A$47,B85,'D.A. B'!$B$19:$B$47,">0")+SUMIFS('D.A. B'!$C$19:$C$47,'D.A. B'!$A$19:$A$47,B85,'D.A. B'!$C$19:$C$47,">0") -> 0 | D85: =SUMIFS('D.A. B'!$K$19:$K$47,'D.A. B'!$A$19:$A$47,B85,'D.A. B'!$K$19:$K$47,">0") -> 0 | E85: =IF(OFFSET(INDEX('D.A. B'!$A$19:$A$47,MATCH(B85,'D.A. B'!$A$19:$A$47,0),1),0,12)=0,"",IF(LEN(OFFSET(INDEX('D.A. B'!$A$19:$A$47,MATCH(B85,'D.A. B'!$A$19:$A$47,0),1),0,12))>27,LEFT(OFFSET(INDEX('D.A. B'!$A$19:$A$47,MATCH(B85,'D.A. B'!$A$19:$A$47,0),1),0,12),27)&"…",OFFSET(INDEX('D.A. B'!$A$19:$A$47,MATCH(B85,'D.A. B'!$A$19:$A$47,0),1),0,12))) -> 
B86: To Rainwater Harvesting (4.2.8) | C86: =SUMIFS('D.A. B'!$B$19:$B$47,'D.A. B'!$A$19:$A$47,B86,'D.A. B'!$B$19:$B$47,">0")+SUMIFS('D.A. B'!$C$19:$C$47,'D.A. B'!$A$19:$A$47,B86,'D.A. B'!$C$19:$C$47,">0") -> 0 | D86: =SUMIFS('D.A. B'!$K$19:$K$47,'D.A. B'!$A$19:$A$47,B86,'D.A. B'!$K$19:$K$47,">0") -> 0 | E86: =IF(OFFSET(INDEX('D.A. B'!$A$19:$A$47,MATCH(B86,'D.A. B'!$A$19:$A$47,0),1),0,12)=0,"",IF(LEN(OFFSET(INDEX('D.A. B'!$A$19:$A$47,MATCH(B86,'D.A. B'!$A$19:$A$47,0),1),0,12))>27,LEFT(OFFSET(INDEX('D.A. B'!$A$19:$A$47,MATCH(B86,'D.A. B'!$A$19:$A$47,0),1),0,12),27)&"…",OFFSET(INDEX('D.A. B'!$A$19:$A$47,MATCH(B86,'D.A. B'!$A$19:$A$47,0),1),0,12))) -> 
B87: Permeable Pavement, Level 1 | C87: =SUMIFS('D.A. B'!$B$19:$B$47,'D.A. B'!$A$19:$A$47,B87,'D.A. B'!$B$19:$B$47,">0")+SUMIFS('D.A. B'!$C$19:$C$47,'D.A. B'!$A$19:$A$47,B87,'D.A. B'!$C$19:$C$47,">0") -> 0 | D87: =SUMIFS('D.A. B'!$K$19:$K$47,'D.A. B'!$A$19:$A$47,B87,'D.A. B'!$K$19:$K$47,">0") -> 0 | E87: =IF(OFFSET(INDEX('D.A. B'!$A$19:$A$47,MATCH(B87,'D.A. B'!$A$19:$A$47,0),1),0,12)=0,"",IF(LEN(OFFSET(INDEX('D.A. B'!$A$19:$A$47,MATCH(B87,'D.A. B'!$A$19:$A$47,0),1),0,12))>27,LEFT(OFFSET(INDEX('D.A. B'!$A$19:$A$47,MATCH(B87,'D.A. B'!$A$19:$A$47,0),1),0,12),27)&"…",OFFSET(INDEX('D.A. B'!$A$19:$A$47,MATCH(B87,'D.A. B'!$A$19:$A$47,0),1),0,12))) -> 
B88: Permeable Pavement, Level 2 (infiltration) | C88: =SUMIFS('D.A. B'!$B$19:$B$47,'D.A. B'!$A$19:$A$47,B88,'D.A. B'!$B$19:$B$47,">0")+SUMIFS('D.A. B'!$C$19:$C$47,'D.A. B'!$A$19:$A$47,B88,'D.A. B'!$C$19:$C$47,">0") -> 0 | D88: =SUMIFS('D.A. B'!$K$19:$K$47,'D.A. B'!$A$19:$A$47,B88,'D.A. B'!$K$19:$K$47,">0") -> 0 | E88: =IF(OFFSET(INDEX('D.A. B'!$A$19:$A$47,MATCH(B88,'D.A. B'!$A$19:$A$47,0),1),0,12)=0,"",IF(LEN(OFFSET(INDEX('D.A. B'!$A$19:$A$47,MATCH(B88,'D.A. B'!$A$19:$A$47,0),1),0,12))>27,LEFT(OFFSET(INDEX('D.A. B'!$A$19:$A$47,MATCH(B88,'D.A. B'!$A$19:$A$47,0),1),0,12),27)&"…",OFFSET(INDEX('D.A. B'!$A$19:$A$47,MATCH(B88,'D.A. B'!$A$19:$A$47,0),1),0,12))) -> 
B89: Permeable Pavement, Level 2 (infiltration & underdrain) | C89: =SUMIFS('D.A. B'!$B$19:$B$47,'D.A. B'!$A$19:$A$47,B89,'D.A. B'!$B$19:$B$47,">0")+SUMIFS('D.A. B'!$C$19:$C$47,'D.A. B'!$A$19:$A$47,B89,'D.A. B'!$C$19:$C$47,">0") -> 0 | D89: =SUMIFS('D.A. B'!$K$19:$K$47,'D.A. B'!$A$19:$A$47,B89,'D.A. B'!$K$19:$K$47,">0") -> 0 | E89: =IF(OFFSET(INDEX('D.A. B'!$A$19:$A$47,MATCH(B89,'D.A. B'!$A$19:$A$47,0),1),0,12)=0,"",IF(LEN(OFFSET(INDEX('D.A. B'!$A$19:$A$47,MATCH(B89,'D.A. B'!$A$19:$A$47,0),1),0,12))>27,LEFT(OFFSET(INDEX('D.A. B'!$A$19:$A$47,MATCH(B89,'D.A. B'!$A$19:$A$47,0),1),0,12),27)&"…",OFFSET(INDEX('D.A. B'!$A$19:$A$47,MATCH(B89,'D.A. B'!$A$19:$A$47,0),1),0,12))) -> 
B90: Grass Swale A/B Soils | C90: =SUMIFS('D.A. B'!$B$19:$B$47,'D.A. B'!$A$19:$A$47,B90,'D.A. B'!$B$19:$B$47,">0")+SUMIFS('D.A. B'!$C$19:$C$47,'D.A. B'!$A$19:$A$47,B90,'D.A. B'!$C$19:$C$47,">0") -> 0 | D90: =SUMIFS('D.A. B'!$K$19:$K$47,'D.A. B'!$A$19:$A$47,B90,'D.A. B'!$K$19:$K$47,">0") -> 0 | E90: =IF(OFFSET(INDEX('D.A. B'!$A$19:$A$47,MATCH(B90,'D.A. B'!$A$19:$A$47,0),1),0,12)=0,"",IF(LEN(OFFSET(INDEX('D.A. B'!$A$19:$A$47,MATCH(B90,'D.A. B'!$A$19:$A$47,0),1),0,12))>27,LEFT(OFFSET(INDEX('D.A. B'!$A$19:$A$47,MATCH(B90,'D.A. B'!$A$19:$A$47,0),1),0,12),27)&"…",OFFSET(INDEX('D.A. B'!$A$19:$A$47,MATCH(B90,'D.A. B'!$A$19:$A$47,0),1),0,12))) -> 
B91: Grass Swale C/D Soils | C91: =SUMIFS('D.A. B'!$B$19:$B$47,'D.A. B'!$A$19:$A$47,B91,'D.A. B'!$B$19:$B$47,">0")+SUMIFS('D.A. B'!$C$19:$C$47,'D.A. B'!$A$19:$A$47,B91,'D.A. B'!$C$19:$C$47,">0") -> 0 | D91: =SUMIFS('D.A. B'!$K$19:$K$47,'D.A. B'!$A$19:$A$47,B91,'D.A. B'!$K$19:$K$47,">0") -> 0 | E91: =IF(OFFSET(INDEX('D.A. B'!$A$19:$A$47,MATCH(B91,'D.A. B'!$A$19:$A$47,0),1),0,12)=0,"",IF(LEN(OFFSET(INDEX('D.A. B'!$A$19:$A$47,MATCH(B91,'D.A. B'!$A$19:$A$47,0),1),0,12))>27,LEFT(OFFSET(INDEX('D.A. B'!$A$19:$A$47,MATCH(B91,'D.A. B'!$A$19:$A$47,0),1),0,12),27)&"…",OFFSET(INDEX('D.A. B'!$A$19:$A$47,MATCH(B91,'D.A. B'!$A$19:$A$47,0),1),0,12))) -> 
B92: Grass Swale in C/D Soil with Soil Amendments | C92: =SUMIFS('D.A. B'!$B$19:$B$47,'D.A. B'!$A$19:$A$47,B92,'D.A. B'!$B$19:$B$47,">0")+SUMIFS('D.A. B'!$C$19:$C$47,'D.A. B'!$A$19:$A$47,B92,'D.A. B'!$C$19:$C$47,">0") -> 0 | D92: =SUMIFS('D.A. B'!$K$19:$K$47,'D.A. B'!$A$19:$A$47,B92,'D.A. B'!$K$19:$K$47,">0") -> 0 | E92: =IF(OFFSET(INDEX('D.A. B'!$A$19:$A$47,MATCH(B92,'D.A. B'!$A$19:$A$47,0),1),0,12)=0,"",IF(LEN(OFFSET(INDEX('D.A. B'!$A$19:$A$47,MATCH(B92,'D.A. B'!$A$19:$A$47,0),1),0,12))>27,LEFT(OFFSET(INDEX('D.A. B'!$A$19:$A$47,MATCH(B92,'D.A. B'!$A$19:$A$47,0),1),0,12),27)&"…",OFFSET(INDEX('D.A. B'!$A$19:$A$47,MATCH(B92,'D.A. B'!$A$19:$A$47,0),1),0,12))) -> 
B93: Water Quality Swale, Level 1 | C93: =SUMIFS('D.A. B'!$B$19:$B$47,'D.A. B'!$A$19:$A$47,B93,'D.A. B'!$B$19:$B$47,">0")+SUMIFS('D.A. B'!$C$19:$C$47,'D.A. B'!$A$19:$A$47,B93,'D.A. B'!$C$19:$C$47,">0") -> 0 | D93: =SUMIFS('D.A. B'!$K$19:$K$47,'D.A. B'!$A$19:$A$47,B93,'D.A. B'!$K$19:$K$47,">0") -> 0 | E93: =IF(OFFSET(INDEX('D.A. B'!$A$19:$A$47,MATCH(B93,'D.A. B'!$A$19:$A$47,0),1),0,12)=0,"",IF(LEN(OFFSET(INDEX('D.A. B'!$A$19:$A$47,MATCH(B93,'D.A. B'!$A$19:$A$47,0),1),0,12))>27,LEFT(OFFSET(INDEX('D.A. B'!$A$19:$A$47,MATCH(B93,'D.A. B'!$A$19:$A$47,0),1),0,12),27)&"…",OFFSET(INDEX('D.A. B'!$A$19:$A$47,MATCH(B93,'D.A. B'!$A$19:$A$47,0),1),0,12))) -> 
B94: Water Quality Swale, Level 2 | C94: =SUMIFS('D.A. B'!$B$19:$B$47,'D.A. B'!$A$19:$A$47,B94,'D.A. B'!$B$19:$B$47,">0")+SUMIFS('D.A. B'!$C$19:$C$47,'D.A. B'!$A$19:$A$47,B94,'D.A. B'!$C$19:$C$47,">0") -> 0 | D94: =SUMIFS('D.A. B'!$K$19:$K$47,'D.A. B'!$A$19:$A$47,B94,'D.A. B'!$K$19:$K$47,">0") -> 0 | E94: =IF(OFFSET(INDEX('D.A. B'!$A$19:$A$47,MATCH(B94,'D.A. B'!$A$19:$A$47,0),1),0,12)=0,"",IF(LEN(OFFSET(INDEX('D.A. B'!$A$19:$A$47,MATCH(B94,'D.A. B'!$A$19:$A$47,0),1),0,12))>27,LEFT(OFFSET(INDEX('D.A. B'!$A$19:$A$47,MATCH(B94,'D.A. B'!$A$19:$A$47,0),1),0,12),27)&"…",OFFSET(INDEX('D.A. B'!$A$19:$A$47,MATCH(B94,'D.A. B'!$A$19:$A$47,0),1),0,12))) -> 
B95: Bioretention, Level 1 or Urban Bioretention (4.2.3.B) | C95: =SUMIFS('D.A. B'!$B$19:$B$47,'D.A. B'!$A$19:$A$47,B95,'D.A. B'!$B$19:$B$47,">0")+SUMIFS('D.A. B'!$C$19:$C$47,'D.A. B'!$A$19:$A$47,B95,'D.A. B'!$C$19:$C$47,">0") -> 0 | D95: =SUMIFS('D.A. B'!$K$19:$K$47,'D.A. B'!$A$19:$A$47,B95,'D.A. B'!$K$19:$K$47,">0") -> 0 | E95: =IF(OFFSET(INDEX('D.A. B'!$A$19:$A$47,MATCH(B95,'D.A. B'!$A$19:$A$47,0),1),0,12)=0,"",IF(LEN(OFFSET(INDEX('D.A. B'!$A$19:$A$47,MATCH(B95,'D.A. B'!$A$19:$A$47,0),1),0,12))>27,LEFT(OFFSET(INDEX('D.A. B'!$A$19:$A$47,MATCH(B95,'D.A. B'!$A$19:$A$47,0),1),0,12),27)&"…",OFFSET(INDEX('D.A. B'!$A$19:$A$47,MATCH(B95,'D.A. B'!$A$19:$A$47,0),1),0,12))) -> 
B96: Bioretention, Level 2 | C96: =SUMIFS('D.A. B'!$B$19:$B$47,'D.A. B'!$A$19:$A$47,B96,'D.A. B'!$B$19:$B$47,">0")+SUMIFS('D.A. B'!$C$19:$C$47,'D.A. B'!$A$19:$A$47,B96,'D.A. B'!$C$19:$C$47,">0") -> 0 | D96: =SUMIFS('D.A. B'!$K$19:$K$47,'D.A. B'!$A$19:$A$47,B96,'D.A. B'!$K$19:$K$47,">0") -> 0 | E96: =IF(OFFSET(INDEX('D.A. B'!$A$19:$A$47,MATCH(B96,'D.A. B'!$A$19:$A$47,0),1),0,12)=0,"",IF(LEN(OFFSET(INDEX('D.A. B'!$A$19:$A$47,MATCH(B96,'D.A. B'!$A$19:$A$47,0),1),0,12))>27,LEFT(OFFSET(INDEX('D.A. B'!$A$19:$A$47,MATCH(B96,'D.A. B'!$A$19:$A$47,0),1),0,12),27)&"…",OFFSET(INDEX('D.A. B'!$A$19:$A$47,MATCH(B96,'D.A. B'!$A$19:$A$47,0),1),0,12))) -> 
B97: Infiltration | C97: =SUMIFS('D.A. B'!$B$19:$B$47,'D.A. B'!$A$19:$A$47,B97,'D.A. B'!$B$19:$B$47,">0")+SUMIFS('D.A. B'!$C$19:$C$47,'D.A. B'!$A$19:$A$47,B97,'D.A. B'!$C$19:$C$47,">0") -> 0 | D97: =SUMIFS('D.A. B'!$K$19:$K$47,'D.A. B'!$A$19:$A$47,B97,'D.A. B'!$K$19:$K$47,">0") -> 0 | E97: =IF(OFFSET(INDEX('D.A. B'!$A$19:$A$47,MATCH(B97,'D.A. B'!$A$19:$A$47,0),1),0,12)=0,"",IF(LEN(OFFSET(INDEX('D.A. B'!$A$19:$A$47,MATCH(B97,'D.A. B'!$A$19:$A$47,0),1),0,12))>27,LEFT(OFFSET(INDEX('D.A. B'!$A$19:$A$47,MATCH(B97,'D.A. B'!$A$19:$A$47,0),1),0,12),27)&"…",OFFSET(INDEX('D.A. B'!$A$19:$A$47,MATCH(B97,'D.A. B'!$A$19:$A$47,0),1),0,12))) -> 
B98: *Filtration Practice/Stormwater Wetland do NOT receive runoff reduction values, but do have associated pollutant removal values | C98: =SUMIFS('D.A. B'!$B$19:$B$47,'D.A. B'!$A$19:$A$47,B98,'D.A. B'!$B$19:$B$47,">0")+SUMIFS('D.A. B'!$C$19:$C$47,'D.A. B'!$A$19:$A$47,B98,'D.A. B'!$C$19:$C$47,">0") -> 0 | D98: =SUMIFS('D.A. B'!$K$19:$K$47,'D.A. B'!$A$19:$A$47,B98,'D.A. B'!$K$19:$K$47,">0") -> 0 | E98: =IF(OFFSET(INDEX('D.A. B'!$A$19:$A$47,MATCH(B98,'D.A. B'!$A$19:$A$47,0),1),0,12)=0,"",IF(LEN(OFFSET(INDEX('D.A. B'!$A$19:$A$47,MATCH(B98,'D.A. B'!$A$19:$A$47,0),1),0,12))>27,LEFT(OFFSET(INDEX('D.A. B'!$A$19:$A$47,MATCH(B98,'D.A. B'!$A$19:$A$47,0),1),0,12),27)&"…",OFFSET(INDEX('D.A. B'!$A$19:$A$47,MATCH(B98,'D.A. B'!$A$19:$A$47,0),1),0,12))) -> 
B99: Sheetflow to Conservation Area with A/B Soils | C99: =SUMIFS('D.A. B'!$B$19:$B$47,'D.A. B'!$A$19:$A$47,B99,'D.A. B'!$B$19:$B$47,">0")+SUMIFS('D.A. B'!$C$19:$C$47,'D.A. B'!$A$19:$A$47,B99,'D.A. B'!$C$19:$C$47,">0") -> 0 | D99: =SUMIFS('D.A. B'!$K$19:$K$47,'D.A. B'!$A$19:$A$47,B99,'D.A. B'!$K$19:$K$47,">0") -> 0 | E99: =IF(OFFSET(INDEX('D.A. B'!$A$19:$A$47,MATCH(B99,'D.A. B'!$A$19:$A$47,0),1),0,12)=0,"",IF(LEN(OFFSET(INDEX('D.A. B'!$A$19:$A$47,MATCH(B99,'D.A. B'!$A$19:$A$47,0),1),0,12))>27,LEFT(OFFSET(INDEX('D.A. B'!$A$19:$A$47,MATCH(B99,'D.A. B'!$A$19:$A$47,0),1),0,12),27)&"…",OFFSET(INDEX('D.A. B'!$A$19:$A$47,MATCH(B99,'D.A. B'!$A$19:$A$47,0),1),0,12))) -> 
B100: Sheetflow to Conservation Area with C/D Soils | C100: =SUMIFS('D.A. B'!$B$19:$B$47,'D.A. B'!$A$19:$A$47,B100,'D.A. B'!$B$19:$B$47,">0")+SUMIFS('D.A. B'!$C$19:$C$47,'D.A. B'!$A$19:$A$47,B100,'D.A. B'!$C$19:$C$47,">0") -> 0 | D100: =SUMIFS('D.A. B'!$K$19:$K$47,'D.A. B'!$A$19:$A$47,B100,'D.A. B'!$K$19:$K$47,">0") -> 0 | E100: =IF(OFFSET(INDEX('D.A. B'!$A$19:$A$47,MATCH(B100,'D.A. B'!$A$19:$A$47,0),1),0,12)=0,"",IF(LEN(OFFSET(INDEX('D.A. B'!$A$19:$A$47,MATCH(B100,'D.A. B'!$A$19:$A$47,0),1),0,12))>27,LEFT(OFFSET(INDEX('D.A. B'!$A$19:$A$47,MATCH(B100,'D.A. B'!$A$19:$A$47,0),1),0,12),27)&"…",OFFSET(INDEX('D.A. B'!$A$19:$A$47,MATCH(B100,'D.A. B'!$A$19:$A$47,0),1),0,12))) -> 
B101: Sheetflow to Vegetated Filter Strip in A/B Soils or Compost Amended C/D Soils | C101: =SUMIFS('D.A. B'!$B$19:$B$47,'D.A. B'!$A$19:$A$47,B101,'D.A. B'!$B$19:$B$47,">0")+SUMIFS('D.A. B'!$C$19:$C$47,'D.A. B'!$A$19:$A$47,B101,'D.A. B'!$C$19:$C$47,">0") -> 0 | D101: =SUMIFS('D.A. B'!$K$19:$K$47,'D.A. B'!$A$19:$A$47,B101,'D.A. B'!$K$19:$K$47,">0") -> 0 | E101: =IF(OFFSET(INDEX('D.A. B'!$A$19:$A$47,MATCH(B101,'D.A. B'!$A$19:$A$47,0),1),0,12)=0,"",IF(LEN(OFFSET(INDEX('D.A. B'!$A$19:$A$47,MATCH(B101,'D.A. B'!$A$19:$A$47,0),1),0,12))>27,LEFT(OFFSET(INDEX('D.A. B'!$A$19:$A$47,MATCH(B101,'D.A. B'!$A$19:$A$47,0),1),0,12),27)&"…",OFFSET(INDEX('D.A. B'!$A$19:$A$47,MATCH(B101,'D.A. B'!$A$19:$A$47,0),1),0,12))) -> 
B102: Sheet flow to Vegetated Filter Strip in C/D Soils | C102: =SUMIFS('D.A. B'!$B$19:$B$47,'D.A. B'!$A$19:$A$47,B102,'D.A. B'!$B$19:$B$47,">0")+SUMIFS('D.A. B'!$C$19:$C$47,'D.A. B'!$A$19:$A$47,B102,'D.A. B'!$C$19:$C$47,">0") -> 0 | D102: =SUMIFS('D.A. B'!$K$19:$K$47,'D.A. B'!$A$19:$A$47,B102,'D.A. B'!$K$19:$K$47,">0") -> 0 | E102: =IF(OFFSET(INDEX('D.A. B'!$A$19:$A$47,MATCH(B102,'D.A. B'!$A$19:$A$47,0),1),0,12)=0,"",IF(LEN(OFFSET(INDEX('D.A. B'!$A$19:$A$47,MATCH(B102,'D.A. B'!$A$19:$A$47,0),1),0,12))>27,LEFT(OFFSET(INDEX('D.A. B'!$A$19:$A$47,MATCH(B102,'D.A. B'!$A$19:$A$47,0),1),0,12),27)&"…",OFFSET(INDEX('D.A. B'!$A$19:$A$47,MATCH(B102,'D.A. B'!$A$19:$A$47,0),1),0,12))) -> 
I103: =IF(SUM($D$24:$D$26)<>0,1,"") -> 
B104: Total Impervious Cover Treated (acres) | C104: ='D.A. B'!B48 -> 0 | I104: =IF(SUM($D$24:$D$26)<>0,1,"") -> 
B105: Total Turf Area Treated (acres) | C105: ='D.A. B'!C48 -> 0 | I105: =IF(SUM($D$24:$D$26)<>0,1,"") -> 
B108: Drainage Area C Summary | I108: =IF(SUM($E$24:$E$26)<>0,1,"") -> 
I109: =IF(SUM($E$24:$E$26)<>0,1,"") -> 
B110: Land Cover Summary
C112: A Soils | D112: B Soils | E112: C Soils | F112: D Soils | G112: Total | H112: % of Total
B113: Forest (acres) | C113: ='Site Data'!B31 -> 0 | D113: ='Site Data'!C31 -> 0 | E113: ='Site Data'!D31 -> 0 | F113: ='Site Data'!E31 -> 0 | G113: ='Site Data'!F31 -> 0 | H113: =IF(G$38>0,G113/G$38*100,0) -> 0
B114: Turf (acres) | C114: ='Site Data'!B32 -> 0 | D114: ='Site Data'!C32 -> 0 | E114: ='Site Data'!D32 -> 0 | F114: ='Site Data'!E32 -> 0 | G114: ='Site Data'!F32 -> 0 | H114: =IF(G$38>0,G114/G$38*100,0) -> 0
B115: Impervious (acres) | C115: ='Site Data'!B33 -> 0 | D115: ='Site Data'!C33 -> 0 | E115: ='Site Data'!D33 -> 0 | F115: ='Site Data'!E33 -> 0 | G115: ='Site Data'!F33 -> 0 | H115: =IF(G$38>0,G115/G$38*100,0) -> 0
G116: =SUM(G113:G115) -> 0
B118: BMP Selections
B120: =IF(SUM(I121:I141)>0,"Practice","No Practices in this Drainage Area") -> No Practices in this Drainage Area | C120: Credit Area (acres) | D120: Runoff Reduction (ft3) | E120: Downstream Practice
B121: Vegetated Roof | C121: =SUMIFS('D.A. C'!$B$19:$B$47,'D.A. C'!$A$19:$A$47,B121,'D.A. C'!$B$19:$B$47,">0")+SUMIFS('D.A. C'!$C$19:$C$47,'D.A. C'!$A$19:$A$47,B121,'D.A. C'!$C$19:$C$47,">0") -> 0 | D121: =SUMIFS('D.A. C'!$K$19:$K$47,'D.A. C'!$A$19:$A$47,B121,'D.A. C'!$K$19:$K$47,">0") -> 0 | E121: =IF(OFFSET(INDEX('D.A. C'!$A$19:$A$47,MATCH(B121,'D.A. C'!$A$19:$A$47,0),1),0,12)=0,"",IF(LEN(OFFSET(INDEX('D.A. C'!$A$19:$A$47,MATCH(B121,'D.A. C'!$A$19:$A$47,0),1),0,12))>27,LEFT(OFFSET(INDEX('D.A. C'!$A$19:$A$47,MATCH(B121,'D.A. C'!$A$19:$A$47,0),1),0,12),27)&"…",OFFSET(INDEX('D.A. C'!$A$19:$A$47,MATCH(B121,'D.A. C'!$A$19:$A$47,0),1),0,12))) ->  | I121: =IF(AND(D121>0,SUM($E$24:$E$26)>0),1,"") -> 
B122: Simple Disconnection to A/B Soils or Soil-Amended Filter Path in C/D Soils (4.2.2, Appendix D) | C122: =SUMIFS('D.A. C'!$B$19:$B$47,'D.A. C'!$A$19:$A$47,B122,'D.A. C'!$B$19:$B$47,">0")+SUMIFS('D.A. C'!$C$19:$C$47,'D.A. C'!$A$19:$A$47,B122,'D.A. C'!$C$19:$C$47,">0") -> 0 | D122: =SUMIFS('D.A. C'!$K$19:$K$47,'D.A. C'!$A$19:$A$47,B122,'D.A. C'!$K$19:$K$47,">0") -> 0 | E122: =IF(OFFSET(INDEX('D.A. C'!$A$19:$A$47,MATCH(B122,'D.A. C'!$A$19:$A$47,0),1),0,12)=0,"",IF(LEN(OFFSET(INDEX('D.A. C'!$A$19:$A$47,MATCH(B122,'D.A. C'!$A$19:$A$47,0),1),0,12))>27,LEFT(OFFSET(INDEX('D.A. C'!$A$19:$A$47,MATCH(B122,'D.A. C'!$A$19:$A$47,0),1),0,12),27)&"…",OFFSET(INDEX('D.A. C'!$A$19:$A$47,MATCH(B122,'D.A. C'!$A$19:$A$47,0),1),0,12))) ->  | I122: =IF(AND(D122>0,SUM($E$24:$E$26)>0),1,"") -> 
B123: Simple Disconnection to C/D Soils (4.2.2) | C123: =SUMIFS('D.A. C'!$B$19:$B$47,'D.A. C'!$A$19:$A$47,B123,'D.A. C'!$B$19:$B$47,">0")+SUMIFS('D.A. C'!$C$19:$C$47,'D.A. C'!$A$19:$A$47,B123,'D.A. C'!$C$19:$C$47,">0") -> 0 | D123: =SUMIFS('D.A. C'!$K$19:$K$47,'D.A. C'!$A$19:$A$47,B123,'D.A. C'!$K$19:$K$47,">0") -> 0 | E123: =IF(OFFSET(INDEX('D.A. C'!$A$19:$A$47,MATCH(B123,'D.A. C'!$A$19:$A$47,0),1),0,12)=0,"",IF(LEN(OFFSET(INDEX('D.A. C'!$A$19:$A$47,MATCH(B123,'D.A. C'!$A$19:$A$47,0),1),0,12))>27,LEFT(OFFSET(INDEX('D.A. C'!$A$19:$A$47,MATCH(B123,'D.A. C'!$A$19:$A$47,0),1),0,12),27)&"…",OFFSET(INDEX('D.A. C'!$A$19:$A$47,MATCH(B123,'D.A. C'!$A$19:$A$47,0),1),0,12))) -> 
B124: To Residential Rain Garden (4.2.3.C) | C124: =SUMIFS('D.A. C'!$B$19:$B$47,'D.A. C'!$A$19:$A$47,B124,'D.A. C'!$B$19:$B$47,">0")+SUMIFS('D.A. C'!$C$19:$C$47,'D.A. C'!$A$19:$A$47,B124,'D.A. C'!$C$19:$C$47,">0") -> 0 | D124: =SUMIFS('D.A. C'!$K$19:$K$47,'D.A. C'!$A$19:$A$47,B124,'D.A. C'!$K$19:$K$47,">0") -> 0 | E124: =IF(OFFSET(INDEX('D.A. C'!$A$19:$A$47,MATCH(B124,'D.A. C'!$A$19:$A$47,0),1),0,12)=0,"",IF(LEN(OFFSET(INDEX('D.A. C'!$A$19:$A$47,MATCH(B124,'D.A. C'!$A$19:$A$47,0),1),0,12))>27,LEFT(OFFSET(INDEX('D.A. C'!$A$19:$A$47,MATCH(B124,'D.A. C'!$A$19:$A$47,0),1),0,12),27)&"…",OFFSET(INDEX('D.A. C'!$A$19:$A$47,MATCH(B124,'D.A. C'!$A$19:$A$47,0),1),0,12))) -> 
B125: To Rainwater Harvesting (4.2.8) | C125: =SUMIFS('D.A. C'!$B$19:$B$47,'D.A. C'!$A$19:$A$47,B125,'D.A. C'!$B$19:$B$47,">0")+SUMIFS('D.A. C'!$C$19:$C$47,'D.A. C'!$A$19:$A$47,B125,'D.A. C'!$C$19:$C$47,">0") -> 0 | D125: =SUMIFS('D.A. C'!$K$19:$K$47,'D.A. C'!$A$19:$A$47,B125,'D.A. C'!$K$19:$K$47,">0") -> 0 | E125: =IF(OFFSET(INDEX('D.A. C'!$A$19:$A$47,MATCH(B125,'D.A. C'!$A$19:$A$47,0),1),0,12)=0,"",IF(LEN(OFFSET(INDEX('D.A. C'!$A$19:$A$47,MATCH(B125,'D.A. C'!$A$19:$A$47,0),1),0,12))>27,LEFT(OFFSET(INDEX('D.A. C'!$A$19:$A$47,MATCH(B125,'D.A. C'!$A$19:$A$47,0),1),0,12),27)&"…",OFFSET(INDEX('D.A. C'!$A$19:$A$47,MATCH(B125,'D.A. C'!$A$19:$A$47,0),1),0,12))) -> 
B126: Permeable Pavement, Level 1 | C126: =SUMIFS('D.A. C'!$B$19:$B$47,'D.A. C'!$A$19:$A$47,B126,'D.A. C'!$B$19:$B$47,">0")+SUMIFS('D.A. C'!$C$19:$C$47,'D.A. C'!$A$19:$A$47,B126,'D.A. C'!$C$19:$C$47,">0") -> 0 | D126: =SUMIFS('D.A. C'!$K$19:$K$47,'D.A. C'!$A$19:$A$47,B126,'D.A. C'!$K$19:$K$47,">0") -> 0 | E126: =IF(OFFSET(INDEX('D.A. C'!$A$19:$A$47,MATCH(B126,'D.A. C'!$A$19:$A$47,0),1),0,12)=0,"",IF(LEN(OFFSET(INDEX('D.A. C'!$A$19:$A$47,MATCH(B126,'D.A. C'!$A$19:$A$47,0),1),0,12))>27,LEFT(OFFSET(INDEX('D.A. C'!$A$19:$A$47,MATCH(B126,'D.A. C'!$A$19:$A$47,0),1),0,12),27)&"…",OFFSET(INDEX('D.A. C'!$A$19:$A$47,MATCH(B126,'D.A. C'!$A$19:$A$47,0),1),0,12))) -> 
B127: Permeable Pavement, Level 2 (infiltration) | C127: =SUMIFS('D.A. C'!$B$19:$B$47,'D.A. C'!$A$19:$A$47,B127,'D.A. C'!$B$19:$B$47,">0")+SUMIFS('D.A. C'!$C$19:$C$47,'D.A. C'!$A$19:$A$47,B127,'D.A. C'!$C$19:$C$47,">0") -> 0 | D127: =SUMIFS('D.A. C'!$K$19:$K$47,'D.A. C'!$A$19:$A$47,B127,'D.A. C'!$K$19:$K$47,">0") -> 0 | E127: =IF(OFFSET(INDEX('D.A. C'!$A$19:$A$47,MATCH(B127,'D.A. C'!$A$19:$A$47,0),1),0,12)=0,"",IF(LEN(OFFSET(INDEX('D.A. C'!$A$19:$A$47,MATCH(B127,'D.A. C'!$A$19:$A$47,0),1),0,12))>27,LEFT(OFFSET(INDEX('D.A. C'!$A$19:$A$47,MATCH(B127,'D.A. C'!$A$19:$A$47,0),1),0,12),27)&"…",OFFSET(INDEX('D.A. C'!$A$19:$A$47,MATCH(B127,'D.A. C'!$A$19:$A$47,0),1),0,12))) -> 
B128: Permeable Pavement, Level 2 (infiltration & underdrain) | C128: =SUMIFS('D.A. C'!$B$19:$B$47,'D.A. C'!$A$19:$A$47,B128,'D.A. C'!$B$19:$B$47,">0")+SUMIFS('D.A. C'!$C$19:$C$47,'D.A. C'!$A$19:$A$47,B128,'D.A. C'!$C$19:$C$47,">0") -> 0 | D128: =SUMIFS('D.A. C'!$K$19:$K$47,'D.A. C'!$A$19:$A$47,B128,'D.A. C'!$K$19:$K$47,">0") -> 0 | E128: =IF(OFFSET(INDEX('D.A. C'!$A$19:$A$47,MATCH(B128,'D.A. C'!$A$19:$A$47,0),1),0,12)=0,"",IF(LEN(OFFSET(INDEX('D.A. C'!$A$19:$A$47,MATCH(B128,'D.A. C'!$A$19:$A$47,0),1),0,12))>27,LEFT(OFFSET(INDEX('D.A. C'!$A$19:$A$47,MATCH(B128,'D.A. C'!$A$19:$A$47,0),1),0,12),27)&"…",OFFSET(INDEX('D.A. C'!$A$19:$A$47,MATCH(B128,'D.A. C'!$A$19:$A$47,0),1),0,12))) -> 
B129: Grass Swale A/B Soils | C129: =SUMIFS('D.A. C'!$B$19:$B$47,'D.A. C'!$A$19:$A$47,B129,'D.A. C'!$B$19:$B$47,">0")+SUMIFS('D.A. C'!$C$19:$C$47,'D.A. C'!$A$19:$A$47,B129,'D.A. C'!$C$19:$C$47,">0") -> 0 | D129: =SUMIFS('D.A. C'!$K$19:$K$47,'D.A. C'!$A$19:$A$47,B129,'D.A. C'!$K$19:$K$47,">0") -> 0 | E129: =IF(OFFSET(INDEX('D.A. C'!$A$19:$A$47,MATCH(B129,'D.A. C'!$A$19:$A$47,0),1),0,12)=0,"",IF(LEN(OFFSET(INDEX('D.A. C'!$A$19:$A$47,MATCH(B129,'D.A. C'!$A$19:$A$47,0),1),0,12))>27,LEFT(OFFSET(INDEX('D.A. C'!$A$19:$A$47,MATCH(B129,'D.A. C'!$A$19:$A$47,0),1),0,12),27)&"…",OFFSET(INDEX('D.A. C'!$A$19:$A$47,MATCH(B129,'D.A. C'!$A$19:$A$47,0),1),0,12))) -> 
B130: Grass Swale C/D Soils | C130: =SUMIFS('D.A. C'!$B$19:$B$47,'D.A. C'!$A$19:$A$47,B130,'D.A. C'!$B$19:$B$47,">0")+SUMIFS('D.A. C'!$C$19:$C$47,'D.A. C'!$A$19:$A$47,B130,'D.A. C'!$C$19:$C$47,">0") -> 0 | D130: =SUMIFS('D.A. C'!$K$19:$K$47,'D.A. C'!$A$19:$A$47,B130,'D.A. C'!$K$19:$K$47,">0") -> 0 | E130: =IF(OFFSET(INDEX('D.A. C'!$A$19:$A$47,MATCH(B130,'D.A. C'!$A$19:$A$47,0),1),0,12)=0,"",IF(LEN(OFFSET(INDEX('D.A. C'!$A$19:$A$47,MATCH(B130,'D.A. C'!$A$19:$A$47,0),1),0,12))>27,LEFT(OFFSET(INDEX('D.A. C'!$A$19:$A$47,MATCH(B130,'D.A. C'!$A$19:$A$47,0),1),0,12),27)&"…",OFFSET(INDEX('D.A. C'!$A$19:$A$47,MATCH(B130,'D.A. C'!$A$19:$A$47,0),1),0,12))) -> 
B131: Grass Swale in C/D Soil with Soil Amendments | C131: =SUMIFS('D.A. C'!$B$19:$B$47,'D.A. C'!$A$19:$A$47,B131,'D.A. C'!$B$19:$B$47,">0")+SUMIFS('D.A. C'!$C$19:$C$47,'D.A. C'!$A$19:$A$47,B131,'D.A. C'!$C$19:$C$47,">0") -> 0 | D131: =SUMIFS('D.A. C'!$K$19:$K$47,'D.A. C'!$A$19:$A$47,B131,'D.A. C'!$K$19:$K$47,">0") -> 0 | E131: =IF(OFFSET(INDEX('D.A. C'!$A$19:$A$47,MATCH(B131,'D.A. C'!$A$19:$A$47,0),1),0,12)=0,"",IF(LEN(OFFSET(INDEX('D.A. C'!$A$19:$A$47,MATCH(B131,'D.A. C'!$A$19:$A$47,0),1),0,12))>27,LEFT(OFFSET(INDEX('D.A. C'!$A$19:$A$47,MATCH(B131,'D.A. C'!$A$19:$A$47,0),1),0,12),27)&"…",OFFSET(INDEX('D.A. C'!$A$19:$A$47,MATCH(B131,'D.A. C'!$A$19:$A$47,0),1),0,12))) -> 
B132: Water Quality Swale, Level 1 | C132: =SUMIFS('D.A. C'!$B$19:$B$47,'D.A. C'!$A$19:$A$47,B132,'D.A. C'!$B$19:$B$47,">0")+SUMIFS('D.A. C'!$C$19:$C$47,'D.A. C'!$A$19:$A$47,B132,'D.A. C'!$C$19:$C$47,">0") -> 0 | D132: =SUMIFS('D.A. C'!$K$19:$K$47,'D.A. C'!$A$19:$A$47,B132,'D.A. C'!$K$19:$K$47,">0") -> 0 | E132: =IF(OFFSET(INDEX('D.A. C'!$A$19:$A$47,MATCH(B132,'D.A. C'!$A$19:$A$47,0),1),0,12)=0,"",IF(LEN(OFFSET(INDEX('D.A. C'!$A$19:$A$47,MATCH(B132,'D.A. C'!$A$19:$A$47,0),1),0,12))>27,LEFT(OFFSET(INDEX('D.A. C'!$A$19:$A$47,MATCH(B132,'D.A. C'!$A$19:$A$47,0),1),0,12),27)&"…",OFFSET(INDEX('D.A. C'!$A$19:$A$47,MATCH(B132,'D.A. C'!$A$19:$A$47,0),1),0,12))) -> 
B133: Water Quality Swale, Level 2 | C133: =SUMIFS('D.A. C'!$B$19:$B$47,'D.A. C'!$A$19:$A$47,B133,'D.A. C'!$B$19:$B$47,">0")+SUMIFS('D.A. C'!$C$19:$C$47,'D.A. C'!$A$19:$A$47,B133,'D.A. C'!$C$19:$C$47,">0") -> 0 | D133: =SUMIFS('D.A. C'!$K$19:$K$47,'D.A. C'!$A$19:$A$47,B133,'D.A. C'!$K$19:$K$47,">0") -> 0 | E133: =IF(OFFSET(INDEX('D.A. C'!$A$19:$A$47,MATCH(B133,'D.A. C'!$A$19:$A$47,0),1),0,12)=0,"",IF(LEN(OFFSET(INDEX('D.A. C'!$A$19:$A$47,MATCH(B133,'D.A. C'!$A$19:$A$47,0),1),0,12))>27,LEFT(OFFSET(INDEX('D.A. C'!$A$19:$A$47,MATCH(B133,'D.A. C'!$A$19:$A$47,0),1),0,12),27)&"…",OFFSET(INDEX('D.A. C'!$A$19:$A$47,MATCH(B133,'D.A. C'!$A$19:$A$47,0),1),0,12))) -> 
B134: Bioretention, Level 1 or Urban Bioretention (4.2.3.B) | C134: =SUMIFS('D.A. C'!$B$19:$B$47,'D.A. C'!$A$19:$A$47,B134,'D.A. C'!$B$19:$B$47,">0")+SUMIFS('D.A. C'!$C$19:$C$47,'D.A. C'!$A$19:$A$47,B134,'D.A. C'!$C$19:$C$47,">0") -> 0 | D134: =SUMIFS('D.A. C'!$K$19:$K$47,'D.A. C'!$A$19:$A$47,B134,'D.A. C'!$K$19:$K$47,">0") -> 0 | E134: =IF(OFFSET(INDEX('D.A. C'!$A$19:$A$47,MATCH(B134,'D.A. C'!$A$19:$A$47,0),1),0,12)=0,"",IF(LEN(OFFSET(INDEX('D.A. C'!$A$19:$A$47,MATCH(B134,'D.A. C'!$A$19:$A$47,0),1),0,12))>27,LEFT(OFFSET(INDEX('D.A. C'!$A$19:$A$47,MATCH(B134,'D.A. C'!$A$19:$A$47,0),1),0,12),27)&"…",OFFSET(INDEX('D.A. C'!$A$19:$A$47,MATCH(B134,'D.A. C'!$A$19:$A$47,0),1),0,12))) -> 
B135: Bioretention, Level 2 | C135: =SUMIFS('D.A. C'!$B$19:$B$47,'D.A. C'!$A$19:$A$47,B135,'D.A. C'!$B$19:$B$47,">0")+SUMIFS('D.A. C'!$C$19:$C$47,'D.A. C'!$A$19:$A$47,B135,'D.A. C'!$C$19:$C$47,">0") -> 0 | D135: =SUMIFS('D.A. C'!$K$19:$K$47,'D.A. C'!$A$19:$A$47,B135,'D.A. C'!$K$19:$K$47,">0") -> 0 | E135: =IF(OFFSET(INDEX('D.A. C'!$A$19:$A$47,MATCH(B135,'D.A. C'!$A$19:$A$47,0),1),0,12)=0,"",IF(LEN(OFFSET(INDEX('D.A. C'!$A$19:$A$47,MATCH(B135,'D.A. C'!$A$19:$A$47,0),1),0,12))>27,LEFT(OFFSET(INDEX('D.A. C'!$A$19:$A$47,MATCH(B135,'D.A. C'!$A$19:$A$47,0),1),0,12),27)&"…",OFFSET(INDEX('D.A. C'!$A$19:$A$47,MATCH(B135,'D.A. C'!$A$19:$A$47,0),1),0,12))) -> 
B136: Infiltration | C136: =SUMIFS('D.A. C'!$B$19:$B$47,'D.A. C'!$A$19:$A$47,B136,'D.A. C'!$B$19:$B$47,">0")+SUMIFS('D.A. C'!$C$19:$C$47,'D.A. C'!$A$19:$A$47,B136,'D.A. C'!$C$19:$C$47,">0") -> 0 | D136: =SUMIFS('D.A. C'!$K$19:$K$47,'D.A. C'!$A$19:$A$47,B136,'D.A. C'!$K$19:$K$47,">0") -> 0 | E136: =IF(OFFSET(INDEX('D.A. C'!$A$19:$A$47,MATCH(B136,'D.A. C'!$A$19:$A$47,0),1),0,12)=0,"",IF(LEN(OFFSET(INDEX('D.A. C'!$A$19:$A$47,MATCH(B136,'D.A. C'!$A$19:$A$47,0),1),0,12))>27,LEFT(OFFSET(INDEX('D.A. C'!$A$19:$A$47,MATCH(B136,'D.A. C'!$A$19:$A$47,0),1),0,12),27)&"…",OFFSET(INDEX('D.A. C'!$A$19:$A$47,MATCH(B136,'D.A. C'!$A$19:$A$47,0),1),0,12))) -> 
B137: *Filtration Practice/Stormwater Wetland do NOT receive runoff reduction values, but do have associated pollutant removal values | C137: =SUMIFS('D.A. C'!$B$19:$B$47,'D.A. C'!$A$19:$A$47,B137,'D.A. C'!$B$19:$B$47,">0")+SUMIFS('D.A. C'!$C$19:$C$47,'D.A. C'!$A$19:$A$47,B137,'D.A. C'!$C$19:$C$47,">0") -> 0 | D137: =SUMIFS('D.A. C'!$K$19:$K$47,'D.A. C'!$A$19:$A$47,B137,'D.A. C'!$K$19:$K$47,">0") -> 0 | E137: =IF(OFFSET(INDEX('D.A. C'!$A$19:$A$47,MATCH(B137,'D.A. C'!$A$19:$A$47,0),1),0,12)=0,"",IF(LEN(OFFSET(INDEX('D.A. C'!$A$19:$A$47,MATCH(B137,'D.A. C'!$A$19:$A$47,0),1),0,12))>27,LEFT(OFFSET(INDEX('D.A. C'!$A$19:$A$47,MATCH(B137,'D.A. C'!$A$19:$A$47,0),1),0,12),27)&"…",OFFSET(INDEX('D.A. C'!$A$19:$A$47,MATCH(B137,'D.A. C'!$A$19:$A$47,0),1),0,12))) -> 
B138: Sheetflow to Conservation Area with A/B Soils | C138: =SUMIFS('D.A. C'!$B$19:$B$47,'D.A. C'!$A$19:$A$47,B138,'D.A. C'!$B$19:$B$47,">0")+SUMIFS('D.A. C'!$C$19:$C$47,'D.A. C'!$A$19:$A$47,B138,'D.A. C'!$C$19:$C$47,">0") -> 0 | D138: =SUMIFS('D.A. C'!$K$19:$K$47,'D.A. C'!$A$19:$A$47,B138,'D.A. C'!$K$19:$K$47,">0") -> 0 | E138: =IF(OFFSET(INDEX('D.A. C'!$A$19:$A$47,MATCH(B138,'D.A. C'!$A$19:$A$47,0),1),0,12)=0,"",IF(LEN(OFFSET(INDEX('D.A. C'!$A$19:$A$47,MATCH(B138,'D.A. C'!$A$19:$A$47,0),1),0,12))>27,LEFT(OFFSET(INDEX('D.A. C'!$A$19:$A$47,MATCH(B138,'D.A. C'!$A$19:$A$47,0),1),0,12),27)&"…",OFFSET(INDEX('D.A. C'!$A$19:$A$47,MATCH(B138,'D.A. C'!$A$19:$A$47,0),1),0,12))) -> 
B139: Sheetflow to Conservation Area with C/D Soils | C139: =SUMIFS('D.A. C'!$B$19:$B$47,'D.A. C'!$A$19:$A$47,B139,'D.A. C'!$B$19:$B$47,">0")+SUMIFS('D.A. C'!$C$19:$C$47,'D.A. C'!$A$19:$A$47,B139,'D.A. C'!$C$19:$C$47,">0") -> 0 | D139: =SUMIFS('D.A. C'!$K$19:$K$47,'D.A. C'!$A$19:$A$47,B139,'D.A. C'!$K$19:$K$47,">0") -> 0 | E139: =IF(OFFSET(INDEX('D.A. C'!$A$19:$A$47,MATCH(B139,'D.A. C'!$A$19:$A$47,0),1),0,12)=0,"",IF(LEN(OFFSET(INDEX('D.A. C'!$A$19:$A$47,MATCH(B139,'D.A. C'!$A$19:$A$47,0),1),0,12))>27,LEFT(OFFSET(INDEX('D.A. C'!$A$19:$A$47,MATCH(B139,'D.A. C'!$A$19:$A$47,0),1),0,12),27)&"…",OFFSET(INDEX('D.A. C'!$A$19:$A$47,MATCH(B139,'D.A. C'!$A$19:$A$47,0),1),0,12))) -> 
B140: Sheetflow to Vegetated Filter Strip in A/B Soils or Compost Amended C/D Soils | C140: =SUMIFS('D.A. C'!$B$19:$B$47,'D.A. C'!$A$19:$A$47,B140,'D.A. C'!$B$19:$B$47,">0")+SUMIFS('D.A. C'!$C$19:$C$47,'D.A. C'!$A$19:$A$47,B140,'D.A. C'!$C$19:$C$47,">0") -> 0 | D140: =SUMIFS('D.A. C'!$K$19:$K$47,'D.A. C'!$A$19:$A$47,B140,'D.A. C'!$K$19:$K$47,">0") -> 0 | E140: =IF(OFFSET(INDEX('D.A. C'!$A$19:$A$47,MATCH(B140,'D.A. C'!$A$19:$A$47,0),1),0,12)=0,"",IF(LEN(OFFSET(INDEX('D.A. C'!$A$19:$A$47,MATCH(B140,'D.A. C'!$A$19:$A$47,0),1),0,12))>27,LEFT(OFFSET(INDEX('D.A. C'!$A$19:$A$47,MATCH(B140,'D.A. C'!$A$19:$A$47,0),1),0,12),27)&"…",OFFSET(INDEX('D.A. C'!$A$19:$A$47,MATCH(B140,'D.A. C'!$A$19:$A$47,0),1),0,12))) -> 
B141: Sheet flow to Vegetated Filter Strip in C/D Soils | C141: =SUMIFS('D.A. C'!$B$19:$B$47,'D.A. C'!$A$19:$A$47,B141,'D.A. C'!$B$19:$B$47,">0")+SUMIFS('D.A. C'!$C$19:$C$47,'D.A. C'!$A$19:$A$47,B141,'D.A. C'!$C$19:$C$47,">0") -> 0 | D141: =SUMIFS('D.A. C'!$K$19:$K$47,'D.A. C'!$A$19:$A$47,B141,'D.A. C'!$K$19:$K$47,">0") -> 0 | E141: =IF(OFFSET(INDEX('D.A. C'!$A$19:$A$47,MATCH(B141,'D.A. C'!$A$19:$A$47,0),1),0,12)=0,"",IF(LEN(OFFSET(INDEX('D.A. C'!$A$19:$A$47,MATCH(B141,'D.A. C'!$A$19:$A$47,0),1),0,12))>27,LEFT(OFFSET(INDEX('D.A. C'!$A$19:$A$47,MATCH(B141,'D.A. C'!$A$19:$A$47,0),1),0,12),27)&"…",OFFSET(INDEX('D.A. C'!$A$19:$A$47,MATCH(B141,'D.A. C'!$A$19:$A$47,0),1),0,12))) -> 
I142: =IF(SUM($E$24:$E$26)<>0,1,"") -> 
B143: Total Impervious Cover Treated (acres) | C143: ='D.A. C'!B48 -> 0 | I143: =IF(SUM($E$24:$E$26)<>0,1,"") -> 
B144: Total Turf Area Treated (acres) | C144: ='D.A. C'!C48 -> 0 | I144: =IF(SUM($E$24:$E$26)<>0,1,"") -> 
B147: Drainage Area D Summary | I147: =IF(SUM($F$24:$F$26)<>0,1,"") -> 
I148: =IF(SUM($F$24:$F$26)<>0,1,"") -> 
B149: Land Cover Summary
C151: A Soils | D151: B Soils | E151: C Soils | F151: D Soils | G151: Total | H151: % of Total
B152: Forest (acres) | C152: ='Site Data'!B38 -> 0 | D152: ='Site Data'!C38 -> 0 | E152: ='Site Data'!D38 -> 0 | F152: ='Site Data'!E38 -> 0 | G152: ='Site Data'!F38 -> 0 | H152: =IF(G$38>0,G152/G$38*100,0) -> 0
B153: Turf (acres) | C153: ='Site Data'!B39 -> 0 | D153: ='Site Data'!C39 -> 0 | E153: ='Site Data'!D39 -> 0 | F153: ='Site Data'!E39 -> 0 | G153: ='Site Data'!F39 -> 0 | H153: =IF(G$38>0,G153/G$38*100,0) -> 0
B154: Impervious (acres) | C154: ='Site Data'!B40 -> 0 | D154: ='Site Data'!C40 -> 0 | E154: ='Site Data'!D40 -> 0 | F154: ='Site Data'!E40 -> 0 | G154: ='Site Data'!F40 -> 0 | H154: =IF(G$38>0,G154/G$38*100,0) -> 0
G155: =SUM(G152:G154) -> 0
B157: BMP Selections
B159: =IF(SUM(I160:I180)>0,"Practice","No Practices in this Drainage Area") -> No Practices in this Drainage Area | C159: Credit Area (acres) | D159: Runoff Reduction (ft3) | E159: Downstream Practice
B160: Vegetated Roof | C160: =SUMIFS('D.A. D'!$B$19:$B$47,'D.A. D'!$A$19:$A$47,B160,'D.A. D'!$B$19:$B$47,">0")+SUMIFS('D.A. D'!$C$19:$C$47,'D.A. D'!$A$19:$A$47,B160,'D.A. D'!$C$19:$C$47,">0") -> 0 | D160: =SUMIFS('D.A. D'!$K$19:$K$47,'D.A. D'!$A$19:$A$47,B160,'D.A. D'!$K$19:$K$47,">0") -> 0 | E160: =IF(OFFSET(INDEX('D.A. D'!$A$19:$A$47,MATCH(B160,'D.A. D'!$A$19:$A$47,0),1),0,12)=0,"",IF(LEN(OFFSET(INDEX('D.A. D'!$A$19:$A$47,MATCH(B160,'D.A. D'!$A$19:$A$47,0),1),0,12))>27,LEFT(OFFSET(INDEX('D.A. D'!$A$19:$A$47,MATCH(B160,'D.A. D'!$A$19:$A$47,0),1),0,12),27)&"…",OFFSET(INDEX('D.A. D'!$A$19:$A$47,MATCH(B160,'D.A. D'!$A$19:$A$47,0),1),0,12))) ->  | I160: =IF(AND(D160>0,SUM($F$24:$F$26)>0),1,"") -> 
B161: Simple Disconnection to A/B Soils or Soil-Amended Filter Path in C/D Soils (4.2.2, Appendix D) | C161: =SUMIFS('D.A. D'!$B$19:$B$47,'D.A. D'!$A$19:$A$47,B161,'D.A. D'!$B$19:$B$47,">0")+SUMIFS('D.A. D'!$C$19:$C$47,'D.A. D'!$A$19:$A$47,B161,'D.A. D'!$C$19:$C$47,">0") -> 0 | D161: =SUMIFS('D.A. D'!$K$19:$K$47,'D.A. D'!$A$19:$A$47,B161,'D.A. D'!$K$19:$K$47,">0") -> 0 | E161: =IF(OFFSET(INDEX('D.A. D'!$A$19:$A$47,MATCH(B161,'D.A. D'!$A$19:$A$47,0),1),0,12)=0,"",IF(LEN(OFFSET(INDEX('D.A. D'!$A$19:$A$47,MATCH(B161,'D.A. D'!$A$19:$A$47,0),1),0,12))>27,LEFT(OFFSET(INDEX('D.A. D'!$A$19:$A$47,MATCH(B161,'D.A. D'!$A$19:$A$47,0),1),0,12),27)&"…",OFFSET(INDEX('D.A. D'!$A$19:$A$47,MATCH(B161,'D.A. D'!$A$19:$A$47,0),1),0,12))) ->  | I161: =IF(AND(D161>0,SUM($F$24:$F$26)>0),1,"") -> 
B162: Simple Disconnection to C/D Soils (4.2.2) | C162: =SUMIFS('D.A. D'!$B$19:$B$47,'D.A. D'!$A$19:$A$47,B162,'D.A. D'!$B$19:$B$47,">0")+SUMIFS('D.A. D'!$C$19:$C$47,'D.A. D'!$A$19:$A$47,B162,'D.A. D'!$C$19:$C$47,">0") -> 0 | D162: =SUMIFS('D.A. D'!$K$19:$K$47,'D.A. D'!$A$19:$A$47,B162,'D.A. D'!$K$19:$K$47,">0") -> 0 | E162: =IF(OFFSET(INDEX('D.A. D'!$A$19:$A$47,MATCH(B162,'D.A. D'!$A$19:$A$47,0),1),0,12)=0,"",IF(LEN(OFFSET(INDEX('D.A. D'!$A$19:$A$47,MATCH(B162,'D.A. D'!$A$19:$A$47,0),1),0,12))>27,LEFT(OFFSET(INDEX('D.A. D'!$A$19:$A$47,MATCH(B162,'D.A. D'!$A$19:$A$47,0),1),0,12),27)&"…",OFFSET(INDEX('D.A. D'!$A$19:$A$47,MATCH(B162,'D.A. D'!$A$19:$A$47,0),1),0,12))) -> 
B163: To Residential Rain Garden (4.2.3.C) | C163: =SUMIFS('D.A. D'!$B$19:$B$47,'D.A. D'!$A$19:$A$47,B163,'D.A. D'!$B$19:$B$47,">0")+SUMIFS('D.A. D'!$C$19:$C$47,'D.A. D'!$A$19:$A$47,B163,'D.A. D'!$C$19:$C$47,">0") -> 0 | D163: =SUMIFS('D.A. D'!$K$19:$K$47,'D.A. D'!$A$19:$A$47,B163,'D.A. D'!$K$19:$K$47,">0") -> 0 | E163: =IF(OFFSET(INDEX('D.A. D'!$A$19:$A$47,MATCH(B163,'D.A. D'!$A$19:$A$47,0),1),0,12)=0,"",IF(LEN(OFFSET(INDEX('D.A. D'!$A$19:$A$47,MATCH(B163,'D.A. D'!$A$19:$A$47,0),1),0,12))>27,LEFT(OFFSET(INDEX('D.A. D'!$A$19:$A$47,MATCH(B163,'D.A. D'!$A$19:$A$47,0),1),0,12),27)&"…",OFFSET(INDEX('D.A. D'!$A$19:$A$47,MATCH(B163,'D.A. D'!$A$19:$A$47,0),1),0,12))) -> 
B164: To Rainwater Harvesting (4.2.8) | C164: =SUMIFS('D.A. D'!$B$19:$B$47,'D.A. D'!$A$19:$A$47,B164,'D.A. D'!$B$19:$B$47,">0")+SUMIFS('D.A. D'!$C$19:$C$47,'D.A. D'!$A$19:$A$47,B164,'D.A. D'!$C$19:$C$47,">0") -> 0 | D164: =SUMIFS('D.A. D'!$K$19:$K$47,'D.A. D'!$A$19:$A$47,B164,'D.A. D'!$K$19:$K$47,">0") -> 0 | E164: =IF(OFFSET(INDEX('D.A. D'!$A$19:$A$47,MATCH(B164,'D.A. D'!$A$19:$A$47,0),1),0,12)=0,"",IF(LEN(OFFSET(INDEX('D.A. D'!$A$19:$A$47,MATCH(B164,'D.A. D'!$A$19:$A$47,0),1),0,12))>27,LEFT(OFFSET(INDEX('D.A. D'!$A$19:$A$47,MATCH(B164,'D.A. D'!$A$19:$A$47,0),1),0,12),27)&"…",OFFSET(INDEX('D.A. D'!$A$19:$A$47,MATCH(B164,'D.A. D'!$A$19:$A$47,0),1),0,12))) -> 
B165: Permeable Pavement, Level 1 | C165: =SUMIFS('D.A. D'!$B$19:$B$47,'D.A. D'!$A$19:$A$47,B165,'D.A. D'!$B$19:$B$47,">0")+SUMIFS('D.A. D'!$C$19:$C$47,'D.A. D'!$A$19:$A$47,B165,'D.A. D'!$C$19:$C$47,">0") -> 0 | D165: =SUMIFS('D.A. D'!$K$19:$K$47,'D.A. D'!$A$19:$A$47,B165,'D.A. D'!$K$19:$K$47,">0") -> 0 | E165: =IF(OFFSET(INDEX('D.A. D'!$A$19:$A$47,MATCH(B165,'D.A. D'!$A$19:$A$47,0),1),0,12)=0,"",IF(LEN(OFFSET(INDEX('D.A. D'!$A$19:$A$47,MATCH(B165,'D.A. D'!$A$19:$A$47,0),1),0,12))>27,LEFT(OFFSET(INDEX('D.A. D'!$A$19:$A$47,MATCH(B165,'D.A. D'!$A$19:$A$47,0),1),0,12),27)&"…",OFFSET(INDEX('D.A. D'!$A$19:$A$47,MATCH(B165,'D.A. D'!$A$19:$A$47,0),1),0,12))) -> 
B166: Permeable Pavement, Level 2 (infiltration) | C166: =SUMIFS('D.A. D'!$B$19:$B$47,'D.A. D'!$A$19:$A$47,B166,'D.A. D'!$B$19:$B$47,">0")+SUMIFS('D.A. D'!$C$19:$C$47,'D.A. D'!$A$19:$A$47,B166,'D.A. D'!$C$19:$C$47,">0") -> 0 | D166: =SUMIFS('D.A. D'!$K$19:$K$47,'D.A. D'!$A$19:$A$47,B166,'D.A. D'!$K$19:$K$47,">0") -> 0 | E166: =IF(OFFSET(INDEX('D.A. D'!$A$19:$A$47,MATCH(B166,'D.A. D'!$A$19:$A$47,0),1),0,12)=0,"",IF(LEN(OFFSET(INDEX('D.A. D'!$A$19:$A$47,MATCH(B166,'D.A. D'!$A$19:$A$47,0),1),0,12))>27,LEFT(OFFSET(INDEX('D.A. D'!$A$19:$A$47,MATCH(B166,'D.A. D'!$A$19:$A$47,0),1),0,12),27)&"…",OFFSET(INDEX('D.A. D'!$A$19:$A$47,MATCH(B166,'D.A. D'!$A$19:$A$47,0),1),0,12))) -> 
B167: Permeable Pavement, Level 2 (infiltration & underdrain) | C167: =SUMIFS('D.A. D'!$B$19:$B$47,'D.A. D'!$A$19:$A$47,B167,'D.A. D'!$B$19:$B$47,">0")+SUMIFS('D.A. D'!$C$19:$C$47,'D.A. D'!$A$19:$A$47,B167,'D.A. D'!$C$19:$C$47,">0") -> 0 | D167: =SUMIFS('D.A. D'!$K$19:$K$47,'D.A. D'!$A$19:$A$47,B167,'D.A. D'!$K$19:$K$47,">0") -> 0 | E167: =IF(OFFSET(INDEX('D.A. D'!$A$19:$A$47,MATCH(B167,'D.A. D'!$A$19:$A$47,0),1),0,12)=0,"",IF(LEN(OFFSET(INDEX('D.A. D'!$A$19:$A$47,MATCH(B167,'D.A. D'!$A$19:$A$47,0),1),0,12))>27,LEFT(OFFSET(INDEX('D.A. D'!$A$19:$A$47,MATCH(B167,'D.A. D'!$A$19:$A$47,0),1),0,12),27)&"…",OFFSET(INDEX('D.A. D'!$A$19:$A$47,MATCH(B167,'D.A. D'!$A$19:$A$47,0),1),0,12))) -> 
B168: Grass Swale A/B Soils | C168: =SUMIFS('D.A. D'!$B$19:$B$47,'D.A. D'!$A$19:$A$47,B168,'D.A. D'!$B$19:$B$47,">0")+SUMIFS('D.A. D'!$C$19:$C$47,'D.A. D'!$A$19:$A$47,B168,'D.A. D'!$C$19:$C$47,">0") -> 0 | D168: =SUMIFS('D.A. D'!$K$19:$K$47,'D.A. D'!$A$19:$A$47,B168,'D.A. D'!$K$19:$K$47,">0") -> 0 | E168: =IF(OFFSET(INDEX('D.A. D'!$A$19:$A$47,MATCH(B168,'D.A. D'!$A$19:$A$47,0),1),0,12)=0,"",IF(LEN(OFFSET(INDEX('D.A. D'!$A$19:$A$47,MATCH(B168,'D.A. D'!$A$19:$A$47,0),1),0,12))>27,LEFT(OFFSET(INDEX('D.A. D'!$A$19:$A$47,MATCH(B168,'D.A. D'!$A$19:$A$47,0),1),0,12),27)&"…",OFFSET(INDEX('D.A. D'!$A$19:$A$47,MATCH(B168,'D.A. D'!$A$19:$A$47,0),1),0,12))) -> 
B169: Grass Swale C/D Soils | C169: =SUMIFS('D.A. D'!$B$19:$B$47,'D.A. D'!$A$19:$A$47,B169,'D.A. D'!$B$19:$B$47,">0")+SUMIFS('D.A. D'!$C$19:$C$47,'D.A. D'!$A$19:$A$47,B169,'D.A. D'!$C$19:$C$47,">0") -> 0 | D169: =SUMIFS('D.A. D'!$K$19:$K$47,'D.A. D'!$A$19:$A$47,B169,'D.A. D'!$K$19:$K$47,">0") -> 0 | E169: =IF(OFFSET(INDEX('D.A. D'!$A$19:$A$47,MATCH(B169,'D.A. D'!$A$19:$A$47,0),1),0,12)=0,"",IF(LEN(OFFSET(INDEX('D.A. D'!$A$19:$A$47,MATCH(B169,'D.A. D'!$A$19:$A$47,0),1),0,12))>27,LEFT(OFFSET(INDEX('D.A. D'!$A$19:$A$47,MATCH(B169,'D.A. D'!$A$19:$A$47,0),1),0,12),27)&"…",OFFSET(INDEX('D.A. D'!$A$19:$A$47,MATCH(B169,'D.A. D'!$A$19:$A$47,0),1),0,12))) -> 
B170: Grass Swale in C/D Soil with Soil Amendments | C170: =SUMIFS('D.A. D'!$B$19:$B$47,'D.A. D'!$A$19:$A$47,B170,'D.A. D'!$B$19:$B$47,">0")+SUMIFS('D.A. D'!$C$19:$C$47,'D.A. D'!$A$19:$A$47,B170,'D.A. D'!$C$19:$C$47,">0") -> 0 | D170: =SUMIFS('D.A. D'!$K$19:$K$47,'D.A. D'!$A$19:$A$47,B170,'D.A. D'!$K$19:$K$47,">0") -> 0 | E170: =IF(OFFSET(INDEX('D.A. D'!$A$19:$A$47,MATCH(B170,'D.A. D'!$A$19:$A$47,0),1),0,12)=0,"",IF(LEN(OFFSET(INDEX('D.A. D'!$A$19:$A$47,MATCH(B170,'D.A. D'!$A$19:$A$47,0),1),0,12))>27,LEFT(OFFSET(INDEX('D.A. D'!$A$19:$A$47,MATCH(B170,'D.A. D'!$A$19:$A$47,0),1),0,12),27)&"…",OFFSET(INDEX('D.A. D'!$A$19:$A$47,MATCH(B170,'D.A. D'!$A$19:$A$47,0),1),0,12))) -> 
B171: Water Quality Swale, Level 1 | C171: =SUMIFS('D.A. D'!$B$19:$B$47,'D.A. D'!$A$19:$A$47,B171,'D.A. D'!$B$19:$B$47,">0")+SUMIFS('D.A. D'!$C$19:$C$47,'D.A. D'!$A$19:$A$47,B171,'D.A. D'!$C$19:$C$47,">0") -> 0 | D171: =SUMIFS('D.A. D'!$K$19:$K$47,'D.A. D'!$A$19:$A$47,B171,'D.A. D'!$K$19:$K$47,">0") -> 0 | E171: =IF(OFFSET(INDEX('D.A. D'!$A$19:$A$47,MATCH(B171,'D.A. D'!$A$19:$A$47,0),1),0,12)=0,"",IF(LEN(OFFSET(INDEX('D.A. D'!$A$19:$A$47,MATCH(B171,'D.A. D'!$A$19:$A$47,0),1),0,12))>27,LEFT(OFFSET(INDEX('D.A. D'!$A$19:$A$47,MATCH(B171,'D.A. D'!$A$19:$A$47,0),1),0,12),27)&"…",OFFSET(INDEX('D.A. D'!$A$19:$A$47,MATCH(B171,'D.A. D'!$A$19:$A$47,0),1),0,12))) -> 
B172: Water Quality Swale, Level 2 | C172: =SUMIFS('D.A. D'!$B$19:$B$47,'D.A. D'!$A$19:$A$47,B172,'D.A. D'!$B$19:$B$47,">0")+SUMIFS('D.A. D'!$C$19:$C$47,'D.A. D'!$A$19:$A$47,B172,'D.A. D'!$C$19:$C$47,">0") -> 0 | D172: =SUMIFS('D.A. D'!$K$19:$K$47,'D.A. D'!$A$19:$A$47,B172,'D.A. D'!$K$19:$K$47,">0") -> 0 | E172: =IF(OFFSET(INDEX('D.A. D'!$A$19:$A$47,MATCH(B172,'D.A. D'!$A$19:$A$47,0),1),0,12)=0,"",IF(LEN(OFFSET(INDEX('D.A. D'!$A$19:$A$47,MATCH(B172,'D.A. D'!$A$19:$A$47,0),1),0,12))>27,LEFT(OFFSET(INDEX('D.A. D'!$A$19:$A$47,MATCH(B172,'D.A. D'!$A$19:$A$47,0),1),0,12),27)&"…",OFFSET(INDEX('D.A. D'!$A$19:$A$47,MATCH(B172,'D.A. D'!$A$19:$A$47,0),1),0,12))) -> 
B173: Bioretention, Level 1 or Urban Bioretention (4.2.3.B) | C173: =SUMIFS('D.A. D'!$B$19:$B$47,'D.A. D'!$A$19:$A$47,B173,'D.A. D'!$B$19:$B$47,">0")+SUMIFS('D.A. D'!$C$19:$C$47,'D.A. D'!$A$19:$A$47,B173,'D.A. D'!$C$19:$C$47,">0") -> 0 | D173: =SUMIFS('D.A. D'!$K$19:$K$47,'D.A. D'!$A$19:$A$47,B173,'D.A. D'!$K$19:$K$47,">0") -> 0 | E173: =IF(OFFSET(INDEX('D.A. D'!$A$19:$A$47,MATCH(B173,'D.A. D'!$A$19:$A$47,0),1),0,12)=0,"",IF(LEN(OFFSET(INDEX('D.A. D'!$A$19:$A$47,MATCH(B173,'D.A. D'!$A$19:$A$47,0),1),0,12))>27,LEFT(OFFSET(INDEX('D.A. D'!$A$19:$A$47,MATCH(B173,'D.A. D'!$A$19:$A$47,0),1),0,12),27)&"…",OFFSET(INDEX('D.A. D'!$A$19:$A$47,MATCH(B173,'D.A. D'!$A$19:$A$47,0),1),0,12))) -> 
B174: Bioretention, Level 2 | C174: =SUMIFS('D.A. D'!$B$19:$B$47,'D.A. D'!$A$19:$A$47,B174,'D.A. D'!$B$19:$B$47,">0")+SUMIFS('D.A. D'!$C$19:$C$47,'D.A. D'!$A$19:$A$47,B174,'D.A. D'!$C$19:$C$47,">0") -> 0 | D174: =SUMIFS('D.A. D'!$K$19:$K$47,'D.A. D'!$A$19:$A$47,B174,'D.A. D'!$K$19:$K$47,">0") -> 0 | E174: =IF(OFFSET(INDEX('D.A. D'!$A$19:$A$47,MATCH(B174,'D.A. D'!$A$19:$A$47,0),1),0,12)=0,"",IF(LEN(OFFSET(INDEX('D.A. D'!$A$19:$A$47,MATCH(B174,'D.A. D'!$A$19:$A$47,0),1),0,12))>27,LEFT(OFFSET(INDEX('D.A. D'!$A$19:$A$47,MATCH(B174,'D.A. D'!$A$19:$A$47,0),1),0,12),27)&"…",OFFSET(INDEX('D.A. D'!$A$19:$A$47,MATCH(B174,'D.A. D'!$A$19:$A$47,0),1),0,12))) -> 
B175: Infiltration | C175: =SUMIFS('D.A. D'!$B$19:$B$47,'D.A. D'!$A$19:$A$47,B175,'D.A. D'!$B$19:$B$47,">0")+SUMIFS('D.A. D'!$C$19:$C$47,'D.A. D'!$A$19:$A$47,B175,'D.A. D'!$C$19:$C$47,">0") -> 0 | D175: =SUMIFS('D.A. D'!$K$19:$K$47,'D.A. D'!$A$19:$A$47,B175,'D.A. D'!$K$19:$K$47,">0") -> 0 | E175: =IF(OFFSET(INDEX('D.A. D'!$A$19:$A$47,MATCH(B175,'D.A. D'!$A$19:$A$47,0),1),0,12)=0,"",IF(LEN(OFFSET(INDEX('D.A. D'!$A$19:$A$47,MATCH(B175,'D.A. D'!$A$19:$A$47,0),1),0,12))>27,LEFT(OFFSET(INDEX('D.A. D'!$A$19:$A$47,MATCH(B175,'D.A. D'!$A$19:$A$47,0),1),0,12),27)&"…",OFFSET(INDEX('D.A. D'!$A$19:$A$47,MATCH(B175,'D.A. D'!$A$19:$A$47,0),1),0,12))) -> 
B176: *Filtration Practice/Stormwater Wetland do NOT receive runoff reduction values, but do have associated pollutant removal values | C176: =SUMIFS('D.A. D'!$B$19:$B$47,'D.A. D'!$A$19:$A$47,B176,'D.A. D'!$B$19:$B$47,">0")+SUMIFS('D.A. D'!$C$19:$C$47,'D.A. D'!$A$19:$A$47,B176,'D.A. D'!$C$19:$C$47,">0") -> 0 | D176: =SUMIFS('D.A. D'!$K$19:$K$47,'D.A. D'!$A$19:$A$47,B176,'D.A. D'!$K$19:$K$47,">0") -> 0 | E176: =IF(OFFSET(INDEX('D.A. D'!$A$19:$A$47,MATCH(B176,'D.A. D'!$A$19:$A$47,0),1),0,12)=0,"",IF(LEN(OFFSET(INDEX('D.A. D'!$A$19:$A$47,MATCH(B176,'D.A. D'!$A$19:$A$47,0),1),0,12))>27,LEFT(OFFSET(INDEX('D.A. D'!$A$19:$A$47,MATCH(B176,'D.A. D'!$A$19:$A$47,0),1),0,12),27)&"…",OFFSET(INDEX('D.A. D'!$A$19:$A$47,MATCH(B176,'D.A. D'!$A$19:$A$47,0),1),0,12))) -> 
B177: Sheetflow to Conservation Area with A/B Soils | C177: =SUMIFS('D.A. D'!$B$19:$B$47,'D.A. D'!$A$19:$A$47,B177,'D.A. D'!$B$19:$B$47,">0")+SUMIFS('D.A. D'!$C$19:$C$47,'D.A. D'!$A$19:$A$47,B177,'D.A. D'!$C$19:$C$47,">0") -> 0 | D177: =SUMIFS('D.A. D'!$K$19:$K$47,'D.A. D'!$A$19:$A$47,B177,'D.A. D'!$K$19:$K$47,">0") -> 0 | E177: =IF(OFFSET(INDEX('D.A. D'!$A$19:$A$47,MATCH(B177,'D.A. D'!$A$19:$A$47,0),1),0,12)=0,"",IF(LEN(OFFSET(INDEX('D.A. D'!$A$19:$A$47,MATCH(B177,'D.A. D'!$A$19:$A$47,0),1),0,12))>27,LEFT(OFFSET(INDEX('D.A. D'!$A$19:$A$47,MATCH(B177,'D.A. D'!$A$19:$A$47,0),1),0,12),27)&"…",OFFSET(INDEX('D.A. D'!$A$19:$A$47,MATCH(B177,'D.A. D'!$A$19:$A$47,0),1),0,12))) -> 
B178: Sheetflow to Conservation Area with C/D Soils | C178: =SUMIFS('D.A. D'!$B$19:$B$47,'D.A. D'!$A$19:$A$47,B178,'D.A. D'!$B$19:$B$47,">0")+SUMIFS('D.A. D'!$C$19:$C$47,'D.A. D'!$A$19:$A$47,B178,'D.A. D'!$C$19:$C$47,">0") -> 0 | D178: =SUMIFS('D.A. D'!$K$19:$K$47,'D.A. D'!$A$19:$A$47,B178,'D.A. D'!$K$19:$K$47,">0") -> 0 | E178: =IF(OFFSET(INDEX('D.A. D'!$A$19:$A$47,MATCH(B178,'D.A. D'!$A$19:$A$47,0),1),0,12)=0,"",IF(LEN(OFFSET(INDEX('D.A. D'!$A$19:$A$47,MATCH(B178,'D.A. D'!$A$19:$A$47,0),1),0,12))>27,LEFT(OFFSET(INDEX('D.A. D'!$A$19:$A$47,MATCH(B178,'D.A. D'!$A$19:$A$47,0),1),0,12),27)&"…",OFFSET(INDEX('D.A. D'!$A$19:$A$47,MATCH(B178,'D.A. D'!$A$19:$A$47,0),1),0,12))) -> 
B179: Sheetflow to Vegetated Filter Strip in A/B Soils or Compost Amended C/D Soils | C179: =SUMIFS('D.A. D'!$B$19:$B$47,'D.A. D'!$A$19:$A$47,B179,'D.A. D'!$B$19:$B$47,">0")+SUMIFS('D.A. D'!$C$19:$C$47,'D.A. D'!$A$19:$A$47,B179,'D.A. D'!$C$19:$C$47,">0") -> 0 | D179: =SUMIFS('D.A. D'!$K$19:$K$47,'D.A. D'!$A$19:$A$47,B179,'D.A. D'!$K$19:$K$47,">0") -> 0 | E179: =IF(OFFSET(INDEX('D.A. D'!$A$19:$A$47,MATCH(B179,'D.A. D'!$A$19:$A$47,0),1),0,12)=0,"",IF(LEN(OFFSET(INDEX('D.A. D'!$A$19:$A$47,MATCH(B179,'D.A. D'!$A$19:$A$47,0),1),0,12))>27,LEFT(OFFSET(INDEX('D.A. D'!$A$19:$A$47,MATCH(B179,'D.A. D'!$A$19:$A$47,0),1),0,12),27)&"…",OFFSET(INDEX('D.A. D'!$A$19:$A$47,MATCH(B179,'D.A. D'!$A$19:$A$47,0),1),0,12))) -> 
B180: Sheet flow to Vegetated Filter Strip in C/D Soils | C180: =SUMIFS('D.A. D'!$B$19:$B$47,'D.A. D'!$A$19:$A$47,B180,'D.A. D'!$B$19:$B$47,">0")+SUMIFS('D.A. D'!$C$19:$C$47,'D.A. D'!$A$19:$A$47,B180,'D.A. D'!$C$19:$C$47,">0") -> 0 | D180: =SUMIFS('D.A. D'!$K$19:$K$47,'D.A. D'!$A$19:$A$47,B180,'D.A. D'!$K$19:$K$47,">0") -> 0 | E180: =IF(OFFSET(INDEX('D.A. D'!$A$19:$A$47,MATCH(B180,'D.A. D'!$A$19:$A$47,0),1),0,12)=0,"",IF(LEN(OFFSET(INDEX('D.A. D'!$A$19:$A$47,MATCH(B180,'D.A. D'!$A$19:$A$47,0),1),0,12))>27,LEFT(OFFSET(INDEX('D.A. D'!$A$19:$A$47,MATCH(B180,'D.A. D'!$A$19:$A$47,0),1),0,12),27)&"…",OFFSET(INDEX('D.A. D'!$A$19:$A$47,MATCH(B180,'D.A. D'!$A$19:$A$47,0),1),0,12))) -> 
I181: =IF(SUM($F$24:$F$26)<>0,1,"") -> 
B182: Total Impervious Cover Treated (acres) | C182: ='D.A. D'!B48 -> 0 | I182: =IF(SUM($F$24:$F$26)<>0,1,"") -> 
B183: Total Turf Area Treated (acres) | C183: ='D.A. D'!C48 -> 0 | I183: =IF(SUM($F$24:$F$26)<>0,1,"") -> 
B186: Drainage Area E Summary | I186: =IF(SUM($G$24:$G$26)<>0,1,"") -> 
I187: =IF(SUM($G$24:$G$26)<>0,1,"") -> 
B188: Land Cover Summary
C190: A Soils | D190: B Soils | E190: C Soils | F190: D Soils | G190: Total | H190: % of Total
B191: Forest (acres) | C191: ='Site Data'!B45 -> 0 | D191: ='Site Data'!C45 -> 0 | E191: ='Site Data'!D45 -> 0 | F191: ='Site Data'!E45 -> 0 | G191: ='Site Data'!F45 -> 0 | H191: =IF(G$38>0,G191/G$38*100,0) -> 0
B192: Turf (acres) | C192: ='Site Data'!B46 -> 0 | D192: ='Site Data'!C46 -> 0 | E192: ='Site Data'!D46 -> 0 | F192: ='Site Data'!E46 -> 0 | G192: ='Site Data'!F46 -> 0 | H192: =IF(G$38>0,G192/G$38*100,0) -> 0
B193: Impervious (acres) | C193: ='Site Data'!B47 -> 0 | D193: ='Site Data'!C47 -> 0 | E193: ='Site Data'!D47 -> 0 | F193: ='Site Data'!E47 -> 0 | G193: ='Site Data'!F47 -> 0 | H193: =IF(G$38>0,G193/G$38*100,0) -> 0
G194: =SUM(G191:G193) -> 0
B196: BMP Selections
B198: =IF(SUM(I199:I219)>0,"Practice","No Practices in this Drainage Area") -> No Practices in this Drainage Area | C198: Credit Area (acres) | D198: Runoff Reduction (ft3) | E198: Downstream Practice
B199: Vegetated Roof | C199: =SUMIFS('D.A. E'!$B$19:$B$47,'D.A. E'!$A$19:$A$47,B199,'D.A. E'!$B$19:$B$47,">0")+SUMIFS('D.A. E'!$C$19:$C$47,'D.A. E'!$A$19:$A$47,B199,'D.A. E'!$C$19:$C$47,">0") -> 0 | D199: =SUMIFS('D.A. E'!$K$19:$K$47,'D.A. E'!$A$19:$A$47,B199,'D.A. E'!$K$19:$K$47,">0") -> 0 | E199: =IF(OFFSET(INDEX('D.A. E'!$A$19:$A$47,MATCH(B199,'D.A. E'!$A$19:$A$47,0),1),0,12)=0,"",IF(LEN(OFFSET(INDEX('D.A. E'!$A$19:$A$47,MATCH(B199,'D.A. E'!$A$19:$A$47,0),1),0,12))>27,LEFT(OFFSET(INDEX('D.A. E'!$A$19:$A$47,MATCH(B199,'D.A. E'!$A$19:$A$47,0),1),0,12),27)&"…",OFFSET(INDEX('D.A. E'!$A$19:$A$47,MATCH(B199,'D.A. E'!$A$19:$A$47,0),1),0,12))) ->  | I199: =IF(AND(D199>0,SUM($G$24:$G$26)>0),1,"") -> 
B200: Simple Disconnection to A/B Soils or Soil-Amended Filter Path in C/D Soils (4.2.2, Appendix D) | C200: =SUMIFS('D.A. E'!$B$19:$B$47,'D.A. E'!$A$19:$A$47,B200,'D.A. E'!$B$19:$B$47,">0")+SUMIFS('D.A. E'!$C$19:$C$47,'D.A. E'!$A$19:$A$47,B200,'D.A. E'!$C$19:$C$47,">0") -> 0 | D200: =SUMIFS('D.A. E'!$K$19:$K$47,'D.A. E'!$A$19:$A$47,B200,'D.A. E'!$K$19:$K$47,">0") -> 0 | E200: =IF(OFFSET(INDEX('D.A. E'!$A$19:$A$47,MATCH(B200,'D.A. E'!$A$19:$A$47,0),1),0,12)=0,"",IF(LEN(OFFSET(INDEX('D.A. E'!$A$19:$A$47,MATCH(B200,'D.A. E'!$A$19:$A$47,0),1),0,12))>27,LEFT(OFFSET(INDEX('D.A. E'!$A$19:$A$47,MATCH(B200,'D.A. E'!$A$19:$A$47,0),1),0,12),27)&"…",OFFSET(INDEX('D.A. E'!$A$19:$A$47,MATCH(B200,'D.A. E'!$A$19:$A$47,0),1),0,12))) ->  | I200: =IF(AND(D200>0,SUM($G$24:$G$26)>0),1,"") -> 
B201: Simple Disconnection to C/D Soils (4.2.2) | C201: =SUMIFS('D.A. E'!$B$19:$B$47,'D.A. E'!$A$19:$A$47,B201,'D.A. E'!$B$19:$B$47,">0")+SUMIFS('D.A. E'!$C$19:$C$47,'D.A. E'!$A$19:$A$47,B201,'D.A. E'!$C$19:$C$47,">0") -> 0 | D201: =SUMIFS('D.A. E'!$K$19:$K$47,'D.A. E'!$A$19:$A$47,B201,'D.A. E'!$K$19:$K$47,">0") -> 0 | E201: =IF(OFFSET(INDEX('D.A. E'!$A$19:$A$47,MATCH(B201,'D.A. E'!$A$19:$A$47,0),1),0,12)=0,"",IF(LEN(OFFSET(INDEX('D.A. E'!$A$19:$A$47,MATCH(B201,'D.A. E'!$A$19:$A$47,0),1),0,12))>27,LEFT(OFFSET(INDEX('D.A. E'!$A$19:$A$47,MATCH(B201,'D.A. E'!$A$19:$A$47,0),1),0,12),27)&"…",OFFSET(INDEX('D.A. E'!$A$19:$A$47,MATCH(B201,'D.A. E'!$A$19:$A$47,0),1),0,12))) -> 
B202: To Residential Rain Garden (4.2.3.C) | C202: =SUMIFS('D.A. E'!$B$19:$B$47,'D.A. E'!$A$19:$A$47,B202,'D.A. E'!$B$19:$B$47,">0")+SUMIFS('D.A. E'!$C$19:$C$47,'D.A. E'!$A$19:$A$47,B202,'D.A. E'!$C$19:$C$47,">0") -> 0 | D202: =SUMIFS('D.A. E'!$K$19:$K$47,'D.A. E'!$A$19:$A$47,B202,'D.A. E'!$K$19:$K$47,">0") -> 0 | E202: =IF(OFFSET(INDEX('D.A. E'!$A$19:$A$47,MATCH(B202,'D.A. E'!$A$19:$A$47,0),1),0,12)=0,"",IF(LEN(OFFSET(INDEX('D.A. E'!$A$19:$A$47,MATCH(B202,'D.A. E'!$A$19:$A$47,0),1),0,12))>27,LEFT(OFFSET(INDEX('D.A. E'!$A$19:$A$47,MATCH(B202,'D.A. E'!$A$19:$A$47,0),1),0,12),27)&"…",OFFSET(INDEX('D.A. E'!$A$19:$A$47,MATCH(B202,'D.A. E'!$A$19:$A$47,0),1),0,12))) -> 
B203: To Rainwater Harvesting (4.2.8) | C203: =SUMIFS('D.A. E'!$B$19:$B$47,'D.A. E'!$A$19:$A$47,B203,'D.A. E'!$B$19:$B$47,">0")+SUMIFS('D.A. E'!$C$19:$C$47,'D.A. E'!$A$19:$A$47,B203,'D.A. E'!$C$19:$C$47,">0") -> 0 | D203: =SUMIFS('D.A. E'!$K$19:$K$47,'D.A. E'!$A$19:$A$47,B203,'D.A. E'!$K$19:$K$47,">0") -> 0 | E203: =IF(OFFSET(INDEX('D.A. E'!$A$19:$A$47,MATCH(B203,'D.A. E'!$A$19:$A$47,0),1),0,12)=0,"",IF(LEN(OFFSET(INDEX('D.A. E'!$A$19:$A$47,MATCH(B203,'D.A. E'!$A$19:$A$47,0),1),0,12))>27,LEFT(OFFSET(INDEX('D.A. E'!$A$19:$A$47,MATCH(B203,'D.A. E'!$A$19:$A$47,0),1),0,12),27)&"…",OFFSET(INDEX('D.A. E'!$A$19:$A$47,MATCH(B203,'D.A. E'!$A$19:$A$47,0),1),0,12))) -> 
B204: Permeable Pavement, Level 1 | C204: =SUMIFS('D.A. E'!$B$19:$B$47,'D.A. E'!$A$19:$A$47,B204,'D.A. E'!$B$19:$B$47,">0")+SUMIFS('D.A. E'!$C$19:$C$47,'D.A. E'!$A$19:$A$47,B204,'D.A. E'!$C$19:$C$47,">0") -> 0 | D204: =SUMIFS('D.A. E'!$K$19:$K$47,'D.A. E'!$A$19:$A$47,B204,'D.A. E'!$K$19:$K$47,">0") -> 0 | E204: =IF(OFFSET(INDEX('D.A. E'!$A$19:$A$47,MATCH(B204,'D.A. E'!$A$19:$A$47,0),1),0,12)=0,"",IF(LEN(OFFSET(INDEX('D.A. E'!$A$19:$A$47,MATCH(B204,'D.A. E'!$A$19:$A$47,0),1),0,12))>27,LEFT(OFFSET(INDEX('D.A. E'!$A$19:$A$47,MATCH(B204,'D.A. E'!$A$19:$A$47,0),1),0,12),27)&"…",OFFSET(INDEX('D.A. E'!$A$19:$A$47,MATCH(B204,'D.A. E'!$A$19:$A$47,0),1),0,12))) -> 
B205: Permeable Pavement, Level 2 (infiltration) | C205: =SUMIFS('D.A. E'!$B$19:$B$47,'D.A. E'!$A$19:$A$47,B205,'D.A. E'!$B$19:$B$47,">0")+SUMIFS('D.A. E'!$C$19:$C$47,'D.A. E'!$A$19:$A$47,B205,'D.A. E'!$C$19:$C$47,">0") -> 0 | D205: =SUMIFS('D.A. E'!$K$19:$K$47,'D.A. E'!$A$19:$A$47,B205,'D.A. E'!$K$19:$K$47,">0") -> 0 | E205: =IF(OFFSET(INDEX('D.A. E'!$A$19:$A$47,MATCH(B205,'D.A. E'!$A$19:$A$47,0),1),0,12)=0,"",IF(LEN(OFFSET(INDEX('D.A. E'!$A$19:$A$47,MATCH(B205,'D.A. E'!$A$19:$A$47,0),1),0,12))>27,LEFT(OFFSET(INDEX('D.A. E'!$A$19:$A$47,MATCH(B205,'D.A. E'!$A$19:$A$47,0),1),0,12),27)&"…",OFFSET(INDEX('D.A. E'!$A$19:$A$47,MATCH(B205,'D.A. E'!$A$19:$A$47,0),1),0,12))) -> 
B206: Permeable Pavement, Level 2 (infiltration & underdrain) | C206: =SUMIFS('D.A. E'!$B$19:$B$47,'D.A. E'!$A$19:$A$47,B206,'D.A. E'!$B$19:$B$47,">0")+SUMIFS('D.A. E'!$C$19:$C$47,'D.A. E'!$A$19:$A$47,B206,'D.A. E'!$C$19:$C$47,">0") -> 0 | D206: =SUMIFS('D.A. E'!$K$19:$K$47,'D.A. E'!$A$19:$A$47,B206,'D.A. E'!$K$19:$K$47,">0") -> 0 | E206: =IF(OFFSET(INDEX('D.A. E'!$A$19:$A$47,MATCH(B206,'D.A. E'!$A$19:$A$47,0),1),0,12)=0,"",IF(LEN(OFFSET(INDEX('D.A. E'!$A$19:$A$47,MATCH(B206,'D.A. E'!$A$19:$A$47,0),1),0,12))>27,LEFT(OFFSET(INDEX('D.A. E'!$A$19:$A$47,MATCH(B206,'D.A. E'!$A$19:$A$47,0),1),0,12),27)&"…",OFFSET(INDEX('D.A. E'!$A$19:$A$47,MATCH(B206,'D.A. E'!$A$19:$A$47,0),1),0,12))) -> 
B207: Grass Swale A/B Soils | C207: =SUMIFS('D.A. E'!$B$19:$B$47,'D.A. E'!$A$19:$A$47,B207,'D.A. E'!$B$19:$B$47,">0")+SUMIFS('D.A. E'!$C$19:$C$47,'D.A. E'!$A$19:$A$47,B207,'D.A. E'!$C$19:$C$47,">0") -> 0 | D207: =SUMIFS('D.A. E'!$K$19:$K$47,'D.A. E'!$A$19:$A$47,B207,'D.A. E'!$K$19:$K$47,">0") -> 0 | E207: =IF(OFFSET(INDEX('D.A. E'!$A$19:$A$47,MATCH(B207,'D.A. E'!$A$19:$A$47,0),1),0,12)=0,"",IF(LEN(OFFSET(INDEX('D.A. E'!$A$19:$A$47,MATCH(B207,'D.A. E'!$A$19:$A$47,0),1),0,12))>27,LEFT(OFFSET(INDEX('D.A. E'!$A$19:$A$47,MATCH(B207,'D.A. E'!$A$19:$A$47,0),1),0,12),27)&"…",OFFSET(INDEX('D.A. E'!$A$19:$A$47,MATCH(B207,'D.A. E'!$A$19:$A$47,0),1),0,12))) -> 
B208: Grass Swale C/D Soils | C208: =SUMIFS('D.A. E'!$B$19:$B$47,'D.A. E'!$A$19:$A$47,B208,'D.A. E'!$B$19:$B$47,">0")+SUMIFS('D.A. E'!$C$19:$C$47,'D.A. E'!$A$19:$A$47,B208,'D.A. E'!$C$19:$C$47,">0") -> 0 | D208: =SUMIFS('D.A. E'!$K$19:$K$47,'D.A. E'!$A$19:$A$47,B208,'D.A. E'!$K$19:$K$47,">0") -> 0 | E208: =IF(OFFSET(INDEX('D.A. E'!$A$19:$A$47,MATCH(B208,'D.A. E'!$A$19:$A$47,0),1),0,12)=0,"",IF(LEN(OFFSET(INDEX('D.A. E'!$A$19:$A$47,MATCH(B208,'D.A. E'!$A$19:$A$47,0),1),0,12))>27,LEFT(OFFSET(INDEX('D.A. E'!$A$19:$A$47,MATCH(B208,'D.A. E'!$A$19:$A$47,0),1),0,12),27)&"…",OFFSET(INDEX('D.A. E'!$A$19:$A$47,MATCH(B208,'D.A. E'!$A$19:$A$47,0),1),0,12))) -> 
B209: Grass Swale in C/D Soil with Soil Amendments | C209: =SUMIFS('D.A. E'!$B$19:$B$47,'D.A. E'!$A$19:$A$47,B209,'D.A. E'!$B$19:$B$47,">0")+SUMIFS('D.A. E'!$C$19:$C$47,'D.A. E'!$A$19:$A$47,B209,'D.A. E'!$C$19:$C$47,">0") -> 0 | D209: =SUMIFS('D.A. E'!$K$19:$K$47,'D.A. E'!$A$19:$A$47,B209,'D.A. E'!$K$19:$K$47,">0") -> 0 | E209: =IF(OFFSET(INDEX('D.A. E'!$A$19:$A$47,MATCH(B209,'D.A. E'!$A$19:$A$47,0),1),0,12)=0,"",IF(LEN(OFFSET(INDEX('D.A. E'!$A$19:$A$47,MATCH(B209,'D.A. E'!$A$19:$A$47,0),1),0,12))>27,LEFT(OFFSET(INDEX('D.A. E'!$A$19:$A$47,MATCH(B209,'D.A. E'!$A$19:$A$47,0),1),0,12),27)&"…",OFFSET(INDEX('D.A. E'!$A$19:$A$47,MATCH(B209,'D.A. E'!$A$19:$A$47,0),1),0,12))) -> 
B210: Water Quality Swale, Level 1 | C210: =SUMIFS('D.A. E'!$B$19:$B$47,'D.A. E'!$A$19:$A$47,B210,'D.A. E'!$B$19:$B$47,">0")+SUMIFS('D.A. E'!$C$19:$C$47,'D.A. E'!$A$19:$A$47,B210,'D.A. E'!$C$19:$C$47,">0") -> 0 | D210: =SUMIFS('D.A. E'!$K$19:$K$47,'D.A. E'!$A$19:$A$47,B210,'D.A. E'!$K$19:$K$47,">0") -> 0 | E210: =IF(OFFSET(INDEX('D.A. E'!$A$19:$A$47,MATCH(B210,'D.A. E'!$A$19:$A$47,0),1),0,12)=0,"",IF(LEN(OFFSET(INDEX('D.A. E'!$A$19:$A$47,MATCH(B210,'D.A. E'!$A$19:$A$47,0),1),0,12))>27,LEFT(OFFSET(INDEX('D.A. E'!$A$19:$A$47,MATCH(B210,'D.A. E'!$A$19:$A$47,0),1),0,12),27)&"…",OFFSET(INDEX('D.A. E'!$A$19:$A$47,MATCH(B210,'D.A. E'!$A$19:$A$47,0),1),0,12))) -> 
B211: Water Quality Swale, Level 2 | C211: =SUMIFS('D.A. E'!$B$19:$B$47,'D.A. E'!$A$19:$A$47,B211,'D.A. E'!$B$19:$B$47,">0")+SUMIFS('D.A. E'!$C$19:$C$47,'D.A. E'!$A$19:$A$47,B211,'D.A. E'!$C$19:$C$47,">0") -> 0 | D211: =SUMIFS('D.A. E'!$K$19:$K$47,'D.A. E'!$A$19:$A$47,B211,'D.A. E'!$K$19:$K$47,">0") -> 0 | E211: =IF(OFFSET(INDEX('D.A. E'!$A$19:$A$47,MATCH(B211,'D.A. E'!$A$19:$A$47,0),1),0,12)=0,"",IF(LEN(OFFSET(INDEX('D.A. E'!$A$19:$A$47,MATCH(B211,'D.A. E'!$A$19:$A$47,0),1),0,12))>27,LEFT(OFFSET(INDEX('D.A. E'!$A$19:$A$47,MATCH(B211,'D.A. E'!$A$19:$A$47,0),1),0,12),27)&"…",OFFSET(INDEX('D.A. E'!$A$19:$A$47,MATCH(B211,'D.A. E'!$A$19:$A$47,0),1),0,12))) -> 
B212: Bioretention, Level 1 or Urban Bioretention (4.2.3.B) | C212: =SUMIFS('D.A. E'!$B$19:$B$47,'D.A. E'!$A$19:$A$47,B212,'D.A. E'!$B$19:$B$47,">0")+SUMIFS('D.A. E'!$C$19:$C$47,'D.A. E'!$A$19:$A$47,B212,'D.A. E'!$C$19:$C$47,">0") -> 0 | D212: =SUMIFS('D.A. E'!$K$19:$K$47,'D.A. E'!$A$19:$A$47,B212,'D.A. E'!$K$19:$K$47,">0") -> 0 | E212: =IF(OFFSET(INDEX('D.A. E'!$A$19:$A$47,MATCH(B212,'D.A. E'!$A$19:$A$47,0),1),0,12)=0,"",IF(LEN(OFFSET(INDEX('D.A. E'!$A$19:$A$47,MATCH(B212,'D.A. E'!$A$19:$A$47,0),1),0,12))>27,LEFT(OFFSET(INDEX('D.A. E'!$A$19:$A$47,MATCH(B212,'D.A. E'!$A$19:$A$47,0),1),0,12),27)&"…",OFFSET(INDEX('D.A. E'!$A$19:$A$47,MATCH(B212,'D.A. E'!$A$19:$A$47,0),1),0,12))) -> 
B213: Bioretention, Level 2 | C213: =SUMIFS('D.A. E'!$B$19:$B$47,'D.A. E'!$A$19:$A$47,B213,'D.A. E'!$B$19:$B$47,">0")+SUMIFS('D.A. E'!$C$19:$C$47,'D.A. E'!$A$19:$A$47,B213,'D.A. E'!$C$19:$C$47,">0") -> 0 | D213: =SUMIFS('D.A. E'!$K$19:$K$47,'D.A. E'!$A$19:$A$47,B213,'D.A. E'!$K$19:$K$47,">0") -> 0 | E213: =IF(OFFSET(INDEX('D.A. E'!$A$19:$A$47,MATCH(B213,'D.A. E'!$A$19:$A$47,0),1),0,12)=0,"",IF(LEN(OFFSET(INDEX('D.A. E'!$A$19:$A$47,MATCH(B213,'D.A. E'!$A$19:$A$47,0),1),0,12))>27,LEFT(OFFSET(INDEX('D.A. E'!$A$19:$A$47,MATCH(B213,'D.A. E'!$A$19:$A$47,0),1),0,12),27)&"…",OFFSET(INDEX('D.A. E'!$A$19:$A$47,MATCH(B213,'D.A. E'!$A$19:$A$47,0),1),0,12))) -> 
B214: Infiltration | C214: =SUMIFS('D.A. E'!$B$19:$B$47,'D.A. E'!$A$19:$A$47,B214,'D.A. E'!$B$19:$B$47,">0")+SUMIFS('D.A. E'!$C$19:$C$47,'D.A. E'!$A$19:$A$47,B214,'D.A. E'!$C$19:$C$47,">0") -> 0 | D214: =SUMIFS('D.A. E'!$K$19:$K$47,'D.A. E'!$A$19:$A$47,B214,'D.A. E'!$K$19:$K$47,">0") -> 0 | E214: =IF(OFFSET(INDEX('D.A. E'!$A$19:$A$47,MATCH(B214,'D.A. E'!$A$19:$A$47,0),1),0,12)=0,"",IF(LEN(OFFSET(INDEX('D.A. E'!$A$19:$A$47,MATCH(B214,'D.A. E'!$A$19:$A$47,0),1),0,12))>27,LEFT(OFFSET(INDEX('D.A. E'!$A$19:$A$47,MATCH(B214,'D.A. E'!$A$19:$A$47,0),1),0,12),27)&"…",OFFSET(INDEX('D.A. E'!$A$19:$A$47,MATCH(B214,'D.A. E'!$A$19:$A$47,0),1),0,12))) -> 
B215: *Filtration Practice/Stormwater Wetland do NOT receive runoff reduction values, but do have associated pollutant removal values | C215: =SUMIFS('D.A. E'!$B$19:$B$47,'D.A. E'!$A$19:$A$47,B215,'D.A. E'!$B$19:$B$47,">0")+SUMIFS('D.A. E'!$C$19:$C$47,'D.A. E'!$A$19:$A$47,B215,'D.A. E'!$C$19:$C$47,">0") -> 0 | D215: =SUMIFS('D.A. E'!$K$19:$K$47,'D.A. E'!$A$19:$A$47,B215,'D.A. E'!$K$19:$K$47,">0") -> 0 | E215: =IF(OFFSET(INDEX('D.A. E'!$A$19:$A$47,MATCH(B215,'D.A. E'!$A$19:$A$47,0),1),0,12)=0,"",IF(LEN(OFFSET(INDEX('D.A. E'!$A$19:$A$47,MATCH(B215,'D.A. E'!$A$19:$A$47,0),1),0,12))>27,LEFT(OFFSET(INDEX('D.A. E'!$A$19:$A$47,MATCH(B215,'D.A. E'!$A$19:$A$47,0),1),0,12),27)&"…",OFFSET(INDEX('D.A. E'!$A$19:$A$47,MATCH(B215,'D.A. E'!$A$19:$A$47,0),1),0,12))) -> 
B216: Sheetflow to Conservation Area with A/B Soils | C216: =SUMIFS('D.A. E'!$B$19:$B$47,'D.A. E'!$A$19:$A$47,B216,'D.A. E'!$B$19:$B$47,">0")+SUMIFS('D.A. E'!$C$19:$C$47,'D.A. E'!$A$19:$A$47,B216,'D.A. E'!$C$19:$C$47,">0") -> 0 | D216: =SUMIFS('D.A. E'!$K$19:$K$47,'D.A. E'!$A$19:$A$47,B216,'D.A. E'!$K$19:$K$47,">0") -> 0 | E216: =IF(OFFSET(INDEX('D.A. E'!$A$19:$A$47,MATCH(B216,'D.A. E'!$A$19:$A$47,0),1),0,12)=0,"",IF(LEN(OFFSET(INDEX('D.A. E'!$A$19:$A$47,MATCH(B216,'D.A. E'!$A$19:$A$47,0),1),0,12))>27,LEFT(OFFSET(INDEX('D.A. E'!$A$19:$A$47,MATCH(B216,'D.A. E'!$A$19:$A$47,0),1),0,12),27)&"…",OFFSET(INDEX('D.A. E'!$A$19:$A$47,MATCH(B216,'D.A. E'!$A$19:$A$47,0),1),0,12))) -> 
B217: Sheetflow to Conservation Area with C/D Soils | C217: =SUMIFS('D.A. E'!$B$19:$B$47,'D.A. E'!$A$19:$A$47,B217,'D.A. E'!$B$19:$B$47,">0")+SUMIFS('D.A. E'!$C$19:$C$47,'D.A. E'!$A$19:$A$47,B217,'D.A. E'!$C$19:$C$47,">0") -> 0 | D217: =SUMIFS('D.A. E'!$K$19:$K$47,'D.A. E'!$A$19:$A$47,B217,'D.A. E'!$K$19:$K$47,">0") -> 0 | E217: =IF(OFFSET(INDEX('D.A. E'!$A$19:$A$47,MATCH(B217,'D.A. E'!$A$19:$A$47,0),1),0,12)=0,"",IF(LEN(OFFSET(INDEX('D.A. E'!$A$19:$A$47,MATCH(B217,'D.A. E'!$A$19:$A$47,0),1),0,12))>27,LEFT(OFFSET(INDEX('D.A. E'!$A$19:$A$47,MATCH(B217,'D.A. E'!$A$19:$A$47,0),1),0,12),27)&"…",OFFSET(INDEX('D.A. E'!$A$19:$A$47,MATCH(B217,'D.A. E'!$A$19:$A$47,0),1),0,12))) -> 
B218: Sheetflow to Vegetated Filter Strip in A/B Soils or Compost Amended C/D Soils | C218: =SUMIFS('D.A. E'!$B$19:$B$47,'D.A. E'!$A$19:$A$47,B218,'D.A. E'!$B$19:$B$47,">0")+SUMIFS('D.A. E'!$C$19:$C$47,'D.A. E'!$A$19:$A$47,B218,'D.A. E'!$C$19:$C$47,">0") -> 0 | D218: =SUMIFS('D.A. E'!$K$19:$K$47,'D.A. E'!$A$19:$A$47,B218,'D.A. E'!$K$19:$K$47,">0") -> 0 | E218: =IF(OFFSET(INDEX('D.A. E'!$A$19:$A$47,MATCH(B218,'D.A. E'!$A$19:$A$47,0),1),0,12)=0,"",IF(LEN(OFFSET(INDEX('D.A. E'!$A$19:$A$47,MATCH(B218,'D.A. E'!$A$19:$A$47,0),1),0,12))>27,LEFT(OFFSET(INDEX('D.A. E'!$A$19:$A$47,MATCH(B218,'D.A. E'!$A$19:$A$47,0),1),0,12),27)&"…",OFFSET(INDEX('D.A. E'!$A$19:$A$47,MATCH(B218,'D.A. E'!$A$19:$A$47,0),1),0,12))) -> 
B219: Sheet flow to Vegetated Filter Strip in C/D Soils | C219: =SUMIFS('D.A. E'!$B$19:$B$47,'D.A. E'!$A$19:$A$47,B219,'D.A. E'!$B$19:$B$47,">0")+SUMIFS('D.A. E'!$C$19:$C$47,'D.A. E'!$A$19:$A$47,B219,'D.A. E'!$C$19:$C$47,">0") -> 0 | D219: =SUMIFS('D.A. E'!$K$19:$K$47,'D.A. E'!$A$19:$A$47,B219,'D.A. E'!$K$19:$K$47,">0") -> 0 | E219: =IF(OFFSET(INDEX('D.A. E'!$A$19:$A$47,MATCH(B219,'D.A. E'!$A$19:$A$47,0),1),0,12)=0,"",IF(LEN(OFFSET(INDEX('D.A. E'!$A$19:$A$47,MATCH(B219,'D.A. E'!$A$19:$A$47,0),1),0,12))>27,LEFT(OFFSET(INDEX('D.A. E'!$A$19:$A$47,MATCH(B219,'D.A. E'!$A$19:$A$47,0),1),0,12),27)&"…",OFFSET(INDEX('D.A. E'!$A$19:$A$47,MATCH(B219,'D.A. E'!$A$19:$A$47,0),1),0,12))) -> 
I220: =IF(SUM($G$24:$G$26)<>0,1,"") -> 
B221: Total Impervious Cover Treated (acres) | C221: ='D.A. E'!B48 -> 0 | I221: =IF(SUM($G$24:$G$26)<>0,1,"") -> 
B222: Total Turf Area Treated (acres) | C222: ='D.A. E'!C48 -> 0 | I222: =IF(SUM($G$24:$G$26)<>0,1,"") -> 
B225: Channel and Flood Protection
C227: Weighted CN | D227: 1-year storm Adjusted CN | E227: 2-year storm Adjusted CN | F227: 10-year storm Adjusted CN
B228: Target Rainfall Event (in) | D228: ='Channel and Flood Protection'!D2 -> 2.7 | E228: ='Channel and Flood Protection'!E2 -> 3.35 | F228: ='Channel and Flood Protection'!F2 -> 5.15
B229: D.A. A CN | C229: ='Channel and Flood Protection'!G34 -> 0 | D229: ='Channel and Flood Protection'!D38 -> 0 | E229: ='Channel and Flood Protection'!E38 -> 0 | F229: ='Channel and Flood Protection'!F38 -> 0
B230: D.A. B CN | C230: ='Channel and Flood Protection'!G49 -> 0 | D230: ='Channel and Flood Protection'!D53 -> 0 | E230: ='Channel and Flood Protection'!E53 -> 0 | F230: ='Channel and Flood Protection'!F53 -> 0
B231: D.A. C CN | C231: ='Channel and Flood Protection'!G64 -> 0 | D231: ='Channel and Flood Protection'!D68 -> 0 | E231: ='Channel and Flood Protection'!E68 -> 0 | F231: ='Channel and Flood Protection'!F68 -> 0
B232: D.A. D CN | C232: ='Channel and Flood Protection'!G79 -> 0 | D232: ='Channel and Flood Protection'!D83 -> 0 | E232: ='Channel and Flood Protection'!E83 -> 0 | F232: ='Channel and Flood Protection'!F83 -> 0
B233: D.A. E CN | C233: ='Channel and Flood Protection'!G94 -> 0 | D233: ='Channel and Flood Protection'!D98 -> 0 | E233: ='Channel and Flood Protection'!E98 -> 0 | F233: ='Channel and Flood Protection'!F98 -> 0
